College_Name,Check_Number,Payee,Date,Amount,Funding_Source,Purpose,ID,Fund_Code,Acct_Code,CheckTotal
J. F. Drake State CC & TC,10014175,Currie Systems Inc. ,10/8/2021,1522.26,Unrestricted Shared Services,Participant Costs-Other,A01361467,110100,751013,1522.26
J. F. Drake State CC & TC,10014176,Dynamic Security Inc ,10/8/2021,5693.93,Unrestricted Shared Services,Other Contractual Services - PS,A01352847,110100,731400,5693.93
J. F. Drake State CC & TC,10014177,Federal Express Corporation ,10/8/2021,9.03,Unrestricted Shared Services,Freight - OOS,A00010219,110100,750600,9.03
J. F. Drake State CC & TC,10014178,J F Drake State Community College & Technical College ,10/8/2021,24,Unrestricted Shared Services,Other Travel Expenses - IS,A00010180,110100,710800,24
J. F. Drake State CC & TC,10014179,Lowe's ,10/8/2021,689.08,Unrestricted Shared Services,Maintenance & Repairs  - OOS,A01351841,110100,751100,689.08
J. F. Drake State CC & TC,10014180,Pataky J,10/8/2021,1375,Unrestricted Shared Services,Graduation Expense,A01356750,110100,751016,1375
J. F. Drake State CC & TC,10014181,Student Payment,10/8/2021,1820,Unrestricted Shared Services,Clearing Refunds - SP,A02331844,110100,230200,1820
J. F. Drake State CC & TC,10014182,Cancelled Check,10/8/2021,0,,,,,,
J. F. Drake State CC & TC,10014183,Student Payment,10/11/2021,1030,Unrestricted Shared Services,Clearing Refunds - SP,A00332334,110100,230200,1030
J. F. Drake State CC & TC,10014184,ACT Inc ,10/14/2021,71.5,Unrestricted Shared Services,Testing Expense,A00010341,110100,751015,71.5
J. F. Drake State CC & TC,10014185,Alabama Media ,10/14/2021,455.34,Unrestricted Shared Services,Advertising & Promotions - OOS,A01352303,110100,750100,455.34
J. F. Drake State CC & TC,10014186,Credentials Solutions LLC ,10/14/2021,22.5,Unrestricted Shared Services,Transcript Expense,A01349460,110100,751017,22.5
J. F. Drake State CC & TC,10014187,Federal Express Corporation ,10/14/2021,11.2,Unrestricted Shared Services,Freight - OOS,A00010219,110100,750600,11.2
J. F. Drake State CC & TC,10014188,Home Depot U.S.A. Inc ,10/14/2021,1164.65,Unrestricted Shared Services,Materials and Supplies - MS,A01349758,110100,720500,1164.65
J. F. Drake State CC & TC,10014189,Huntsville Utilities ,10/14/2021,284.66,Unrestricted Shared Services,Gas & Heating Fuel - UC,A01361021,110100,740300,24353.77
J. F. Drake State CC & TC,10014189,Huntsville Utilities ,10/14/2021,858.08,Unrestricted Shared Services,Water & Sewer - UC,A01361021,110100,740600,24353.77
J. F. Drake State CC & TC,10014189,Huntsville Utilities ,10/14/2021,23211.03,Unrestricted Shared Services,Electricity - UC,A01361021,110100,740200,24353.77
J. F. Drake State CC & TC,10014190,Loomis ,10/14/2021,236.31,Unrestricted Shared Services,Other Contractual Services - PS,A01361449,110100,731400,236.31
J. F. Drake State CC & TC,10014191,The Pitney Bowes Bank Inc ,10/14/2021,225,Unrestricted Shared Services,Short-Term Equipment Rentals - OOS,A01353026,110100,751600,225
J. F. Drake State CC & TC,10014192,WideOpen West Inc ,10/14/2021,3065.46,Unrestricted Shared Services,Internet - UC,A01365312,110100,740400,3065.46
J. F. Drake State CC & TC,10014193,Xerox Corporation ,10/14/2021,154.11,Unrestricted Shared Services,Operating Lease Payments,A00010379,110100,751014,154.11
J. F. Drake State CC & TC,10014194,Xerox Corporation ,10/14/2021,1109.75,Unrestricted Shared Services,Other Contractual Services - PS,A00010379,110100,731400,1109.75
J. F. Drake State CC & TC,10014195,Student Payment,10/15/2021,100,Unrestricted Shared Services,Clearing Refunds - SP,A00368886,110100,230200,100
J. F. Drake State CC & TC,10014196,Student Payment,10/15/2021,483,Unrestricted Shared Services,Clearing Refunds - SP,A01339363,110100,230200,483
J. F. Drake State CC & TC,10014197,RP Media ,10/15/2021,10051.83,Unrestricted Shared Services,Advertising & Promotions - OOS,A01390666,110100,750100,10051.83
J. F. Drake State CC & TC,10014198,The Solutions Team Inc ,10/15/2021,200,Unrestricted Shared Services,Other Contractual Services - PS,A01352724,110100,731400,200
J. F. Drake State CC & TC,10014199,Chamber of Commerce Huntsville/Madison County ,10/21/2021,1800,Unrestricted Shared Services,Advertising & Promotions - OOS,A01371349,110100,750100,1800
J. F. Drake State CC & TC,10014200,Dynamic Security Inc ,10/21/2021,5679.94,Unrestricted Shared Services,Other Contractual Services - PS,A01352847,110100,731400,5679.94
J. F. Drake State CC & TC,10014201,Horatio Alger Association ,10/21/2021,1092.25,Unrestricted Shared Services,Contract Clearing Account - AP,A01361336,110100,210700,1092.25
J. F. Drake State CC & TC,10014202,In10sity Interactive LLC ,10/21/2021,299,Unrestricted Shared Services,Other Contractual Services - PS,A01349757,110100,731400,299
J. F. Drake State CC & TC,10014203,Move Digital LLC ,10/21/2021,2000,Unrestricted Shared Services,Other Contractual Services - PS,A01390957,110100,731400,2000
J. F. Drake State CC & TC,10014204,Student Payment,10/26/2021,483,Unrestricted Shared Services,Clearing Refunds - SP,A01367627,110100,230200,483
J. F. Drake State CC & TC,10014205,AACC ,10/28/2021,75,Unrestricted Shared Services,Memberships - PS,A01350816,110100,731300,75
J. F. Drake State CC & TC,10014206,Alabama Community College System President's Association ,10/28/2021,750,Unrestricted Shared Services,Memberships - PS,A01377799,110100,731300,750
J. F. Drake State CC & TC,10014207,AUM Capital Group Charitable Foundation ,10/28/2021,1000,Unrestricted Shared Services,Advertising & Promotions - OOS,A01373465,110100,750100,1000
J. F. Drake State CC & TC,10014208,Better Business Bureau of North Alabama Inc ,10/28/2021,450,Unrestricted Shared Services,Memberships - PS,A01356751,110100,731300,450
J. F. Drake State CC & TC,10014209,CDW LLC ,10/28/2021,260.7,Unrestricted Shared Services,Computer Software(non capital) - MS,A00010372,110100,720100,260.7
J. F. Drake State CC & TC,10014210,Chamber of Commerce Huntsville/Madison County ,10/28/2021,500,Unrestricted Shared Services,Advertising & Promotions - OOS,A01371349,110100,750100,500
J. F. Drake State CC & TC,10014211,Constant Contact Inc. ,10/28/2021,850.5,Unrestricted Shared Services,Advertising & Promotions - OOS,A01351907,110100,750100,850.5
J. F. Drake State CC & TC,10014212,Davis Soil Environmental ,10/28/2021,2100,Unrestricted Shared Services,Other Professional Fees - PS,A02339292,110100,731600,2100
J. F. Drake State CC & TC,10014213,Delta Theta Lambda Ed Foundation ,10/28/2021,500,Unrestricted Shared Services,Advertising & Promotions - OOS,A01361462,110100,750100,500
J. F. Drake State CC & TC,10014214,Farrell Corporation ,10/28/2021,2512.74,Unrestricted Shared Services,Materials and Supplies - MS,A01349771,110100,720500,2512.74
J. F. Drake State CC & TC,10014215,In10sity Interactive LLC ,10/28/2021,299,Unrestricted Shared Services,Other Contractual Services - PS,A01349757,110100,731400,299
J. F. Drake State CC & TC,10014216,Penn National Insurance ,10/28/2021,653,Unrestricted Shared Services,Insurance and Bonding - PS,A01378413,110100,730900,653
J. F. Drake State CC & TC,10014217,State of Alabama ,10/28/2021,825,Unrestricted Shared Services,Taxes & Licenses - OOS,A00010262,110100,751800,825
J. F. Drake State CC & TC,10014218,The Ledges of Huntsville ,10/28/2021,34.22,Unrestricted Shared Services,Culinary Consumables,A02312392,110100,720200,34.22
J. F. Drake State CC & TC,10014219,United Parcel Service Inc (UPS) ,10/28/2021,7.54,Unrestricted Shared Services,Freight - OOS,A01349807,110100,750600,7.54
J. F. Drake State CC & TC,10014220,University of Alabama ,10/28/2021,1000,Unrestricted Shared Services,Memberships - PS,A01351952,110100,731300,1000
J. F. Drake State CC & TC,10014221,Wagner Appraisal Company ,10/28/2021,1200,Unrestricted Shared Services,Other Professional Fees - PS,A02317417,110100,731600,1200
J. F. Drake State CC & TC,10014222,Payroll Payable,10/29/2021,20.8,Payroll Clearing Fund,Payroll Payable,A01361446,120000,221100,20.8
J. F. Drake State CC & TC,10014223,Payroll Payable,10/29/2021,294.5,Payroll Clearing Fund,Payroll Payable,A01365311,120000,221100,294.5
J. F. Drake State CC & TC,10014224,Payroll Payable,10/29/2021,728.33,Payroll Clearing Fund,Payroll Payable,A01361041,120000,221100,728.33
J. F. Drake State CC & TC,10014225,Payroll Payable,10/29/2021,542.79,Payroll Clearing Fund,Payroll Payable,A01351192,120000,221100,542.79
J. F. Drake State CC & TC,10014226,Payroll Payable,10/29/2021,49.91,Payroll Clearing Fund,Payroll Payable,A01350437,120000,221100,49.91
J. F. Drake State CC & TC,10014227,Payroll Payable,10/29/2021,2676,Payroll Clearing Fund,Payroll Payable,A00329038,120000,221170,2676
J. F. Drake State CC & TC,10014228,Payroll Payable,10/29/2021,550,Payroll Clearing Fund,Payroll Payable,A01373546,120000,221100,550
J. F. Drake State CC & TC,10014229,Payroll Payable,10/29/2021,257.5,Payroll Clearing Fund,Payroll Payable,A01351200,120000,221100,257.5
J. F. Drake State CC & TC,10014230,Payroll Payable,10/29/2021,240,Payroll Clearing Fund,Payroll Payable,A01350006,120000,221100,240
J. F. Drake State CC & TC,10014231,Payroll Payable,10/29/2021,121.8,Payroll Clearing Fund,Payroll Payable,A01349451,120000,221100,121.8
J. F. Drake State CC & TC,10014232,CDW LLC ,11/2/2021,17203,Unrestricted Shared Services,Taxes & Licenses - OOS,A00010372,110100,751800,17203
J. F. Drake State CC & TC,10014233,Student Payment,11/2/2021,450.8,Unrestricted Shared Services,Clearing Refunds - SP,A01367627,110100,230200,450.8
J. F. Drake State CC & TC,10014234,Dynamic Security Inc ,11/2/2021,2700.07,Unrestricted Shared Services,Other Contractual Services - PS,A01352847,110100,731400,2700.07
J. F. Drake State CC & TC,10014235,ESCO Institute ,11/2/2021,150,Unrestricted Shared Services,Accreditation Expense - PS,A01351183,110100,730200,150
J. F. Drake State CC & TC,10014236,Loomis ,11/2/2021,239.34,Unrestricted Shared Services,Other Contractual Services - PS,A01361449,110100,731400,239.34
J. F. Drake State CC & TC,10014237,Lowe's Company ,11/2/2021,90.61,Unrestricted Shared Services,Maintenance & Repairs  - OOS,A01349933,110100,751100,90.61
J. F. Drake State CC & TC,10014238,Move Digital LLC ,11/2/2021,2000,Unrestricted Shared Services,Other Contractual Services - PS,A01390957,110100,731400,2000
J. F. Drake State CC & TC,10014239,Student Payment,11/2/2021,15.05,Unrestricted Shared Services,Clearing Refunds - SP,A01353103,110100,230200,15.05
J. F. Drake State CC & TC,10014240,Waste Management ,11/2/2021,1811.48,Unrestricted Shared Services,Waste Disposal - UC,A01349513,110100,740700,1811.48
J. F. Drake State CC & TC,10014241,Xerox Corporation ,11/2/2021,10068.99,Unrestricted Shared Services,Other Contractual Services - PS,A00010379,110100,731400,10068.99
J. F. Drake State CC & TC,10014242,Alabama Possible ,11/4/2021,1000,Unrestricted Shared Services,Memberships - PS,A01390119,110100,731300,1000
J. F. Drake State CC & TC,10014243,Council for Opportunity in Education ,11/4/2021,3425,Unrestricted Shared Services,Memberships - PS,A01350779,110100,731300,3425
J. F. Drake State CC & TC,10014244,Downtown Huntsville Inc ,11/4/2021,1000,Unrestricted Shared Services,Memberships - PS,A01388508,110100,731300,1000
J. F. Drake State CC & TC,10014245,Dynamic Security Inc ,11/4/2021,2770.02,Unrestricted Shared Services,Other Contractual Services - PS,A01352847,110100,731400,2770.02
J. F. Drake State CC & TC,10014246,Green Joseph,11/4/2021,99,Unrestricted Shared Services,Student 3rd Party Reimbursement-AR,A00234602,110100,130902,99
J. F. Drake State CC & TC,10014247,Machine Tool Fitters ,11/4/2021,1924.6,Unrestricted Shared Services,Maintenance & Repairs  - OOS,A02335673,110100,751100,1924.6
J. F. Drake State CC & TC,10014248,President's Round Table ,11/4/2021,600,Unrestricted Shared Services,Memberships - PS,A01379788,110100,731300,600
J. F. Drake State CC & TC,10014249,Drake State Technical College Foundation Inc ,11/8/2021,8055.22,Agency - Other,Deposits Refundable - SP,A01361041,810230,230300,8055.22
J. F. Drake State CC & TC,10014250,4Imprint Inc ,11/9/2021,1662.97,Unrestricted Shared Services,Advertising & Promotions - OOS,A01349844,110100,750100,1662.97
J. F. Drake State CC & TC,10014251,Cook's Pest Control ,11/9/2021,331,Unrestricted Shared Services,Other Contractual Services - PS,A01349917,110100,731400,331
J. F. Drake State CC & TC,10014252,Federal Express Corporation ,11/9/2021,19.36,Unrestricted Shared Services,Freight - OOS,A00010219,110100,750600,19.36
J. F. Drake State CC & TC,10014253,Makerbot Industries LLC ,11/9/2021,2249.75,Unrestricted Shared Services,Materials and Supplies - MS,A02234948,110100,720500,2249.75
J. F. Drake State CC & TC,10014254,Schindler Elevator Corporation ,11/9/2021,1427.52,Unrestricted Shared Services,Other Contractual Services - PS,A01368740,110100,731400,1427.52
J. F. Drake State CC & TC,10014255,Alabama A & M University Foundation ,11/15/2021,1000,Unrestricted Shared Services,Advertising & Promotions - OOS,A01365364,110100,750100,1000
J. F. Drake State CC & TC,10014256,Alabama Lawnmaster Inc ,11/15/2021,6190,Unrestricted Shared Services,Other Contractual Services - PS,A01361443,110100,731400,6190
J. F. Drake State CC & TC,10014257,Cook's Pest Control ,11/15/2021,331,Unrestricted Shared Services,Other Contractual Services - PS,A01349917,110100,731400,331
J. F. Drake State CC & TC,10014258,Dynamic Security Inc ,11/15/2021,2770.02,Unrestricted Shared Services,Other Contractual Services - PS,A01352847,110100,731400,2770.02
J. F. Drake State CC & TC,10014259,HESI - ELSEVIER ,11/15/2021,604,Unrestricted Shared Services,Other - AP,A01353108,110100,211200,604
J. F. Drake State CC & TC,10014260,Huntsville Utilities ,11/15/2021,336.75,Unrestricted Shared Services,Gas & Heating Fuel - UC,A01361021,110100,740300,22293.2
J. F. Drake State CC & TC,10014260,Huntsville Utilities ,11/15/2021,679.65,Unrestricted Shared Services,Water & Sewer - UC,A01361021,110100,740600,22293.2
J. F. Drake State CC & TC,10014260,Huntsville Utilities ,11/15/2021,21276.8,Unrestricted Shared Services,Electricity - UC,A01361021,110100,740200,22293.2
J. F. Drake State CC & TC,10014261,Safety Kleen Systems Inc ,11/15/2021,610,Unrestricted Shared Services,Waste Disposal - UC,A01350341,110100,740700,610
J. F. Drake State CC & TC,10014262,Sims Patricia,11/15/2021,486.36,Unrestricted Shared Services,Overnight (non tax per diem)- IS,A01346009,110100,710600,486.36
J. F. Drake State CC & TC,10014263,Xerox Corporation ,11/15/2021,150.34,Unrestricted Shared Services,Operating Lease Payments,A00010379,110100,751014,150.34
J. F. Drake State CC & TC,10014264,Xerox Corporation ,11/15/2021,1109.75,Unrestricted Shared Services,Other Contractual Services - PS,A00010379,110100,731400,1109.75
J. F. Drake State CC & TC,10014265,ACCS Public Relations Association ,11/17/2021,100,Unrestricted Shared Services,Memberships - PS,A00010209,110100,731300,100
J. F. Drake State CC & TC,10014266,Alabama Media ,11/17/2021,570.85,Unrestricted Shared Services,Advertising & Promotions - OOS,A01352303,110100,750100,570.85
J. F. Drake State CC & TC,10014267,Association for Unmanned Vehicle Systems International ,11/17/2021,600,Unrestricted Shared Services,Memberships - PS,A01350007,110100,731300,600
J. F. Drake State CC & TC,10014268,Madison Chamber of Commerce ,11/17/2021,624,Unrestricted Shared Services,Memberships - PS,A01349826,110100,731300,624
J. F. Drake State CC & TC,10014269,National Space Club Huntsville ,11/17/2021,140,Unrestricted Shared Services,Memberships - PS,A01373616,110100,731300,2140
J. F. Drake State CC & TC,10014269,National Space Club Huntsville ,11/17/2021,2000,Unrestricted Shared Services,Advertising & Promotions - OOS,A01373616,110100,750100,2140
J. F. Drake State CC & TC,10014270,RP Media ,11/17/2021,5797.99,Unrestricted Shared Services,Advertising & Promotions - OOS,A01390666,110100,750100,5797.99
J. F. Drake State CC & TC,10014271,Southern Assoc of Colleges & Schools ,11/17/2021,1500,Unrestricted Shared Services,Accreditation Expense - PS,A00010251,110100,730200,1500
J. F. Drake State CC & TC,10014272,The Alabama Board of Electrical Contractors ,11/17/2021,250,Unrestricted Shared Services,Memberships - PS,A01380968,110100,731300,250
J. F. Drake State CC & TC,10014273,The Solutions Team Inc ,11/17/2021,200,Unrestricted Shared Services,Other Contractual Services - PS,A01352724,110100,731400,200
J. F. Drake State CC & TC,10014274,WideOpen West Inc ,11/17/2021,3103.39,Unrestricted Shared Services,Internet - UC,A01365312,110100,740400,3103.39
J. F. Drake State CC & TC,10014275,Student Payment,11/18/2021,750,Unrestricted Shared Services,Clearing Refunds - SP,A00287339,110100,230200,750
J. F. Drake State CC & TC,10014276,Student Payment,11/18/2021,300,Unrestricted Shared Services,Clearing Refunds - SP,A02212295,110100,230200,300
J. F. Drake State CC & TC,10014277,Student Payment,11/18/2021,300,Unrestricted Shared Services,Clearing Refunds - SP,A02285875,110100,230200,300
J. F. Drake State CC & TC,10014278,Student Payment,11/18/2021,300,Unrestricted Shared Services,Clearing Refunds - SP,A02261131,110100,230200,300
J. F. Drake State CC & TC,10014279,ACT Inc ,11/19/2021,75,Unrestricted Shared Services,Testing Expense,A00010341,110100,751015,75
J. F. Drake State CC & TC,10014280,Cook's Pest Control ,11/19/2021,331,Unrestricted Shared Services,Other Contractual Services - PS,A01349917,110100,731400,331
J. F. Drake State CC & TC,10014281,Cool Stuff by Austin ,11/19/2021,630,Unrestricted Shared Services,Other Contractual Services - PS,A01373729,110100,731400,630
J. F. Drake State CC & TC,10014282,Dynamic Security Inc ,11/19/2021,2532.2,Unrestricted Shared Services,Other Contractual Services - PS,A01352847,110100,731400,2532.2
J. F. Drake State CC & TC,10014283,HESI - ELSEVIER ,11/19/2021,440,Unrestricted Shared Services,Other - AP,A01353108,110100,211200,440
J. F. Drake State CC & TC,10014284,Northwest-Shoals Community College ,11/19/2021,12,Unrestricted Shared Services,Materials and Supplies - MS,A00010182,110100,720500,12
J. F. Drake State CC & TC,10014285,Pearson Vue ,11/19/2021,945,Unrestricted Shared Services,Testing Expense,A01349686,110100,751015,945
J. F. Drake State CC & TC,10014286,Relyco Sales Inc ,11/19/2021,471.52,Unrestricted Shared Services,Materials and Supplies - MS,A01353160,110100,720500,471.52
J. F. Drake State CC & TC,10014287,Thomas Electric Inc ,11/19/2021,14643,Unrestricted Shared Services,Other Contractual Services - PS,A01356752,110100,731400,14643
J. F. Drake State CC & TC,10014288,Waste Management ,11/19/2021,1066,Unrestricted Shared Services,Waste Disposal - UC,A01349513,110100,740700,1066
J. F. Drake State CC & TC,10014289,In10sity Interactive LLC ,11/29/2021,299,Unrestricted Shared Services,Other Contractual Services - PS,A01349757,110100,731400,299
J. F. Drake State CC & TC,10014290,J F Drake State Community College & Technical College ,11/29/2021,10,Unrestricted Shared Services,Gasoline & Oil - Motor Veh - OOS,A00010180,110100,750700,50
J. F. Drake State CC & TC,10014290,J F Drake State Community College & Technical College ,11/29/2021,40,Unrestricted Shared Services,Other Travel Expenses - IS,A00010180,110100,710800,50
J. F. Drake State CC & TC,10014291,Walker Rachel,11/29/2021,3500,Unrestricted Shared Services,Other Professional Fees - PS,A00126181,110100,731600,3500
J. F. Drake State CC & TC,10014292,Payroll Payable,11/30/2021,20.8,Payroll Clearing Fund,Payroll Payable,A01361446,120000,221100,20.8
J. F. Drake State CC & TC,10014293,Payroll Payable,11/30/2021,294.5,Payroll Clearing Fund,Payroll Payable,A01365311,120000,221100,294.5
J. F. Drake State CC & TC,10014294,Payroll Payable,11/30/2021,753.33,Payroll Clearing Fund,Payroll Payable,A01361041,120000,221100,753.33
J. F. Drake State CC & TC,10014295,Payroll Payable,11/30/2021,542.79,Payroll Clearing Fund,Payroll Payable,A01351192,120000,221100,542.79
J. F. Drake State CC & TC,10014296,Payroll Payable,11/30/2021,49.91,Payroll Clearing Fund,Payroll Payable,A01350437,120000,221100,49.91
J. F. Drake State CC & TC,10014297,Payroll Payable,11/30/2021,2676,Payroll Clearing Fund,Payroll Payable,A00329038,120000,221170,2676
J. F. Drake State CC & TC,10014298,Payroll Payable,11/30/2021,550,Payroll Clearing Fund,Payroll Payable,A01373546,120000,221100,550
J. F. Drake State CC & TC,10014299,Payroll Payable,11/30/2021,375.45,Payroll Clearing Fund,Payroll Payable,A00010262,120000,221100,375.45
J. F. Drake State CC & TC,10014300,Payroll Payable,11/30/2021,257.5,Payroll Clearing Fund,Payroll Payable,A01351200,120000,221100,257.5
J. F. Drake State CC & TC,10014301,Payroll Payable,11/30/2021,240,Payroll Clearing Fund,Payroll Payable,A01350006,120000,221100,240
J. F. Drake State CC & TC,10014302,Payroll Payable,11/30/2021,17.4,Payroll Clearing Fund,Payroll Payable,A01349451,120000,221100,17.4
J. F. Drake State CC & TC,10014303,4Imprint Inc ,12/3/2021,3408.53,Unrestricted Shared Services,Advertising & Promotions - OOS,A01349844,110100,750100,3408.53
J. F. Drake State CC & TC,10014304,Accreditation Commission For Ed In Nursing Inc. (ACEN) ,12/3/2021,7425,Unrestricted Shared Services,Accreditation Expense - PS,A01353052,110100,730200,7425
J. F. Drake State CC & TC,10014305,Castle Branch Inc. ,12/3/2021,1396.75,Unrestricted Shared Services,Other - AP,A01361458,110100,211200,1396.75
J. F. Drake State CC & TC,10014306,Currie Systems Inc. ,12/3/2021,1298.75,Unrestricted Shared Services,Advertising & Promotions - OOS,A01361467,110100,750100,1298.75
J. F. Drake State CC & TC,10014307,Dynamic Security Inc ,12/3/2021,5568.14,Unrestricted Shared Services,Other Contractual Services - PS,A01352847,110100,731400,5568.14
J. F. Drake State CC & TC,10014308,Farrell Corporation ,12/3/2021,1593.35,Unrestricted Shared Services,Materials and Supplies - MS,A01349771,110100,720500,1593.35
J. F. Drake State CC & TC,10014309,Federal Express Corporation ,12/3/2021,9.68,Unrestricted Shared Services,Freight - OOS,A00010219,110100,750600,9.68
J. F. Drake State CC & TC,10014310,HESI - ELSEVIER ,12/3/2021,440,Unrestricted Shared Services,Other - AP,A01353108,110100,211200,440
J. F. Drake State CC & TC,10014311,Holston Gases Inc ,12/3/2021,897.2,Unrestricted Shared Services,Materials and Supplies - MS,A01349484,110100,720500,897.2
J. F. Drake State CC & TC,10014312,Insurance Office of America Inc ,12/3/2021,5166.06,Unrestricted Shared Services,Insurance and Bonding - PS,A01350697,110100,730900,5166.06
J. F. Drake State CC & TC,10014313,Jackson Terell,12/3/2021,69,Unrestricted Shared Services,Professional Development - PS,A00255666,110100,731700,69
J. F. Drake State CC & TC,10014314,Loomis ,12/3/2021,240.35,Unrestricted Shared Services,Other Contractual Services - PS,A01361449,110100,731400,240.35
J. F. Drake State CC & TC,10014315,Madison Turf Keeper ,12/3/2021,222.5,Unrestricted Shared Services,Other Contractual Services - PS,A02281987,110100,731400,222.5
J. F. Drake State CC & TC,10014316,Move Digital LLC ,12/3/2021,2000,Unrestricted Shared Services,Other Contractual Services - PS,A01390957,110100,731400,2000
J. F. Drake State CC & TC,10014317,Office Depot ,12/3/2021,135.99,Unrestricted Shared Services,Materials and Supplies - MS,A01349944,110100,720500,135.99
J. F. Drake State CC & TC,10014318,State of Alabama ,12/3/2021,38610,Unrestricted Shared Services,Insurance and Bonding - PS,A00010262,110100,730900,38610
J. F. Drake State CC & TC,10014319,State of Alabama ,12/3/2021,48.5,Unrestricted Shared Services,Taxes & Licenses - OOS,A00010262,110100,751800,48.5
J. F. Drake State CC & TC,10014320,State of Alabama ,12/3/2021,23500,Unrestricted Shared Services,Accounting & Auditing Services - PS,A00010262,110100,730100,23500
J. F. Drake State CC & TC,10014321,Student Payment,12/7/2021,8,Unrestricted Shared Services,Clearing Refunds - SP,A00365103,110100,230200,8
J. F. Drake State CC & TC,10014322,Student Payment,12/7/2021,8,Unrestricted Shared Services,Clearing Refunds - SP,A00341182,110100,230200,8
J. F. Drake State CC & TC,10014323,Student Payment,12/7/2021,368.28,Unrestricted Shared Services,Clearing Refunds - SP,A00225799,110100,230200,368.28
J. F. Drake State CC & TC,10014324,Student Payment,12/7/2021,25,Unrestricted Shared Services,Clearing Refunds - SP,A01102061,110100,230200,25
J. F. Drake State CC & TC,10014325,Student Payment,12/7/2021,340,Unrestricted Shared Services,Clearing Refunds - SP,A00345987,110100,230200,340
J. F. Drake State CC & TC,10014326,4Imprint Inc ,12/8/2021,1430.86,Unrestricted Shared Services,Advertising & Promotions - OOS,A01349844,110100,750100,1430.86
J. F. Drake State CC & TC,10014327,Credentials Solutions LLC ,12/8/2021,12.5,Unrestricted Shared Services,Transcript Expense,A01349460,110100,751017,12.5
J. F. Drake State CC & TC,10014328,Farmers Insurance ,12/8/2021,17386,Unrestricted Shared Services,Insurance and Bonding - PS,A01361447,110100,730900,17386
J. F. Drake State CC & TC,10014329,Lowe's ,12/8/2021,984.04,Unrestricted Shared Services,Materials and Supplies - MS,A01351841,110100,720500,984.04
J. F. Drake State CC & TC,10014330,Lowe's Company ,12/8/2021,351.03,Unrestricted Shared Services,Maintenance & Repairs  - OOS,A01349933,110100,751100,351.03
J. F. Drake State CC & TC,10014331,North Alabama Engraving Stamp Company ,12/8/2021,69.25,Unrestricted Shared Services,Materials and Supplies - MS,A01353127,110100,720500,69.25
J. F. Drake State CC & TC,10014332,Sims Patricia,12/8/2021,21.5,Unrestricted Shared Services,Other Travel Expenses - IS,A01346009,110100,710800,21.5
J. F. Drake State CC & TC,10014333,Cancelled Check,12/8/2021,0,,,,,,
J. F. Drake State CC & TC,10014334,Xerox Corporation ,12/8/2021,165.13,Unrestricted Shared Services,Operating Lease Payments,A00010379,110100,751014,165.13
J. F. Drake State CC & TC,10014335,ACT Inc ,12/9/2021,1500,Unrestricted Shared Services,Testing Expense,A00010341,110100,751015,1500
J. F. Drake State CC & TC,10014336,EMW Construction Inc ,12/9/2021,37000,Renewal & Replacement Shared Svcs,Maintenance & Repairs  - OOS,A02278130,920100,751100,37000
J. F. Drake State CC & TC,10014337,Student Payment,12/9/2021,805,Unrestricted Shared Services,Clearing Refunds - SP,A00010262,110100,230200,805
J. F. Drake State CC & TC,10014338,Alabama Lawnmaster Inc ,12/14/2021,3095,Unrestricted Shared Services,Other Contractual Services - PS,A01361443,110100,731400,3095
J. F. Drake State CC & TC,10014339,Big City Supplies Inc ,12/14/2021,2583,Unrestricted Shared Services,Other Contractual Services - PS,A02352944,110100,731400,2583
J. F. Drake State CC & TC,10014340,Cool Stuff by Austin ,12/14/2021,200,Unrestricted Shared Services,Other Professional Fees - PS,A01373729,110100,731600,200
J. F. Drake State CC & TC,10014341,Currie Systems Inc. ,12/14/2021,1047,Unrestricted Shared Services,Advertising & Promotions - OOS,A01361467,110100,750100,1047
J. F. Drake State CC & TC,10014342,Dynamic Security Inc ,12/14/2021,2937.9,Unrestricted Shared Services,Other Contractual Services - PS,A01352847,110100,731400,2937.9
J. F. Drake State CC & TC,10014343,Elliott Amanda,12/14/2021,825,Unrestricted Shared Services,Other Contractual Services - PS,A00207365,110100,731400,825
J. F. Drake State CC & TC,10014344,Foliage Design Systems ,12/14/2021,7772.35,Unrestricted Shared Services,Materials and Supplies - MS,A01389769,110100,720500,7772.35
J. F. Drake State CC & TC,10014345,Huntsville Utilities ,12/14/2021,574.63,Unrestricted Shared Services,Water & Sewer - UC,A01361021,110100,740600,22350.73
J. F. Drake State CC & TC,10014345,Huntsville Utilities ,12/14/2021,901.38,Unrestricted Shared Services,Gas & Heating Fuel - UC,A01361021,110100,740300,22350.73
J. F. Drake State CC & TC,10014345,Huntsville Utilities ,12/14/2021,20874.72,Unrestricted Shared Services,Electricity - UC,A01361021,110100,740200,22350.73
J. F. Drake State CC & TC,10014346,RP Media ,12/14/2021,8276.83,Unrestricted Shared Services,Advertising & Promotions - OOS,A01390666,110100,750100,8276.83
J. F. Drake State CC & TC,10014347,Walker 360 Inc ,12/14/2021,184,Unrestricted Shared Services,Printing and Binding - OOS,A00010193,110100,751300,184
J. F. Drake State CC & TC,10014348,WideOpen West Inc ,12/14/2021,3050.64,Unrestricted Shared Services,Internet - UC,A01365312,110100,740400,3050.64
J. F. Drake State CC & TC,10014349,Safety Kleen Systems Inc ,12/14/2021,175,Unrestricted Shared Services,Waste Disposal - UC,A01350341,110100,740700,175
J. F. Drake State CC & TC,10014350,Payroll Payable,12/15/2021,20.8,Payroll Clearing Fund,Payroll Payable,A01361446,120000,221100,20.8
J. F. Drake State CC & TC,10014351,Payroll Payable,12/15/2021,294.5,Payroll Clearing Fund,Payroll Payable,A01365311,120000,221100,294.5
J. F. Drake State CC & TC,10014352,Payroll Payable,12/15/2021,803.33,Payroll Clearing Fund,Payroll Payable,A01361041,120000,221100,803.33
J. F. Drake State CC & TC,10014353,Payroll Payable,12/15/2021,542.79,Payroll Clearing Fund,Payroll Payable,A01351192,120000,221100,542.79
J. F. Drake State CC & TC,10014354,Payroll Payable,12/15/2021,49.91,Payroll Clearing Fund,Payroll Payable,A01350437,120000,221100,49.91
J. F. Drake State CC & TC,10014355,Payroll Payable,12/15/2021,2676,Payroll Clearing Fund,Payroll Payable,A00329038,120000,221170,2676
J. F. Drake State CC & TC,10014356,Payroll Payable,12/15/2021,375.45,Payroll Clearing Fund,Payroll Payable,A00133234,120000,221100,375.45
J. F. Drake State CC & TC,10014357,Payroll Payable,12/15/2021,550,Payroll Clearing Fund,Payroll Payable,A01373546,120000,221100,550
J. F. Drake State CC & TC,10014358,Payroll Payable,12/15/2021,257.5,Payroll Clearing Fund,Payroll Payable,A01351200,120000,221100,257.5
J. F. Drake State CC & TC,10014359,Payroll Payable,12/15/2021,240,Payroll Clearing Fund,Payroll Payable,A01350006,120000,221100,240
J. F. Drake State CC & TC,10014360,Payroll Payable,12/15/2021,87,Payroll Clearing Fund,Payroll Payable,A01349451,120000,221100,87
J. F. Drake State CC & TC,10014361,Alabama Media ,1/6/2022,402.78,Unrestricted Shared Services,Advertising & Promotions - OOS,A01352303,110100,750100,402.78
J. F. Drake State CC & TC,10014362,Big City Supplies Inc ,1/6/2022,2600,Unrestricted Shared Services,Other Contractual Services - PS,A02352944,110100,731400,2600
J. F. Drake State CC & TC,10014363,Castle Branch Inc. ,1/6/2022,1014,Unrestricted Shared Services,Other - AP,A01361458,110100,211200,1014
J. F. Drake State CC & TC,10014364,CDW LLC ,1/6/2022,333.76,Unrestricted Shared Services,Computer Software(non capital) - MS,A00010372,110100,720100,333.76
J. F. Drake State CC & TC,10014365,Cook's Pest Control ,1/6/2022,331,Unrestricted Shared Services,Other Contractual Services - PS,A01349917,110100,731400,331
J. F. Drake State CC & TC,10014366,Dynamic Security Inc ,1/6/2022,10128.88,Unrestricted Shared Services,Other Contractual Services - PS,A01352847,110100,731400,10128.88
J. F. Drake State CC & TC,10014367,Federal Express Corporation ,1/6/2022,148.27,Unrestricted Shared Services,Freight - OOS,A00010219,110100,750600,148.27
J. F. Drake State CC & TC,10014368,In10sity Interactive LLC ,1/6/2022,299,Unrestricted Shared Services,Other Contractual Services - PS,A01349757,110100,731400,299
J. F. Drake State CC & TC,10014369,Loomis ,1/6/2022,266.61,Unrestricted Shared Services,Other Contractual Services - PS,A01361449,110100,731400,266.61
J. F. Drake State CC & TC,10014370,Madison Turf Keeper ,1/6/2022,375,Unrestricted Shared Services,Other Contractual Services - PS,A02281987,110100,731400,375
J. F. Drake State CC & TC,10014371,Move Digital LLC ,1/6/2022,2000,Unrestricted Shared Services,Other Contractual Services - PS,A01390957,110100,731400,2000
J. F. Drake State CC & TC,10014372,North Alabama Engraving Stamp Company ,1/6/2022,323.1,Unrestricted Shared Services,Printing and Binding - OOS,A01353127,110100,751300,323.1
J. F. Drake State CC & TC,10014373,Cancelled Check,1/6/2022,0,,,,,,
J. F. Drake State CC & TC,10014374,RP Media ,1/6/2022,1295.25,Unrestricted Shared Services,Advertising & Promotions - OOS,A01390666,110100,750100,1295.25
J. F. Drake State CC & TC,10014375,Schindler Elevator Corporation ,1/6/2022,1481.91,Unrestricted Shared Services,Other Contractual Services - PS,A01368740,110100,731400,1481.91
J. F. Drake State CC & TC,10014376,Sims Patricia,1/6/2022,170,Unrestricted Shared Services,Other Travel Expenses - IS,A01346009,110100,710800,170
J. F. Drake State CC & TC,10014377,Waste Management ,1/6/2022,1055.38,Unrestricted Shared Services,Waste Disposal - UC,A01349513,110100,740700,1055.38
J. F. Drake State CC & TC,10014378,Xerox Corporation ,1/6/2022,151.55,Unrestricted Shared Services,Operating Lease Payments,A00010379,110100,751014,151.55
J. F. Drake State CC & TC,10014379,Xerox Corporation ,1/6/2022,1893.43,Unrestricted Shared Services,Other Contractual Services - PS,A00010379,110100,731400,1893.43
J. F. Drake State CC & TC,10014380,Alabama Media ,1/13/2022,704.62,Unrestricted Shared Services,Advertising & Promotions - OOS,A01352303,110100,750100,704.62
J. F. Drake State CC & TC,10014381,Credentials Solutions LLC ,1/13/2022,32.5,Unrestricted Shared Services,Transcript Expense,A01349460,110100,751017,32.5
J. F. Drake State CC & TC,10014382,Dynamic Security Inc ,1/13/2022,2798.12,Unrestricted Shared Services,Other Contractual Services - PS,A01352847,110100,731400,2798.12
J. F. Drake State CC & TC,10014383,EverMoore LLC ,1/13/2022,2872.5,Unrestricted Shared Services,Other Professional Fees - PS,A02318700,110100,731600,2872.5
J. F. Drake State CC & TC,10014384,Farmers Insurance ,1/13/2022,274,Unrestricted Shared Services,Insurance and Bonding - PS,A01361447,110100,730900,274
J. F. Drake State CC & TC,10014385,Herc Rentals Inc ,1/13/2022,1293,Unrestricted Shared Services,Short-Term Equipment Rentals - OOS,A01361435,110100,751600,1293
J. F. Drake State CC & TC,10014386,Holston Gases Inc ,1/13/2022,250,Unrestricted Shared Services,Materials and Supplies - MS,A01349484,110100,720500,250
J. F. Drake State CC & TC,10014387,Huntsville City Schools ,1/13/2022,2500,Unrestricted Shared Services,Advertising & Promotions - OOS,A01349426,110100,750100,2500
J. F. Drake State CC & TC,10014388,Huntsville City Schools ,1/13/2022,300,Unrestricted Shared Services,Advertising & Promotions - OOS,A01349426,110100,750100,300
J. F. Drake State CC & TC,10014389,Huntsville Utilities ,1/13/2022,488.3,Unrestricted Shared Services,Water & Sewer - UC,A01361021,110100,740600,25792.3
J. F. Drake State CC & TC,10014389,Huntsville Utilities ,1/13/2022,2146.66,Unrestricted Shared Services,Gas & Heating Fuel - UC,A01361021,110100,740300,25792.3
J. F. Drake State CC & TC,10014389,Huntsville Utilities ,1/13/2022,23157.34,Unrestricted Shared Services,Electricity - UC,A01361021,110100,740200,25792.3
J. F. Drake State CC & TC,10014390,Lowe's Company ,1/13/2022,391.6,Unrestricted Shared Services,Maintenance & Repairs  - OOS,A01349933,110100,751100,391.6
J. F. Drake State CC & TC,10014391,Office Depot ,1/13/2022,109.82,Unrestricted Shared Services,Materials and Supplies - MS,A01349944,110100,720500,109.82
J. F. Drake State CC & TC,10014392,RP Media ,1/13/2022,13765.67,Unrestricted Shared Services,Advertising & Promotions - OOS,A01390666,110100,750100,13765.67
J. F. Drake State CC & TC,10014393,The Pitney Bowes Bank Inc ,1/13/2022,593.9,Unrestricted Shared Services,Short-Term Equipment Rentals - OOS,A01353026,110100,751600,593.9
J. F. Drake State CC & TC,10014394,WideOpen West Inc ,1/13/2022,3042.41,Unrestricted Shared Services,Internet - UC,A01365312,110100,740400,3042.41
J. F. Drake State CC & TC,10014395,Xerox Corporation ,1/13/2022,1276.22,Unrestricted Shared Services,Other Contractual Services - PS,A00010379,110100,731400,1276.22
J. F. Drake State CC & TC,10014396,Alabama Community College System ,1/19/2022,2932.08,Unrestricted Shared Services,Bond Reserve Fee Expense - OOS,A01352158,110100,750400,2932.08
J. F. Drake State CC & TC,10014397,Ballcorps LLC ,1/19/2022,3500,Unrestricted Shared Services,Advertising & Promotions - OOS,A01391262,110100,750100,3500
J. F. Drake State CC & TC,10014398,Chamber of Commerce Huntsville/Madison County ,1/19/2022,1500,Unrestricted Shared Services,Advertising & Promotions - OOS,A01371349,110100,750100,1500
J. F. Drake State CC & TC,10014399,Student Payment,1/19/2022,938.9,Unrestricted Shared Services,Clearing Refunds - SP,A01367627,110100,230200,938.9
J. F. Drake State CC & TC,10014400,Ecampus.com ,1/19/2022,9057.23,Unrestricted Shared Services,Bookstore - AP,A02206556,110100,210100,9057.23
J. F. Drake State CC & TC,10014401,Krueger International Inc ,1/19/2022,3282.13,Unexpended Plant Shared Services,Equipment - non capitalized - MS,A01350396,910100,720300,3282.13
J. F. Drake State CC & TC,10014402,Office Depot ,1/19/2022,73.06,Unrestricted Shared Services,Materials and Supplies - MS,A01349944,110100,720500,73.06
J. F. Drake State CC & TC,10014403,Pioneer Management Consulting LLC ,1/19/2022,10000,Unrestricted Shared Services,Other Contractual Services - PS,A02354196,110100,731400,10000
J. F. Drake State CC & TC,10014404,The Valley Weekly ,1/19/2022,4160,Unrestricted Shared Services,Advertising & Promotions - OOS,A01373784,110100,750100,4160
J. F. Drake State CC & TC,10014405,W W Grainger Inc ,1/19/2022,5947.31,Unrestricted Shared Services,Materials and Supplies - MS,A01349927,110100,720500,5947.31
J. F. Drake State CC & TC,10014406,Walker 360 Inc ,1/19/2022,631.5,Unrestricted Shared Services,Advertising & Promotions - OOS,A00010193,110100,750100,1865.37
J. F. Drake State CC & TC,10014406,Walker 360 Inc ,1/19/2022,1233.87,Unrestricted Shared Services,Printing and Binding - OOS,A00010193,110100,751300,1865.37
J. F. Drake State CC & TC,10014407,Alabama Lawnmaster Inc ,1/24/2022,3095,Unrestricted Shared Services,Other Contractual Services - PS,A01361443,110100,731400,3095
J. F. Drake State CC & TC,10014408,Dynamic Security Inc ,1/24/2022,2909.92,Unrestricted Shared Services,Other Contractual Services - PS,A01352847,110100,731400,2909.92
J. F. Drake State CC & TC,10014409,Erwin Duane,1/24/2022,129,Unrestricted Shared Services,Student 3rd Party Reimbursement-AR,A01393854,110100,130902,129
J. F. Drake State CC & TC,10014410,In10sity Interactive LLC ,1/24/2022,299,Unrestricted Shared Services,Other Contractual Services - PS,A01349757,110100,731400,299
J. F. Drake State CC & TC,10014411,PMT Publishing ,1/24/2022,1940,Unrestricted Shared Services,Advertising & Promotions - OOS,A00010334,110100,750100,1940
J. F. Drake State CC & TC,10014412,Red Sage Communications Inc ,1/24/2022,17500,Unrestricted Shared Services,Other Contractual Services - PS,A02241195,110100,731400,17500
J. F. Drake State CC & TC,10014413,W W Grainger Inc ,1/24/2022,1957.51,Unrestricted Shared Services,Maintenance & Repairs  - OOS,A01349927,110100,751100,1957.51
J. F. Drake State CC & TC,10014414,Walker 360 Inc ,1/24/2022,624.9,Unrestricted Shared Services,Printing and Binding - OOS,A00010193,110100,751300,624.9
J. F. Drake State CC & TC,10014415,Waste Management ,1/24/2022,1046.88,Unrestricted Shared Services,Waste Disposal - UC,A01349513,110100,740700,1046.88
J. F. Drake State CC & TC,10014416,Cancelled Check,1/26/2022,0,,,,,,
J. F. Drake State CC & TC,10014417,Cook's Pest Control ,1/27/2022,331,Unrestricted Shared Services,Other Contractual Services - PS,A01349917,110100,731400,331
J. F. Drake State CC & TC,10014418,Garner Marcus,1/27/2022,435,Unrestricted Shared Services,Maintenance & Repairs  - OOS,A00381365,110100,751100,435
J. F. Drake State CC & TC,10014419,Rosetta James Foundation ,1/27/2022,2500,Unrestricted Shared Services,Advertising & Promotions - OOS,A01367028,110100,750100,2500
J. F. Drake State CC & TC,10014420,Payroll Payable,1/31/2022,20.8,Payroll Clearing Fund,Payroll Payable,A01361446,120000,221100,20.8
J. F. Drake State CC & TC,10014421,Payroll Payable,1/31/2022,294.5,Payroll Clearing Fund,Payroll Payable,A01365311,120000,221100,294.5
J. F. Drake State CC & TC,10014422,Payroll Payable,1/31/2022,813.33,Payroll Clearing Fund,Payroll Payable,A01361041,120000,221100,813.33
J. F. Drake State CC & TC,10014423,Payroll Payable,1/31/2022,542.79,Payroll Clearing Fund,Payroll Payable,A01351192,120000,221100,542.79
J. F. Drake State CC & TC,10014424,Payroll Payable,1/31/2022,49.91,Payroll Clearing Fund,Payroll Payable,A01350437,120000,221100,49.91
J. F. Drake State CC & TC,10014425,Payroll Payable,1/31/2022,2676,Payroll Clearing Fund,Payroll Payable,A00329038,120000,221170,2676
J. F. Drake State CC & TC,10014426,Payroll Payable,1/31/2022,550,Payroll Clearing Fund,Payroll Payable,A01373546,120000,221100,550
J. F. Drake State CC & TC,10014427,Payroll Payable,1/31/2022,257.5,Payroll Clearing Fund,Payroll Payable,A01351200,120000,221100,257.5
J. F. Drake State CC & TC,10014428,Payroll Payable,1/31/2022,580,Payroll Clearing Fund,Payroll Payable,A01350006,120000,221100,580
J. F. Drake State CC & TC,10014429,Payroll Payable,1/31/2022,69.6,Payroll Clearing Fund,Payroll Payable,A01349451,120000,221100,69.6
J. F. Drake State CC & TC,10014430,Alabama A & M University Foundation ,2/1/2022,1200,Unrestricted Shared Services,Advertising & Promotions - OOS,A01365364,110100,750100,1200
J. F. Drake State CC & TC,10014431,Castle Branch Inc. ,2/1/2022,173.5,Unrestricted Shared Services,Other - AP,A01361458,110100,211200,173.5
J. F. Drake State CC & TC,10014432,Community Foundation of Greater Huntsville ,2/1/2022,2500,Endowment Funds,Investment Transaction Expense - PS,A02358646,610110,731000,2500
J. F. Drake State CC & TC,10014433,Wilson Cleaners ,2/1/2022,220,Unrestricted Shared Services,Other Contractual Services - PS,A01368739,110100,731400,220
J. F. Drake State CC & TC,10014434,Dynamic Security Inc ,2/1/2022,2742.04,Unrestricted Shared Services,Other Contractual Services - PS,A01352847,110100,731400,2742.04
J. F. Drake State CC & TC,10014435,Lowe's ,2/1/2022,151.45,Unrestricted Shared Services,Materials and Supplies - MS,A01351841,110100,720500,151.45
J. F. Drake State CC & TC,10014436,Lowe's Company ,2/1/2022,33.03,Unrestricted Shared Services,Maintenance & Repairs  - OOS,A01349933,110100,751100,33.03
J. F. Drake State CC & TC,10014437,The College Board ,2/1/2022,1267.5,Unrestricted Shared Services,Testing Expense,A00010329,110100,751015,1267.5
J. F. Drake State CC & TC,10014438,W W Grainger Inc ,2/1/2022,172.5,Unrestricted Shared Services,Materials and Supplies - MS,A01349927,110100,720500,172.5
J. F. Drake State CC & TC,10014439,Werle Enterprises LLC ,2/1/2022,617.08,Unrestricted Shared Services,Materials and Supplies - MS,A01350424,110100,720500,617.08
J. F. Drake State CC & TC,10014440,Xerox Corporation ,2/1/2022,1253.31,Unrestricted Shared Services,Taxes & Licenses - OOS,A00010379,110100,751800,1253.31
J. F. Drake State CC & TC,10014441,Student Payment,2/2/2022,483,Unrestricted Shared Services,Clearing Refunds - SP,A01396056,110100,230200,483
J. F. Drake State CC & TC,10014442,Student Payment,2/2/2022,1596,Unrestricted Shared Services,Clearing Refunds - SP,A00311519,110100,230200,1596
J. F. Drake State CC & TC,10014443,Student Payment,2/2/2022,161,Unrestricted Shared Services,Clearing Refunds - SP,A00034757,110100,230200,161
J. F. Drake State CC & TC,10014444,Student Payment,2/2/2022,483,Unrestricted Shared Services,Clearing Refunds - SP,A02257743,110100,230200,483
J. F. Drake State CC & TC,10014445,Student Payment,2/2/2022,4091,Unrestricted Shared Services,Clearing Refunds - SP,A00297614,110100,230200,4091
J. F. Drake State CC & TC,10014446,Student Payment,2/2/2022,483,Unrestricted Shared Services,Clearing Refunds - SP,A01336737,110100,230200,483
J. F. Drake State CC & TC,10014447,Student Payment,2/2/2022,805,Unrestricted Shared Services,Clearing Refunds - SP,A02332323,110100,230200,805
J. F. Drake State CC & TC,10014448,Student Payment,2/2/2022,161,Unrestricted Shared Services,Clearing Refunds - SP,A00364539,110100,230200,161
J. F. Drake State CC & TC,10014449,Student Payment,2/2/2022,644,Unrestricted Shared Services,Clearing Refunds - SP,A02263499,110100,230200,644
J. F. Drake State CC & TC,10014450,Student Payment,2/2/2022,483,Unrestricted Shared Services,Clearing Refunds - SP,A01353491,110100,230200,483
J. F. Drake State CC & TC,10014451,Anderson Tashiba,2/3/2022,390.48,Unrestricted Shared Services,Student 3rd Party Reimbursement-AR,A00351878,110100,130902,390.48
J. F. Drake State CC & TC,10014452,Assessment Technologies Institute LLC ,2/3/2022,16833.41,Unrestricted Shared Services,Other - AP,A01349452,110100,211200,16833.41
J. F. Drake State CC & TC,10014453,Castle Branch Inc. ,2/3/2022,237.5,Unrestricted Shared Services,Other - AP,A01361458,110100,211200,237.5
J. F. Drake State CC & TC,10014454,Loomis ,2/3/2022,282.5,Unrestricted Shared Services,Other Contractual Services - PS,A01361449,110100,731400,282.5
J. F. Drake State CC & TC,10014455,Move Digital LLC ,2/3/2022,2000,Unrestricted Shared Services,Other Contractual Services - PS,A01390957,110100,731400,2000
J. F. Drake State CC & TC,10014456,Speakin' Out News ,2/3/2022,4000,Unrestricted Shared Services,Advertising & Promotions - OOS,A01353125,110100,750100,4000
J. F. Drake State CC & TC,10014457,Xerox Corporation ,2/3/2022,10068.99,Unrestricted Shared Services,Other Contractual Services - PS,A00010379,110100,731400,10068.99
J. F. Drake State CC & TC,10014458,Assessment Technologies Institute LLC ,2/10/2022,15900,Unrestricted Shared Services,Other - AP,A01349452,110100,211200,15900
J. F. Drake State CC & TC,10014459,CDW LLC ,2/10/2022,232.2,Unrestricted Shared Services,Materials and Supplies - MS,A00010372,110100,720500,232.2
J. F. Drake State CC & TC,10014460,Continental Service Group Inc ,2/10/2022,187.8,Unrestricted Shared Services,Debt Collection Expense - PS,A01350629,110100,730600,187.8
J. F. Drake State CC & TC,10014461,Credentials Solutions LLC ,2/10/2022,27.5,Unrestricted Shared Services,Transcript Expense,A01349460,110100,751017,27.5
J. F. Drake State CC & TC,10014462,Dynamic Security Inc ,2/10/2022,5749.9,Unrestricted Shared Services,Other Contractual Services - PS,A01352847,110100,731400,5749.9
J. F. Drake State CC & TC,10014463,Safety Kleen Systems Inc ,2/10/2022,610,Unrestricted Shared Services,Waste Disposal - UC,A01350341,110100,740700,610
J. F. Drake State CC & TC,10014464,Terrell Technical Services Inc ,2/10/2022,8500,Unexpended Plant Shared Services,Other Professional Fees - PS,A01352669,910100,731600,8500
J. F. Drake State CC & TC,10014465,WideOpen West Inc ,2/10/2022,3060.98,Unrestricted Shared Services,Internet - UC,A01365312,110100,740400,3060.98
J. F. Drake State CC & TC,10014466,Xerox Corporation ,2/10/2022,152.28,Unrestricted Shared Services,Operating Lease Payments,A00010379,110100,751014,152.28
J. F. Drake State CC & TC,10014467,Student Payment,2/15/2022,1030,Unrestricted Shared Services,Clearing Refunds - SP,A02358670,110100,230200,1030
J. F. Drake State CC & TC,10014468,Alabama Lawnmaster Inc ,2/16/2022,3095,Unrestricted Shared Services,Other Contractual Services - PS,A01361443,110100,731400,3095
J. F. Drake State CC & TC,10014469,Alabama Media ,2/16/2022,268.54,Unrestricted Shared Services,Advertising & Promotions - OOS,A01352303,110100,750100,268.54
J. F. Drake State CC & TC,10014470,Cool Stuff by Austin ,2/16/2022,200,Unrestricted Shared Services,Other Professional Fees - PS,A01373729,110100,731600,200
J. F. Drake State CC & TC,10014471,Ecampus.com ,2/16/2022,1579.2,Unrestricted Shared Services,Books (Non-Library),A02206556,110100,751020,1579.2
J. F. Drake State CC & TC,10014472,Federal Express Corporation ,2/16/2022,9.48,Unrestricted Shared Services,Freight - OOS,A00010219,110100,750600,9.48
J. F. Drake State CC & TC,10014473,Huntsville Utilities ,2/16/2022,938.3,Unrestricted Shared Services,Water & Sewer - UC,A01361021,110100,740600,31000.79
J. F. Drake State CC & TC,10014473,Huntsville Utilities ,2/16/2022,3556.65,Unrestricted Shared Services,Gas & Heating Fuel - UC,A01361021,110100,740300,31000.79
J. F. Drake State CC & TC,10014473,Huntsville Utilities ,2/16/2022,26505.84,Unrestricted Shared Services,Electricity - UC,A01361021,110100,740200,31000.79
J. F. Drake State CC & TC,10014474,Pioneer Management Consulting LLC ,2/16/2022,5000,Unrestricted Shared Services,Other Contractual Services - PS,A02354196,110100,731400,5000
J. F. Drake State CC & TC,10014475,RP Media ,2/16/2022,6429.15,Unrestricted Shared Services,Advertising & Promotions - OOS,A01390666,110100,750100,6429.15
J. F. Drake State CC & TC,10014476,Xerox Corporation ,2/16/2022,24.45,Unrestricted Shared Services,Maintenance & Repairs  - OOS,A00010379,110100,751100,24.45
J. F. Drake State CC & TC,10014477,Cancelled Check,2/17/2022,0,,,,,,
J. F. Drake State CC & TC,10014478,Cancelled Check,2/17/2022,0,,,,,,
J. F. Drake State CC & TC,10014479,Student Payment,2/23/2022,300,Unrestricted Shared Services,Clearing Refunds - SP,A00294902,110100,230200,300
J. F. Drake State CC & TC,10014480,Student Payment,2/23/2022,300,Unrestricted Shared Services,Clearing Refunds - SP,A00254165,110100,230200,300
J. F. Drake State CC & TC,10014481,Student Payment,2/23/2022,300,Unrestricted Shared Services,Clearing Refunds - SP,A02304227,110100,230200,300
J. F. Drake State CC & TC,10014482,Student Payment,2/23/2022,300,Unrestricted Shared Services,Clearing Refunds - SP,A00278479,110100,230200,300
J. F. Drake State CC & TC,10014483,Student Payment,2/23/2022,300,Unrestricted Shared Services,Clearing Refunds - SP,A00340362,110100,230200,300
J. F. Drake State CC & TC,10014484,Student Payment,2/23/2022,300,Unrestricted Shared Services,Clearing Refunds - SP,A00349041,110100,230200,300
J. F. Drake State CC & TC,10014485,ACT Inc ,2/24/2022,10.5,Unrestricted Shared Services,Testing Expense,A00010341,110100,751015,10.5
J. F. Drake State CC & TC,10014486,Castle Branch Inc. ,2/24/2022,102.75,Unrestricted Shared Services,Other - AP,A01361458,110100,211200,102.75
J. F. Drake State CC & TC,10014487,Chamber of Commerce Huntsville/Madison County ,2/24/2022,981.88,Unrestricted Shared Services,Memberships - PS,A01371349,110100,731300,981.88
J. F. Drake State CC & TC,10014488,City of Huntsville ,2/24/2022,2500,Unrestricted Shared Services,Advertising & Promotions - OOS,A01361043,110100,750100,2500
J. F. Drake State CC & TC,10014489,Cobbs Allen & Hall Inc. ,2/24/2022,4571.87,Unrestricted Shared Services,Insurance and Bonding - PS,A01350468,110100,730900,4571.87
J. F. Drake State CC & TC,10014490,Cook's Pest Control ,2/24/2022,331,Unrestricted Shared Services,Other Contractual Services - PS,A01349917,110100,731400,331
J. F. Drake State CC & TC,10014491,Dynamic Security Inc ,2/24/2022,5679.94,Unrestricted Shared Services,Other Contractual Services - PS,A01352847,110100,731400,5679.94
J. F. Drake State CC & TC,10014492,Ecampus.com ,2/24/2022,35539.67,Unrestricted Shared Services,Bookstore - AP,A02206556,110100,210100,35539.67
J. F. Drake State CC & TC,10014493,Holston Gases Inc ,2/24/2022,953.75,Unrestricted Shared Services,Materials and Supplies - MS,A01349484,110100,720500,953.75
J. F. Drake State CC & TC,10014494,In10sity Interactive LLC ,2/24/2022,299,Unrestricted Shared Services,Other Contractual Services - PS,A01349757,110100,731400,299
J. F. Drake State CC & TC,10014495,Office Depot ,2/24/2022,261.37,Unrestricted Shared Services,Materials and Supplies - MS,A01349944,110100,720500,261.37
J. F. Drake State CC & TC,10014496,Waste Management ,2/24/2022,1046.88,Unrestricted Shared Services,Waste Disposal - UC,A01349513,110100,740700,1046.88
J. F. Drake State CC & TC,10014497,Wilson Cleaners ,2/24/2022,114.1,Unrestricted Shared Services,Other Contractual Services - PS,A01368739,110100,731400,114.1
J. F. Drake State CC & TC,10014498,Xerox Corporation ,2/24/2022,1276.22,Unrestricted Shared Services,Other Contractual Services - PS,A00010379,110100,731400,1276.22
J. F. Drake State CC & TC,10014499,Payroll Payable,2/28/2022,20.8,Payroll Clearing Fund,Payroll Payable,A01361446,120000,221100,20.8
J. F. Drake State CC & TC,10014500,Payroll Payable,2/28/2022,294.5,Payroll Clearing Fund,Payroll Payable,A01365311,120000,221100,294.5
J. F. Drake State CC & TC,10014501,Payroll Payable,2/28/2022,843.33,Payroll Clearing Fund,Payroll Payable,A01361041,120000,221100,843.33
J. F. Drake State CC & TC,10014502,Payroll Payable,2/28/2022,542.79,Payroll Clearing Fund,Payroll Payable,A01351192,120000,221100,542.79
J. F. Drake State CC & TC,10014503,Payroll Payable,2/28/2022,49.91,Payroll Clearing Fund,Payroll Payable,A01350437,120000,221100,49.91
J. F. Drake State CC & TC,10014504,Payroll Payable,2/28/2022,2676,Payroll Clearing Fund,Payroll Payable,A00329038,120000,221170,2676
J. F. Drake State CC & TC,10014505,Payroll Payable,2/28/2022,550,Payroll Clearing Fund,Payroll Payable,A01373546,120000,221100,550
J. F. Drake State CC & TC,10014506,Payroll Payable,2/28/2022,257.5,Payroll Clearing Fund,Payroll Payable,A01351200,120000,221100,257.5
J. F. Drake State CC & TC,10014507,Payroll Payable,2/28/2022,205,Payroll Clearing Fund,Payroll Payable,A01350006,120000,221100,205
J. F. Drake State CC & TC,10014508,Payroll Payable,2/28/2022,87,Payroll Clearing Fund,Payroll Payable,A01349451,120000,221100,104.4
J. F. Drake State CC & TC,10014508,Verified Holdings LLC ,2/28/2022,17.4,Unrestricted Shared Services,Other Contractual Services - PS,A01349451,110100,731400,104.4
J. F. Drake State CC & TC,10014509,Price Renea,3/2/2022,371,Unrestricted Shared Services,Group Health Insurance - FB,A01360922,110100,620400,371
J. F. Drake State CC & TC,10014510,Cart-King International ,3/3/2022,6098,Bookstore - Shared Services,Furniture and Equip $5K - $25K - CE,A02357922,310100,791100,6098
J. F. Drake State CC & TC,10014511,Cengage Learning Inc. ,3/3/2022,129,Unrestricted Shared Services,Testing Fees - TF,A01349597,110100,512200,129
J. F. Drake State CC & TC,10014512,Chamber of Commerce Huntsville/Madison County ,3/3/2022,825,Unrestricted Shared Services,Advertising & Promotions - OOS,A01371349,110100,750100,825
J. F. Drake State CC & TC,10014513,Cool Stuff by Austin ,3/3/2022,200,Unrestricted Shared Services,Other Professional Fees - PS,A01373729,110100,731600,200
J. F. Drake State CC & TC,10014514,Heartland Campus Solutions Ecsi ,3/3/2022,2139.54,Unrestricted Shared Services,Other Contractual Services - PS,A01352701,110100,731400,2139.54
J. F. Drake State CC & TC,10014515,Holston Gases Inc ,3/3/2022,44.75,Unrestricted Shared Services,Materials and Supplies - MS,A01349484,110100,720500,44.75
J. F. Drake State CC & TC,10014516,Loomis ,3/3/2022,277.38,Unrestricted Shared Services,Other Contractual Services - PS,A01361449,110100,731400,277.38
J. F. Drake State CC & TC,10014517,Lowe's Company ,3/3/2022,820.56,Unrestricted Shared Services,Maintenance & Repairs  - OOS,A01349933,110100,751100,820.56
J. F. Drake State CC & TC,10014518,Move Digital LLC ,3/3/2022,2000,Unrestricted Shared Services,Other Contractual Services - PS,A01390957,110100,731400,2000
J. F. Drake State CC & TC,10014519,Sam's Club ,3/3/2022,66.48,Unrestricted Shared Services,Culinary Consumables,A01349507,110100,720200,66.48
J. F. Drake State CC & TC,10014520,Sims Patricia,3/3/2022,75.34,Unrestricted Shared Services,Other Travel Expenses - IS,A01346009,110100,710800,75.34
J. F. Drake State CC & TC,10014521,W W Grainger Inc ,3/3/2022,659.06,Unrestricted Shared Services,Materials and Supplies - MS,A01349927,110100,720500,659.06
J. F. Drake State CC & TC,10014522,Waste Management ,3/3/2022,382.81,Unrestricted Shared Services,Waste Disposal - UC,A01349513,110100,740700,382.81
J. F. Drake State CC & TC,10014523,Xerox Corporation ,3/3/2022,42.01,Unrestricted Shared Services,Maintenance & Repairs  - OOS,A00010379,110100,751100,42.01
J. F. Drake State CC & TC,10014524,Cancelled Check,3/3/2022,0,,,,,,
J. F. Drake State CC & TC,10014525,Cancelled Check,3/3/2022,0,,,,,,
J. F. Drake State CC & TC,10014526,Cancelled Check,3/3/2022,0,,,,,,
J. F. Drake State CC & TC,10014527,Cancelled Check,3/3/2022,0,,,,,,
J. F. Drake State CC & TC,10014528,Cancelled Check,3/3/2022,0,,,,,,
J. F. Drake State CC & TC,10014529,Cancelled Check,3/3/2022,0,,,,,,
J. F. Drake State CC & TC,10014530,Cancelled Check,3/3/2022,0,,,,,,
J. F. Drake State CC & TC,10014531,Cancelled Check,3/3/2022,0,,,,,,
J. F. Drake State CC & TC,10014532,Cancelled Check,3/3/2022,0,,,,,,
J. F. Drake State CC & TC,10014533,Cancelled Check,3/3/2022,0,,,,,,
J. F. Drake State CC & TC,10014534,Cancelled Check,3/3/2022,0,,,,,,
J. F. Drake State CC & TC,10014535,Cancelled Check,3/3/2022,0,,,,,,
J. F. Drake State CC & TC,10014536,Cancelled Check,3/3/2022,0,,,,,,
J. F. Drake State CC & TC,10014537,Alabama Media ,3/10/2022,847.84,Unrestricted Shared Services,Advertising & Promotions - OOS,A01352303,110100,750100,847.84
J. F. Drake State CC & TC,10014538,Student Payment,3/10/2022,540,Unrestricted Shared Services,Clearing Refunds - SP,A01367895,110100,230200,540
J. F. Drake State CC & TC,10014539,Ballcorps LLC ,3/10/2022,2500,Unrestricted Shared Services,Advertising & Promotions - OOS,A01391262,110100,750100,2500
J. F. Drake State CC & TC,10014540,Credentials Solutions LLC ,3/10/2022,42.5,Unrestricted Shared Services,Transcript Expense,A01349460,110100,751017,42.5
J. F. Drake State CC & TC,10014541,Dynamic Security Inc ,3/10/2022,5609.99,Unrestricted Shared Services,Other Contractual Services - PS,A01352847,110100,731400,5609.99
J. F. Drake State CC & TC,10014542,Office Depot ,3/10/2022,361.1,Unrestricted Shared Services,Materials and Supplies - MS,A01349944,110100,720500,361.1
J. F. Drake State CC & TC,10014543,RP Media ,3/10/2022,3017.35,Unrestricted Shared Services,Advertising & Promotions - OOS,A01390666,110100,750100,3017.35
J. F. Drake State CC & TC,10014544,VIA Inc ,3/10/2022,1133.55,Unexpended Plant Shared Services,Equipment - non capitalized - MS,A01361051,910100,720300,1133.55
J. F. Drake State CC & TC,10014545,W W Grainger Inc ,3/10/2022,931.69,Unrestricted Shared Services,Materials and Supplies - MS,A01349927,110100,720500,931.69
J. F. Drake State CC & TC,10014546,WideOpen West Inc ,3/10/2022,3104.37,Unrestricted Shared Services,Internet - UC,A01365312,110100,740400,3104.37
J. F. Drake State CC & TC,10014547,Xerox Corporation ,3/10/2022,149.31,Unrestricted Shared Services,Operating Lease Payments,A00010379,110100,751014,149.31
J. F. Drake State CC & TC,10014548,Alabama Lawnmaster Inc ,3/16/2022,3095,Unrestricted Shared Services,Other Contractual Services - PS,A01361443,110100,731400,3095
J. F. Drake State CC & TC,10014549,Ecampus.com ,3/16/2022,550.8,Unrestricted Shared Services,Books (Non-Library),A02206556,110100,751020,550.8
J. F. Drake State CC & TC,10014550,Federal Express Corporation ,3/16/2022,13.17,Unrestricted Shared Services,Freight - OOS,A00010219,110100,750600,13.17
J. F. Drake State CC & TC,10014551,Horizon Industrial Services ,3/16/2022,2972,Unrestricted Shared Services,Maintenance & Repairs  - OOS,A02370660,110100,751100,2972
J. F. Drake State CC & TC,10014552,Huntsville Beautification Board ,3/16/2022,25,Unrestricted Shared Services,Grants  Awards and Prizes - OOS,A02368802,110100,750800,25
J. F. Drake State CC & TC,10014553,Huntsville Utilities ,3/16/2022,641.86,Unrestricted Shared Services,Water & Sewer - UC,A01361021,110100,740600,27656.29
J. F. Drake State CC & TC,10014553,Huntsville Utilities ,3/16/2022,4505.09,Unrestricted Shared Services,Gas & Heating Fuel - UC,A01361021,110100,740300,27656.29
J. F. Drake State CC & TC,10014553,Huntsville Utilities ,3/16/2022,22509.34,Unrestricted Shared Services,Electricity - UC,A01361021,110100,740200,27656.29
J. F. Drake State CC & TC,10014554,Big City Supplies Inc ,3/24/2022,2800,Unrestricted Shared Services,Other Contractual Services - PS,A02352944,110100,731400,2800
J. F. Drake State CC & TC,10014555,Cook's Pest Control ,3/24/2022,331,Unrestricted Shared Services,Other Contractual Services - PS,A01349917,110100,731400,331
J. F. Drake State CC & TC,10014556,Cool Stuff by Austin ,3/24/2022,600,Unrestricted Shared Services,Other Professional Fees - PS,A01373729,110100,731600,600
J. F. Drake State CC & TC,10014557,Dynamic Security Inc ,3/24/2022,5225.27,Unrestricted Shared Services,Other Contractual Services - PS,A01352847,110100,731400,5225.27
J. F. Drake State CC & TC,10014558,National Office Furniture Inc ,3/24/2022,5883.5,Unexpended Plant Shared Services,Equipment - non capitalized - MS,A01349650,910100,720300,5883.5
J. F. Drake State CC & TC,10014559,Russell Welding Company ,3/24/2022,4000,Unrestricted Shared Services,Maintenance & Repairs  - OOS,A02355706,110100,751100,4000
J. F. Drake State CC & TC,10014560,Waste Management ,3/24/2022,1046.88,Unrestricted Shared Services,Waste Disposal - UC,A01349513,110100,740700,1046.88
J. F. Drake State CC & TC,10014561,Wilson Cleaners ,3/24/2022,100,Unrestricted Shared Services,Other Contractual Services - PS,A01368739,110100,731400,100
J. F. Drake State CC & TC,10014562,Xerox Corporation ,3/24/2022,1276.22,Unrestricted Shared Services,Other Contractual Services - PS,A00010379,110100,731400,1276.22
J. F. Drake State CC & TC,10014563,Payroll Payable,3/31/2022,20.8,Payroll Clearing Fund,Payroll Payable,A01361446,120000,221100,20.8
J. F. Drake State CC & TC,10014564,Payroll Payable,3/31/2022,294.5,Payroll Clearing Fund,Payroll Payable,A01365311,120000,221100,294.5
J. F. Drake State CC & TC,10014565,Payroll Payable,3/31/2022,853.33,Payroll Clearing Fund,Payroll Payable,A01361041,120000,221100,853.33
J. F. Drake State CC & TC,10014566,Payroll Payable,3/31/2022,542.79,Payroll Clearing Fund,Payroll Payable,A01351192,120000,221100,542.79
J. F. Drake State CC & TC,10014567,Payroll Payable,3/31/2022,49.91,Payroll Clearing Fund,Payroll Payable,A01350437,120000,221100,49.91
J. F. Drake State CC & TC,10014568,Payroll Payable,3/31/2022,2676,Payroll Clearing Fund,Payroll Payable,A00329038,120000,221170,2676
J. F. Drake State CC & TC,10014569,Payroll Payable,3/31/2022,550,Payroll Clearing Fund,Payroll Payable,A01373546,120000,221100,550
J. F. Drake State CC & TC,10014570,Payroll Payable,3/31/2022,257.5,Payroll Clearing Fund,Payroll Payable,A01351200,120000,221100,257.5
J. F. Drake State CC & TC,10014571,Payroll Payable,3/31/2022,215,Payroll Clearing Fund,Payroll Payable,A01350006,120000,221100,215
J. F. Drake State CC & TC,10014572,Cancelled Check,3/31/2022,0,,,,,,
J. F. Drake State CC & TC,10014573,Verified Holdings LLC ,3/31/2022,17.4,Unrestricted Shared Services,Other Contractual Services - PS,A01349451,110100,731400,17.4
J. F. Drake State CC & TC,10014574,Alabama Lawnmaster Inc ,4/1/2022,2250,Unrestricted Shared Services,Other Contractual Services - PS,A01361443,110100,731400,2250
J. F. Drake State CC & TC,10014575,Training for Business & Industry Network ,4/1/2022,100,Unrestricted Shared Services,Memberships - PS,A01349872,110100,731300,100
J. F. Drake State CC & TC,10014576,Dynamic Security Inc ,4/1/2022,2630.14,Unrestricted Shared Services,Other Contractual Services - PS,A01352847,110100,731400,2630.14
J. F. Drake State CC & TC,10014577,EverMoore LLC ,4/1/2022,2872.5,Unrestricted Shared Services,Other Professional Fees - PS,A02318700,110100,731600,2872.5
J. F. Drake State CC & TC,10014578,Jackson Painting ,4/1/2022,1200,Unrestricted Shared Services,Maintenance & Repairs  - OOS,A02276313,110100,751100,1200
J. F. Drake State CC & TC,10014579,Lowe's Company ,4/1/2022,949.34,Unrestricted Shared Services,Maintenance & Repairs  - OOS,A01349933,110100,751100,949.34
J. F. Drake State CC & TC,10014580,Oak Hall Industries LP ,4/1/2022,146.95,Unrestricted Shared Services,Materials and Supplies - MS,A01350799,110100,720500,146.95
J. F. Drake State CC & TC,10014581,Schindler Elevator Corporation ,4/1/2022,1481.91,Unrestricted Shared Services,Other Contractual Services - PS,A01368740,110100,731400,1481.91
J. F. Drake State CC & TC,10014582,4Imprint Inc ,4/7/2022,3959.58,Unrestricted Shared Services,Advertising & Promotions - OOS,A01349844,110100,750100,3959.58
J. F. Drake State CC & TC,10014583,Bubbly LLC ,4/7/2022,1500,Unrestricted Shared Services,Advertising & Promotions - OOS,A02374823,110100,750100,1500
J. F. Drake State CC & TC,10014584,Castle Branch Inc. ,4/7/2022,668.75,Unrestricted Shared Services,Other - AP,A01361458,110100,211200,668.75
J. F. Drake State CC & TC,10014585,In10sity Interactive LLC ,4/7/2022,299,Unrestricted Shared Services,Other Contractual Services - PS,A01349757,110100,731400,299
J. F. Drake State CC & TC,10014586,Loomis ,4/7/2022,291.14,Unrestricted Shared Services,Other Contractual Services - PS,A01361449,110100,731400,291.14
J. F. Drake State CC & TC,10014587,Move Digital LLC ,4/7/2022,2000,Unrestricted Shared Services,Other Contractual Services - PS,A01390957,110100,731400,2000
J. F. Drake State CC & TC,10014588,National Office Furniture Inc ,4/7/2022,4584,Unrestricted Shared Services,Equipment - non capitalized - MS,A01349650,110100,720300,12382
J. F. Drake State CC & TC,10014588,National Office Furniture Inc ,4/7/2022,7798,Unrestricted Shared Services,Furniture and Equip $5K - $25K - CE,A01349650,110100,791100,12382
J. F. Drake State CC & TC,10014589,Office Depot ,4/7/2022,194.04,Unrestricted Shared Services,Materials and Supplies - MS,A01349944,110100,720500,194.04
J. F. Drake State CC & TC,10014590,Xerox Corporation ,4/7/2022,27.74,Unrestricted Shared Services,Maintenance & Repairs  - OOS,A00010379,110100,751100,27.74
J. F. Drake State CC & TC,10014591,4Imprint Inc ,4/13/2022,2578.28,Unrestricted Shared Services,Advertising & Promotions - OOS,A01349844,110100,750100,2578.28
J. F. Drake State CC & TC,10014592,ACT Inc ,4/13/2022,10.5,Unrestricted Shared Services,Testing Expense,A00010341,110100,751015,10.5
J. F. Drake State CC & TC,10014593,Alabama Media ,4/13/2022,419.67,Unrestricted Shared Services,Advertising & Promotions - OOS,A01352303,110100,750100,419.67
J. F. Drake State CC & TC,10014594,Conditioned Air Solutions LLC ,4/13/2022,14750,Renewal & Replacement Shared Svcs,Maintenance & Repairs  - OOS,A01349679,920100,751100,14750
J. F. Drake State CC & TC,10014595,Cook's Pest Control ,4/13/2022,2453,Other Auxiliary- Fund Raising,Other Contractual Services - PS,A01349917,370150,731400,2453
J. F. Drake State CC & TC,10014596,Credentials Solutions LLC ,4/13/2022,30,Unrestricted Shared Services,Transcript Expense,A01349460,110100,751017,30
J. F. Drake State CC & TC,10014597,Crown Trophy ,4/13/2022,274.05,Unrestricted Shared Services,Grants  Awards and Prizes - OOS,A02377389,110100,750800,274.05
J. F. Drake State CC & TC,10014598,Dynamic Security Inc ,4/13/2022,2546.18,Unrestricted Shared Services,Other Contractual Services - PS,A01352847,110100,731400,2546.18
J. F. Drake State CC & TC,10014599,Farmers Insurance ,4/13/2022,148,Unrestricted Shared Services,Insurance and Bonding - PS,A01361447,110100,730900,148
J. F. Drake State CC & TC,10014600,Federal Express Corporation ,4/13/2022,28.99,Unrestricted Shared Services,Freight - OOS,A00010219,110100,750600,28.99
J. F. Drake State CC & TC,10014601,HRS Services LLC ,4/13/2022,32800,Unrestricted Shared Services,Other Professional Fees - PS,A02327234,110100,731600,32800
J. F. Drake State CC & TC,10014602,Huntsville Fence Company ,4/13/2022,5400,Unrestricted Shared Services,Materials and Supplies - MS,A02372329,110100,720500,5400
J. F. Drake State CC & TC,10014603,Huntsville Utilities ,4/13/2022,602.9,Unrestricted Shared Services,Water & Sewer - UC,A01361021,110100,740600,23118.14
J. F. Drake State CC & TC,10014603,Huntsville Utilities ,4/13/2022,2883.33,Unrestricted Shared Services,Gas & Heating Fuel - UC,A01361021,110100,740300,23118.14
J. F. Drake State CC & TC,10014603,Huntsville Utilities ,4/13/2022,19631.91,Unrestricted Shared Services,Electricity - UC,A01361021,110100,740200,23118.14
J. F. Drake State CC & TC,10014604,Cancelled Check,4/13/2022,0,,,,,,
J. F. Drake State CC & TC,10014605,Jell's 4 Ever BBQ ,4/13/2022,3000,Other Auxiliary- Fund Raising,Culinary Consumables,A02373559,370150,720200,3000
J. F. Drake State CC & TC,10014606,Koorsen Fire & Security ,4/13/2022,640.11,Unrestricted Shared Services,Other Contractual Services - PS,A01361469,110100,731400,640.11
J. F. Drake State CC & TC,10014607,LED Orange LLC ,4/13/2022,2800,Other Auxiliary- Fund Raising,Other Contractual Services - PS,A02298294,370150,731400,2800
J. F. Drake State CC & TC,10014608,Long Alvin,4/13/2022,175,Other Auxiliary- Fund Raising,Other Professional Fees - PS,A02376380,370150,731600,175
J. F. Drake State CC & TC,10014609,Noble Chefs LLC ,4/13/2022,3250,Other Auxiliary- Fund Raising,Culinary Consumables,A01385634,370150,720200,3250
J. F. Drake State CC & TC,10014610,RP Media ,4/13/2022,4242.35,Unrestricted Shared Services,Advertising & Promotions - OOS,A01390666,110100,750100,4242.35
J. F. Drake State CC & TC,10014611,The Jackson Conference Center LLC ,4/13/2022,2616.88,Unrestricted Shared Services,Short-Term Building Rentals - OOS,A01349548,110100,751500,2616.88
J. F. Drake State CC & TC,10014612,VIA Inc ,4/13/2022,1133.55,Unrestricted Shared Services,Equipment - non capitalized - MS,A01361051,110100,720300,1133.55
J. F. Drake State CC & TC,10014613,Wells Printing Company Inc ,4/13/2022,247,Unrestricted Shared Services,Printing and Binding - OOS,A01350075,110100,751300,247
J. F. Drake State CC & TC,10014614,White Rosalind,4/13/2022,175,Other Auxiliary- Fund Raising,Other Professional Fees - PS,A00259114,370150,731600,175
J. F. Drake State CC & TC,10014615,WideOpen West Inc ,4/13/2022,3114.13,Unrestricted Shared Services,Internet - UC,A01365312,110100,740400,3114.13
J. F. Drake State CC & TC,10014616,Xerox Corporation ,4/13/2022,141.77,Unrestricted Shared Services,Operating Lease Payments,A00010379,110100,751014,141.77
J. F. Drake State CC & TC,10014617,All Needz Rental Center All,4/19/2022,6694.78,Other Auxiliary- Fund Raising,Short-Term Equipment Rentals - OOS,A00180024,370150,751600,6694.78
J. F. Drake State CC & TC,10014618,The All-Alabama Academic Team Foundation ,4/19/2022,1800,Unrestricted Shared Services,Participant Costs-Other,A00010422,110100,751013,1800
J. F. Drake State CC & TC,10014619,ACCS Public Relations Association ,4/21/2022,100,Unrestricted Shared Services,Registration Fees- IS,A00010209,110100,710700,100
J. F. Drake State CC & TC,10014620,Alabama A & M University ,4/21/2022,800,Unrestricted Shared Services,Advertising & Promotions - OOS,A01353130,110100,750100,800
J. F. Drake State CC & TC,10014621,Alabama Community College System President's Association ,4/21/2022,300,Unrestricted Shared Services,Registration Fees- IS,A01377799,110100,710700,300
J. F. Drake State CC & TC,10014622,Alabama Lawnmaster Inc ,4/21/2022,18215,Unrestricted Shared Services,Other Contractual Services - PS,A01361443,110100,731400,18215
J. F. Drake State CC & TC,10014623,All Needz Rental Center All,4/21/2022,565.71,Other Auxiliary- Fund Raising,Short-Term Equipment Rentals - OOS,A00180024,370150,751600,565.71
J. F. Drake State CC & TC,10014624,Baker Elijah,4/21/2022,27,Unrestricted Shared Services,Conus (meals) - IS,A01865819,110100,710200,27
J. F. Drake State CC & TC,10014625,Conditioned Air Solutions LLC ,4/21/2022,45657.9,Renewal & Replacement Shared Svcs,Maintenance & Repairs  - OOS,A01349679,920100,751100,45657.9
J. F. Drake State CC & TC,10014626,Destination Huntsville ,4/21/2022,800,Other Auxiliary- Fund Raising,Other Contractual Services - PS,A02370297,370150,731400,800
J. F. Drake State CC & TC,10014627,Dynamic Security Inc ,4/21/2022,5686.94,Unrestricted Shared Services,Other Contractual Services - PS,A01352847,110100,731400,5686.94
J. F. Drake State CC & TC,10014628,Hand Arendall Harrison Sale LLC ,4/21/2022,360,Unrestricted Shared Services,Legal Services - PS,A00010175,110100,731200,360
J. F. Drake State CC & TC,10014629,J F Drake State Community College & Technical College ,4/21/2022,40,Unrestricted Shared Services,Other Travel Expenses - IS,A00010180,110100,710800,40
J. F. Drake State CC & TC,10014630,LED Orange LLC ,4/21/2022,2800,Unrestricted Shared Services,Graduation Expense,A02298294,110100,751016,2800
J. F. Drake State CC & TC,10014631,Mitchell 1 ,4/21/2022,1120.98,Unrestricted Shared Services,Computer Software(non capital) - MS,A01350828,110100,720100,1120.98
J. F. Drake State CC & TC,10014632,Oak Hall Industries LP ,4/21/2022,297.01,Unrestricted Shared Services,Graduation Expense,A01350799,110100,751016,297.01
J. F. Drake State CC & TC,10014633,Pataky J,4/21/2022,666.81,Unrestricted Shared Services,Graduation Expense,A01356750,110100,751016,666.81
J. F. Drake State CC & TC,10014634,The Valley Weekly ,4/21/2022,500,Other Auxiliary- Fund Raising,Advertising & Promotions - OOS,A01373784,370150,750100,500
J. F. Drake State CC & TC,10014635,United Site Services of Mississippi LLC ,4/21/2022,6976.25,Other Auxiliary- Fund Raising,Short-Term Equipment Rentals - OOS,A02375081,370150,751600,6976.25
J. F. Drake State CC & TC,10014636,Waste Management ,4/21/2022,1046.88,Unrestricted Shared Services,Waste Disposal - UC,A01349513,110100,740700,1046.88
J. F. Drake State CC & TC,10014637,Xerox Corporation ,4/21/2022,1276.22,Unrestricted Shared Services,Other Contractual Services - PS,A00010379,110100,731400,1276.22
J. F. Drake State CC & TC,10014638,Banks Natalia,4/22/2022,105,Unrestricted Shared Services,Participant Costs-Stipends,A01349061,110100,751010,105
J. F. Drake State CC & TC,10014639,Baugher Christian,4/22/2022,105,Unrestricted Shared Services,Participant Costs-Stipends,A00807001,110100,751010,105
J. F. Drake State CC & TC,10014640,Brown Crystal,4/22/2022,105,Unrestricted Shared Services,Participant Costs-Stipends,A01369845,110100,751010,105
J. F. Drake State CC & TC,10014641,Defelice Trevon,4/22/2022,105,Unrestricted Shared Services,Participant Costs-Stipends,A01397503,110100,751010,105
J. F. Drake State CC & TC,10014642,Gillon Morgan,4/22/2022,105,Unrestricted Shared Services,Participant Costs-Stipends,A01332920,110100,751010,105
J. F. Drake State CC & TC,10014643,Mangruem Edderick,4/22/2022,105,Unrestricted Shared Services,Participant Costs-Stipends,A00325385,110100,751010,105
J. F. Drake State CC & TC,10014644,Powell Lashanda,4/22/2022,105,Unrestricted Shared Services,Participant Costs-Stipends,A01340783,110100,751010,105
J. F. Drake State CC & TC,10014645,Sapp Madisson,4/22/2022,105,Unrestricted Shared Services,Participant Costs-Stipends,A02257734,110100,751010,105
J. F. Drake State CC & TC,10014646,Thomas Luke,4/22/2022,105,Unrestricted Shared Services,Participant Costs-Stipends,A02283350,110100,751010,105
J. F. Drake State CC & TC,10014647,Huntsville Business Journal ,4/22/2022,1500,Unrestricted Shared Services,Advertising & Promotions - OOS,A02374995,110100,750100,1500
J. F. Drake State CC & TC,10014648,Cancelled Check,4/22/2022,0,,,,,,
J. F. Drake State CC & TC,10014649,Moore Mark,4/22/2022,27,Unrestricted Shared Services,Conus (meals) - IS,A02336439,110100,710200,27
J. F. Drake State CC & TC,10014650,Chamber of Commerce Huntsville/Madison County ,4/25/2022,1000,Unrestricted Shared Services,Advertising & Promotions - OOS,A01371349,110100,750100,1000
J. F. Drake State CC & TC,10014651,Cool Stuff by Austin ,4/25/2022,200,Unrestricted Shared Services,Other Professional Fees - PS,A01373729,110100,731600,200
J. F. Drake State CC & TC,10014652,Lamont Williams Photography ,4/25/2022,350,Unrestricted Shared Services,Other Contractual Services - PS,A02376822,110100,731400,350
J. F. Drake State CC & TC,10014653,North Alabama Engraving Stamp Company ,4/25/2022,81,Unrestricted Shared Services,Materials and Supplies - MS,A01353127,110100,720500,81
J. F. Drake State CC & TC,10014654,State of Alabama ,4/25/2022,48.5,Unrestricted Shared Services,Taxes & Licenses - OOS,A00010262,110100,751800,48.5
J. F. Drake State CC & TC,10014655,Wells Printing Company Inc ,4/25/2022,894,Other Auxiliary- Fund Raising,Printing and Binding - OOS,A01350075,370150,751300,894
J. F. Drake State CC & TC,10014656,Cancelled Check,4/28/2022,0,,,,,,
J. F. Drake State CC & TC,10014657,Cancelled Check,4/29/2022,0,,,,,,
J. F. Drake State CC & TC,10014658,Payroll Payable,4/29/2022,20.8,Payroll Clearing Fund,Payroll Payable,A01361446,120000,221100,20.8
J. F. Drake State CC & TC,10014659,Payroll Payable,4/29/2022,865,Payroll Clearing Fund,Payroll Payable,A01361041,120000,221100,865
J. F. Drake State CC & TC,10014660,Payroll Payable,4/29/2022,542.79,Payroll Clearing Fund,Payroll Payable,A01351192,120000,221100,542.79
J. F. Drake State CC & TC,10014661,Payroll Payable,4/29/2022,49.91,Payroll Clearing Fund,Payroll Payable,A01350437,120000,221100,49.91
J. F. Drake State CC & TC,10014662,Payroll Payable,4/29/2022,2676,Payroll Clearing Fund,Payroll Payable,A00329038,120000,221170,2676
J. F. Drake State CC & TC,10014663,Payroll Payable,4/29/2022,550,Payroll Clearing Fund,Payroll Payable,A01373546,120000,221100,550
J. F. Drake State CC & TC,10014664,Payroll Payable,4/29/2022,257.5,Payroll Clearing Fund,Payroll Payable,A01351200,120000,221100,257.5
J. F. Drake State CC & TC,10014665,Payroll Payable,4/29/2022,205,Payroll Clearing Fund,Payroll Payable,A01350006,120000,221100,205
J. F. Drake State CC & TC,10014666,Payroll Payable,4/29/2022,104.4,Payroll Clearing Fund,Payroll Payable,A01349451,120000,221100,104.4
J. F. Drake State CC & TC,10014667,Castle Branch Inc. ,4/29/2022,1757.5,Unrestricted Shared Services,Other - AP,A01361458,110100,211200,1757.5
J. F. Drake State CC & TC,10014668,Cook's Pest Control ,4/29/2022,331,Unrestricted Shared Services,Other Contractual Services - PS,A01349917,110100,731400,331
J. F. Drake State CC & TC,10014669,Oak Hall Industries LP ,4/29/2022,3109.1,Unrestricted Shared Services,Graduation Expense,A01350799,110100,751016,3109.1
J. F. Drake State CC & TC,10014670,Sam's Club ,4/29/2022,132.53,Other Auxiliary- Career Fair,Culinary Consumables,A01349507,370156,720200,132.53
J. F. Drake State CC & TC,10014671,United Site Services of Mississippi LLC ,4/29/2022,150,Other Auxiliary- Fund Raising,Short-Term Equipment Rentals - OOS,A02375081,370150,751600,150
J. F. Drake State CC & TC,10014672,Walker 360 Inc ,4/29/2022,209,Unrestricted Shared Services,Printing and Binding - OOS,A00010193,110100,751300,209
J. F. Drake State CC & TC,10014673,Continental Service Group Inc ,5/4/2022,93.6,Unrestricted Shared Services,Debt Collection Expense - PS,A01350629,110100,730600,93.6
J. F. Drake State CC & TC,10014674,Dynamic Security Inc ,5/4/2022,2909.92,Unrestricted Shared Services,Other Contractual Services - PS,A01352847,110100,731400,2909.92
J. F. Drake State CC & TC,10014675,Farmers Insurance ,5/4/2022,2938,Unrestricted Shared Services,Insurance and Bonding - PS,A01361447,110100,730900,2938
J. F. Drake State CC & TC,10014676,Farrell Corporation ,5/4/2022,1770.5,Unrestricted Shared Services,Materials and Supplies - MS,A01349771,110100,720500,1770.5
J. F. Drake State CC & TC,10014677,Kimball International Brands Inc. ,5/4/2022,9635.6,Unrestricted Shared Services,Equipment - non capitalized - MS,A02354464,110100,720300,9635.6
J. F. Drake State CC & TC,10014678,Loomis ,5/4/2022,291.14,Unrestricted Shared Services,Other Contractual Services - PS,A01361449,110100,731400,291.14
J. F. Drake State CC & TC,10014679,Lowe's Company ,5/4/2022,388.4,Unrestricted Shared Services,Maintenance & Repairs  - OOS,A01349933,110100,751100,388.4
J. F. Drake State CC & TC,10014680,National Office Furniture Inc ,5/4/2022,3682,Unrestricted Shared Services,Equipment - non capitalized - MS,A01349650,110100,720300,9315.5
J. F. Drake State CC & TC,10014680,National Office Furniture Inc ,5/4/2022,5633.5,Unexpended Plant Shared Services,Equipment - non capitalized - MS,A01349650,910100,720300,9315.5
J. F. Drake State CC & TC,10014681,Oak Hall Industries LP ,5/4/2022,1445,Unrestricted Shared Services,Graduation Expense,A01350799,110100,751016,1445
J. F. Drake State CC & TC,10014682,The Hendley Group ,5/4/2022,3843.75,Other Auxiliary- Fund Raising,Other Contractual Services - PS,A02314724,370150,731400,3843.75
J. F. Drake State CC & TC,10014683,Walker 360 Inc ,5/4/2022,1036,Unrestricted Shared Services,Graduation Expense,A00010193,110100,751016,1036
J. F. Drake State CC & TC,10014684,Xerox Corporation ,5/4/2022,22.94,Unrestricted Shared Services,Maintenance & Repairs  - OOS,A00010379,110100,751100,22.94
J. F. Drake State CC & TC,10014685,Alabama Lawnmaster Inc ,5/11/2022,3095,Unrestricted Shared Services,Other Contractual Services - PS,A01361443,110100,731400,3095
J. F. Drake State CC & TC,10014686,Alabama Media ,5/11/2022,403.83,Unrestricted Shared Services,Advertising & Promotions - OOS,A01352303,110100,750100,403.83
J. F. Drake State CC & TC,10014687,Baker Elijah,5/11/2022,53.12,Unrestricted Shared Services,Other Travel Expenses - IS,A01865819,110100,710800,53.12
J. F. Drake State CC & TC,10014688,Ballcorps LLC ,5/11/2022,2500,Unrestricted Shared Services,Advertising & Promotions - OOS,A01391262,110100,750100,2500
J. F. Drake State CC & TC,10014689,CDW LLC ,5/11/2022,3510,Unrestricted Shared Services,Service Contracts on Equipment -OOS,A00010372,110100,751400,3510
J. F. Drake State CC & TC,10014690,Cool Stuff by Austin ,5/11/2022,800,Unrestricted Shared Services,Other Professional Fees - PS,A01373729,110100,731600,800
J. F. Drake State CC & TC,10014691,Dynamic Security Inc ,5/11/2022,2881.94,Unrestricted Shared Services,Other Contractual Services - PS,A01352847,110100,731400,2881.94
J. F. Drake State CC & TC,10014692,Green Tiffany,5/11/2022,300,Unrestricted Shared Services,Overnight (non tax per diem)- IS,A00243041,110100,710600,300
J. F. Drake State CC & TC,10014693,HESI - ELSEVIER ,5/11/2022,453,Unrestricted Shared Services,Other - AP,A01353108,110100,211200,453
J. F. Drake State CC & TC,10014694,Huntsville Emergency Medical Services Inc ,5/11/2022,125,Other Auxiliary- Fund Raising,Other Professional Fees - PS,A01361086,370150,731600,125
J. F. Drake State CC & TC,10014695,Huntsville Metro Black Chamber of Commerce ,5/11/2022,450,Unrestricted Shared Services,Memberships - PS,A02386212,110100,731300,450
J. F. Drake State CC & TC,10014696,Huntsville Utilities ,5/11/2022,605.1,Unrestricted Shared Services,Water & Sewer - UC,A01361021,110100,740600,21280.24
J. F. Drake State CC & TC,10014696,Huntsville Utilities ,5/11/2022,1567.46,Unrestricted Shared Services,Gas & Heating Fuel - UC,A01361021,110100,740300,21280.24
J. F. Drake State CC & TC,10014696,Huntsville Utilities ,5/11/2022,19107.68,Unrestricted Shared Services,Electricity - UC,A01361021,110100,740200,21280.24
J. F. Drake State CC & TC,10014697,In10sity Interactive LLC ,5/11/2022,299,Unrestricted Shared Services,Other Contractual Services - PS,A01349757,110100,731400,299
J. F. Drake State CC & TC,10014698,Kings III of America LLC ,5/11/2022,270,Unrestricted Shared Services,Maintenance & Repairs  - OOS,A02280881,110100,751100,270
J. F. Drake State CC & TC,10014699,Medalcraft Mint Inc ,5/11/2022,1522.3,Unrestricted Shared Services,Graduation Expense,A01373765,110100,751016,1522.3
J. F. Drake State CC & TC,10014700,Move Digital LLC ,5/11/2022,2000,Unrestricted Shared Services,Other Contractual Services - PS,A01390957,110100,731400,2000
J. F. Drake State CC & TC,10014701,North Alabama Engraving Stamp Company ,5/11/2022,553,Other Auxiliary- Fund Raising,Materials and Supplies - MS,A01353127,370150,720500,553
J. F. Drake State CC & TC,10014702,Oak Hall Industries LP ,5/11/2022,2144.27,Unrestricted Shared Services,Graduation Expense,A01350799,110100,751016,2144.27
J. F. Drake State CC & TC,10014703,State of Alabama ,5/11/2022,12730.24,Unrestricted Shared Services,Bond Reserve Fee Expense - OOS,A00010262,110100,750400,265716.41
J. F. Drake State CC & TC,10014703,State of Alabama ,5/11/2022,79062.17,Unrestricted Shared Services,Other Professional Fees - PS,A00010262,110100,731600,265716.41
J. F. Drake State CC & TC,10014703,State of Alabama ,5/11/2022,173924,Unrestricted Shared Services,Tuition - Waived - TF,A00010262,110100,510200,265716.41
J. F. Drake State CC & TC,10014704,WideOpen West Inc ,5/11/2022,3110.96,Unrestricted Shared Services,Internet - UC,A01365312,110100,740400,3110.96
J. F. Drake State CC & TC,10014705,Wilson Cleaners ,5/11/2022,80,Unrestricted Shared Services,Graduation Expense,A01368739,110100,751016,80
J. F. Drake State CC & TC,10014706,Xerox Corporation ,5/11/2022,11579.34,Unrestricted Shared Services,Other Contractual Services - PS,A00010379,110100,731400,11579.34
J. F. Drake State CC & TC,10014707,RP Media ,5/16/2022,3092.35,Unrestricted Shared Services,Advertising & Promotions - OOS,A01390666,110100,750100,3092.35
J. F. Drake State CC & TC,10014708,Wells Printing Company Inc ,5/16/2022,177.5,Unrestricted Shared Services,Printing and Binding - OOS,A01350075,110100,751300,3447.5
J. F. Drake State CC & TC,10014708,Wells Printing Company Inc ,5/16/2022,3270,Unrestricted Shared Services,Graduation Expense,A01350075,110100,751016,3447.5
J. F. Drake State CC & TC,10014709,Albert's Flowers ,5/18/2022,975,Unrestricted Shared Services,Graduation Expense,A02302614,110100,751016,975
J. F. Drake State CC & TC,10014710,ALLDATA LLC ,5/18/2022,975,Unrestricted Shared Services,Computer Software(non capital) - MS,A01353128,110100,720100,975
J. F. Drake State CC & TC,10014711,Bell Angela,5/18/2022,300,Unrestricted Shared Services,Gasoline & Oil - Motor Veh - OOS,A00196556,110100,750700,300
J. F. Drake State CC & TC,10014712,Burritt Museum Association ,5/18/2022,2500,Unrestricted Shared Services,Advertising & Promotions - OOS,A01350052,110100,750100,2500
J. F. Drake State CC & TC,10014713,Student Payment,5/18/2022,42.76,Unrestricted Shared Services,Clearing Refunds - SP,A01367627,110100,230200,42.76
J. F. Drake State CC & TC,10014714,Dynamic Security Inc ,5/18/2022,2630.12,Unrestricted Shared Services,Other Contractual Services - PS,A01352847,110100,731400,2630.12
J. F. Drake State CC & TC,10014715,Girls Inc. Huntsville ,5/18/2022,1000,Unrestricted Shared Services,Advertising & Promotions - OOS,A02370662,110100,750100,1000
J. F. Drake State CC & TC,10014716,LED Orange LLC ,5/18/2022,2800,Unrestricted Shared Services,Graduation Expense,A02298294,110100,751016,2800
J. F. Drake State CC & TC,10014717,National Technical Honor Society ,5/18/2022,97,Unrestricted Shared Services,Graduation Expense,A01350901,110100,751016,217
J. F. Drake State CC & TC,10014717,National Technical Honor Society ,5/18/2022,120,Unrestricted Shared Services,Participant Costs-Other,A01350901,110100,751013,217
J. F. Drake State CC & TC,10014718,OJs Photography ,5/18/2022,250,Unrestricted Shared Services,Graduation Expense,A02296656,110100,751016,250
J. F. Drake State CC & TC,10014719,PMT Publishing ,5/18/2022,2887,Unrestricted Shared Services,Advertising & Promotions - OOS,A00010334,110100,750100,2887
J. F. Drake State CC & TC,10014720,Safety Kleen Systems Inc ,5/18/2022,610,Unrestricted Shared Services,Waste Disposal - UC,A01350341,110100,740700,610
J. F. Drake State CC & TC,10014721,Southern Assoc of Colleges & Schools ,5/18/2022,6362,Unrestricted Shared Services,Memberships - PS,A00010251,110100,731300,6362
J. F. Drake State CC & TC,10014722,Walker Rachel,5/18/2022,3500,Unrestricted Shared Services,Instructional Salaries(Temp/PT)-SW,A00126181,110100,615100,3500
J. F. Drake State CC & TC,10014723,Waste Management ,5/18/2022,1046.88,Unrestricted Shared Services,Waste Disposal - UC,A01349513,110100,740700,1046.88
J. F. Drake State CC & TC,10014724,Wells Printing Company Inc ,5/18/2022,588,Unrestricted Shared Services,Graduation Expense,A01350075,110100,751016,588
J. F. Drake State CC & TC,10014725,Student Payment,5/19/2022,320.68,Unrestricted Shared Services,Clearing Refunds - SP,A01367627,110100,230200,320.68
J. F. Drake State CC & TC,10014726,Aramark Services Inc ,5/25/2022,3933.21,Unrestricted Shared Services,Graduation Expense,A01352694,110100,751016,3933.21
J. F. Drake State CC & TC,10014727,Cad/cam Solutions Inc ,5/25/2022,1800,Unrestricted Shared Services,Computer Software(non capital) - MS,A02200810,110100,720100,1800
J. F. Drake State CC & TC,10014728,Castle Branch Inc. ,5/25/2022,32,Unrestricted Shared Services,Other - AP,A01361458,110100,211200,32
J. F. Drake State CC & TC,10014729,Cool Stuff by Austin ,5/25/2022,400,Unrestricted Shared Services,Other Professional Fees - PS,A01373729,110100,731600,400
J. F. Drake State CC & TC,10014730,Student Payment,5/25/2022,788.9,Unrestricted Shared Services,Clearing Refunds - SP,A01367627,110100,230200,788.9
J. F. Drake State CC & TC,10014731,Dynamic Security Inc ,5/25/2022,2350.32,Unrestricted Shared Services,Other Contractual Services - PS,A01352847,110100,731400,2350.32
J. F. Drake State CC & TC,10014732,Ecampus.com ,5/25/2022,1404.82,Unrestricted Shared Services,Bookstore - AP,A02206556,110100,210100,1404.82
J. F. Drake State CC & TC,10014733,Garner Marcus,5/25/2022,5000,Other Auxiliary- Fund Raising,Other Contractual Services - PS,A00381365,370150,731400,5000
J. F. Drake State CC & TC,10014734,Huntsville Emergency Medical Services Inc ,5/25/2022,425,Unrestricted Shared Services,Graduation Expense,A01361086,110100,751016,425
J. F. Drake State CC & TC,10014735,In10sity Interactive LLC ,5/25/2022,299,Unrestricted Shared Services,Other Contractual Services - PS,A01349757,110100,731400,299
J. F. Drake State CC & TC,10014736,Koorsen Fire & Security ,5/25/2022,603.3,Unrestricted Shared Services,Maintenance & Repairs  - OOS,A01361469,110100,751100,603.3
J. F. Drake State CC & TC,10014737,Cancelled Check,5/25/2022,0,,,,,,
J. F. Drake State CC & TC,10014738,Pioneer Management Consulting LLC ,5/25/2022,5000,Unrestricted Shared Services,Other Contractual Services - PS,A02354196,110100,731400,5000
J. F. Drake State CC & TC,10014739,Schindler Elevator Corporation ,5/25/2022,81.51,Unrestricted Shared Services,Other Contractual Services - PS,A01368740,110100,731400,81.51
J. F. Drake State CC & TC,10014740,Sims Patricia,5/25/2022,167.27,Unrestricted Shared Services,Culinary Consumables,A01346009,110100,720200,529.03
J. F. Drake State CC & TC,10014740,Sims Patricia,5/25/2022,361.76,Unrestricted Shared Services,Other Travel Expenses - OS,A01346009,110100,715600,529.03
J. F. Drake State CC & TC,10014741,Trav-Ad Signs ,5/25/2022,1450,Other Auxiliary- Fund Raising,Printing and Binding - OOS,A01349657,370150,751300,1450
J. F. Drake State CC & TC,10014742,Xerox Corporation ,5/25/2022,1276.22,Unrestricted Shared Services,Other Contractual Services - PS,A00010379,110100,731400,1276.22
J. F. Drake State CC & TC,10014743,Cook's Pest Control ,5/26/2022,331,Unrestricted Shared Services,Other Contractual Services - PS,A01349917,110100,731400,331
J. F. Drake State CC & TC,10014744,Garner Marcus,5/26/2022,450,Other Auxiliary- Fund Raising,Other Contractual Services - PS,A00381365,370150,731400,450
J. F. Drake State CC & TC,10014745,Pioneer Management Consulting LLC ,5/26/2022,981.16,Unrestricted Shared Services,Other Contractual Services - PS,A02354196,110100,731400,981.16
J. F. Drake State CC & TC,10014746,Alabama A & M University ,5/27/2022,2800,Unrestricted Shared Services,Graduation Expense,A01353130,110100,751016,2800
J. F. Drake State CC & TC,10014747,Mullins Special Occasions ,5/27/2022,975,Unrestricted Shared Services,Graduation Expense,A01365313,110100,751016,975
J. F. Drake State CC & TC,10014748,Payroll Payable,5/31/2022,20.8,Payroll Clearing Fund,Payroll Payable,A01361446,120000,221100,20.8
J. F. Drake State CC & TC,10014749,Payroll Payable,5/31/2022,915,Payroll Clearing Fund,Payroll Payable,A01361041,120000,221100,915
J. F. Drake State CC & TC,10014750,Payroll Payable,5/31/2022,542.79,Payroll Clearing Fund,Payroll Payable,A01351192,120000,221100,542.79
J. F. Drake State CC & TC,10014751,Payroll Payable,5/31/2022,49.91,Payroll Clearing Fund,Payroll Payable,A01350437,120000,221100,49.91
J. F. Drake State CC & TC,10014752,Payroll Payable,5/31/2022,2676,Payroll Clearing Fund,Payroll Payable,A00329038,120000,221170,2676
J. F. Drake State CC & TC,10014753,Payroll Payable,5/31/2022,550,Payroll Clearing Fund,Payroll Payable,A01373546,120000,221100,550
J. F. Drake State CC & TC,10014754,Payroll Payable,5/31/2022,257.5,Payroll Clearing Fund,Payroll Payable,A01351200,120000,221100,257.5
J. F. Drake State CC & TC,10014755,Payroll Payable,5/31/2022,205,Payroll Clearing Fund,Payroll Payable,A01350006,120000,221100,205
J. F. Drake State CC & TC,10014756,Payroll Payable,5/31/2022,69.6,Payroll Clearing Fund,Payroll Payable,A01349451,120000,221100,69.6
J. F. Drake State CC & TC,10014757,ACT Inc ,6/2/2022,104,Unrestricted Shared Services,Testing Expense,A00010341,110100,751015,104
J. F. Drake State CC & TC,10014758,Castle Branch Inc. ,6/2/2022,224,Unrestricted Shared Services,Other - AP,A01361458,110100,211200,224
J. F. Drake State CC & TC,10014759,Dynamic Security Inc ,6/2/2022,2350.32,Unrestricted Shared Services,Other Contractual Services - PS,A01352847,110100,731400,2350.32
J. F. Drake State CC & TC,10014760,Safety Kleen Systems Inc ,6/2/2022,202.41,Unrestricted Shared Services,Waste Disposal - UC,A01350341,110100,740700,202.41
J. F. Drake State CC & TC,10014761,Wells Printing Company Inc ,6/2/2022,164,Unrestricted Shared Services,Printing and Binding - OOS,A01350075,110100,751300,164
J. F. Drake State CC & TC,10014762,Wilson Cleaners ,6/2/2022,68.84,Unrestricted Shared Services,Other Contractual Services - PS,A01368739,110100,731400,68.84
J. F. Drake State CC & TC,10014763,Xerox Corporation ,6/2/2022,16.9,Unrestricted Shared Services,Maintenance & Repairs  - OOS,A00010379,110100,751100,16.9
J. F. Drake State CC & TC,10014764,CDW LLC ,6/8/2022,1694.56,Unrestricted Shared Services,Computer Software(non capital) - MS,A00010372,110100,720100,1694.56
J. F. Drake State CC & TC,10014765,Dynamic Security Inc ,6/8/2022,2839.97,Unrestricted Shared Services,Other Contractual Services - PS,A01352847,110100,731400,2839.97
J. F. Drake State CC & TC,10014766,Federal Express Corporation ,6/8/2022,8.32,Unrestricted Shared Services,Freight - OOS,A00010219,110100,750600,8.32
J. F. Drake State CC & TC,10014767,Loomis ,6/8/2022,295.72,Unrestricted Shared Services,Other Contractual Services - PS,A01361449,110100,731400,295.72
J. F. Drake State CC & TC,10014768,Lowe's Company ,6/8/2022,115.7,Unrestricted Shared Services,Maintenance & Repairs  - OOS,A01349933,110100,751100,928.62
J. F. Drake State CC & TC,10014768,Lowe's Company ,6/8/2022,812.92,Unrestricted Shared Services,Graduation Expense,A01349933,110100,751016,928.62
J. F. Drake State CC & TC,10014769,Madison County Health Department ,6/8/2022,85,Unrestricted Shared Services,Taxes & Licenses - OOS,A01374937,110100,751800,85
J. F. Drake State CC & TC,10014770,National Office Furniture Inc ,6/8/2022,10876,Unexpended Plant Shared Services,Equipment - non capitalized - MS,A01349650,910100,720300,10876
J. F. Drake State CC & TC,10014771,RP Media ,6/8/2022,3092.35,Unrestricted Shared Services,Advertising & Promotions - OOS,A01390666,110100,750100,3092.35
J. F. Drake State CC & TC,10014772,Staples Business Advantage ,6/8/2022,255.32,Unrestricted Shared Services,Materials and Supplies - MS,A01374940,110100,720500,255.32
J. F. Drake State CC & TC,10014773,State of Alabama ,6/8/2022,5824,Unrestricted Shared Services,Bond Reserve Fee Expense - OOS,A00010262,110100,750400,36099
J. F. Drake State CC & TC,10014773,State of Alabama ,6/8/2022,30275,Unrestricted Shared Services,Tuition - Waived - TF,A00010262,110100,510200,36099
J. F. Drake State CC & TC,10014774,Waste Management ,6/8/2022,672.95,Unrestricted Shared Services,Waste Disposal - UC,A01349513,110100,740700,672.95
J. F. Drake State CC & TC,10014775,Wilson Cleaners ,6/8/2022,700,Unrestricted Shared Services,Graduation Expense,A01368739,110100,751016,700
J. F. Drake State CC & TC,10014776,Gillon Morgan,6/14/2022,175,Unrestricted Shared Services,Participant Costs-Stipends,A01332920,110100,751010,175
J. F. Drake State CC & TC,10014777,Business Council of Alabama ,6/14/2022,1000,Unrestricted Shared Services,Memberships - PS,A00010307,110100,731300,1000
J. F. Drake State CC & TC,10014778,Dynamic Security Inc ,6/14/2022,2868.07,Unrestricted Shared Services,Other Contractual Services - PS,A01352847,110100,731400,2868.07
J. F. Drake State CC & TC,10014779,Ecampus.com ,6/14/2022,37519.85,Unrestricted Shared Services,Bookstore - AP,A02206556,110100,210100,37519.85
J. F. Drake State CC & TC,10014780,EDUCAUSE Inc ,6/14/2022,231,Unrestricted Shared Services,Taxes & Licenses - OOS,A00010265,110100,751800,231
J. F. Drake State CC & TC,10014781,Huntsville Committee of 100 ,6/14/2022,1400,Unrestricted Shared Services,Memberships - PS,A01353129,110100,731300,1400
J. F. Drake State CC & TC,10014782,Huntsville Utilities ,6/14/2022,569.24,Unrestricted Shared Services,Gas & Heating Fuel - UC,A01361021,110100,740300,22075.65
J. F. Drake State CC & TC,10014782,Huntsville Utilities ,6/14/2022,649.5,Unrestricted Shared Services,Water & Sewer - UC,A01361021,110100,740600,22075.65
J. F. Drake State CC & TC,10014782,Huntsville Utilities ,6/14/2022,20856.91,Unrestricted Shared Services,Electricity - UC,A01361021,110100,740200,22075.65
J. F. Drake State CC & TC,10014783,MillerKnoll Inc ,6/14/2022,964.54,Unexpended Plant Shared Services,Equipment - non capitalized - MS,A02362124,910100,720300,964.54
J. F. Drake State CC & TC,10014784,Star-Lite Cleaning Service Inc ,6/14/2022,400,Other Auxiliary- Fund Raising,Other Contractual Services - PS,A02394001,370150,731400,400
J. F. Drake State CC & TC,10014785,WideOpen West Inc ,6/14/2022,3109,Unrestricted Shared Services,Internet - UC,A01365312,110100,740400,3109
J. F. Drake State CC & TC,10014786,Student Payment,6/21/2022,644,Unrestricted Shared Services,Clearing Refunds - SP,A01396056,110100,230200,644
J. F. Drake State CC & TC,10014787,Student Payment,6/21/2022,5808,Unrestricted Shared Services,Clearing Refunds - SP,A02356381,110100,230200,5808
J. F. Drake State CC & TC,10014788,Student Payment,6/21/2022,483,Unrestricted Shared Services,Clearing Refunds - SP,A01333419,110100,230200,483
J. F. Drake State CC & TC,10014789,Student Payment,6/21/2022,1890,Unrestricted Shared Services,Clearing Refunds - SP,A01984907,110100,230200,1890
J. F. Drake State CC & TC,10014790,Student Payment,6/21/2022,483,Unrestricted Shared Services,Clearing Refunds - SP,A00346742,110100,230200,483
J. F. Drake State CC & TC,10014791,Student Payment,6/21/2022,483,Unrestricted Shared Services,Clearing Refunds - SP,A00217375,110100,230200,483
J. F. Drake State CC & TC,10014792,Student Payment,6/21/2022,1,Unrestricted Shared Services,Clearing Refunds - SP,A01371709,110100,230200,1
J. F. Drake State CC & TC,10014793,Student Payment,6/21/2022,483,Unrestricted Shared Services,Clearing Refunds - SP,A02317340,110100,230200,483
J. F. Drake State CC & TC,10014794,Alabama Flag & Banner Inc ,6/23/2022,3952.72,Unrestricted Shared Services,Materials and Supplies - MS,A01349856,110100,720500,3952.72
J. F. Drake State CC & TC,10014795,Alabama Media ,6/23/2022,118.4,Unrestricted Shared Services,Advertising & Promotions - OOS,A01352303,110100,750100,118.4
J. F. Drake State CC & TC,10014796,Assessment Technologies Institute LLC ,6/23/2022,41708.26,Unrestricted Shared Services,Other - AP,A01349452,110100,211200,41708.26
J. F. Drake State CC & TC,10014797,Cook's Pest Control ,6/23/2022,331,Unrestricted Shared Services,Other Contractual Services - PS,A01349917,110100,731400,331
J. F. Drake State CC & TC,10014798,Dynamic Security Inc ,6/23/2022,2909.92,Unrestricted Shared Services,Other Contractual Services - PS,A01352847,110100,731400,2909.92
J. F. Drake State CC & TC,10014799,Ecampus.com ,6/23/2022,960.58,Bookstore - Shared Services,Materials and Supplies - MS,A02206556,310100,720500,960.58
J. F. Drake State CC & TC,10014800,Office Depot ,6/23/2022,265.51,Unrestricted Shared Services,Materials and Supplies - MS,A01349944,110100,720500,265.51
J. F. Drake State CC & TC,10014801,Waste Management ,6/23/2022,1046.88,Unrestricted Shared Services,Waste Disposal - UC,A01349513,110100,740700,1046.88
J. F. Drake State CC & TC,10014802,Wilson Cleaners ,6/23/2022,201.88,Unrestricted Shared Services,Other Contractual Services - PS,A01368739,110100,731400,201.88
J. F. Drake State CC & TC,10014803,Xerox Corporation ,6/23/2022,1276.22,Unrestricted Shared Services,Other Contractual Services - PS,A00010379,110100,731400,1276.22
J. F. Drake State CC & TC,10014804,Castle Branch Inc. ,6/27/2022,157.5,Unrestricted Shared Services,Other - AP,A01361458,110100,211200,157.5
J. F. Drake State CC & TC,10014805,Dynamic Security Inc ,6/27/2022,2770.02,Unrestricted Shared Services,Other Contractual Services - PS,A01352847,110100,731400,2770.02
J. F. Drake State CC & TC,10014806,Farmers Insurance ,6/29/2022,85,Unrestricted Shared Services,Insurance and Bonding - PS,A01361447,110100,730900,85
J. F. Drake State CC & TC,10014807,Henderson Carolyn,6/29/2022,150,Unrestricted Shared Services,Other Travel Expenses - IS,A00371371,110100,710800,150
J. F. Drake State CC & TC,10014808,In10sity Interactive LLC ,6/29/2022,299,Unrestricted Shared Services,Other Contractual Services - PS,A01349757,110100,731400,299
J. F. Drake State CC & TC,10014809,Lowe's Company ,6/29/2022,302.1,Unrestricted Shared Services,Materials and Supplies - MS,A01349933,110100,720500,794
J. F. Drake State CC & TC,10014809,Lowe's Company ,6/29/2022,491.9,Unrestricted Shared Services,Maintenance & Repairs  - OOS,A01349933,110100,751100,794
J. F. Drake State CC & TC,10014810,Medalcraft Mint Inc ,6/29/2022,7100,Unrestricted Shared Services,Graduation Expense,A01373765,110100,751016,7100
J. F. Drake State CC & TC,10014811,Sims Patricia,6/29/2022,97.75,Unrestricted Shared Services,Other Travel Expenses - OS,A01346009,110100,715600,97.75
J. F. Drake State CC & TC,10014812,Payroll Payable,6/30/2022,20.8,Payroll Clearing Fund,Payroll Payable,A01361446,120000,221100,20.8
J. F. Drake State CC & TC,10014813,Payroll Payable,6/30/2022,890,Payroll Clearing Fund,Payroll Payable,A01361041,120000,221100,890
J. F. Drake State CC & TC,10014814,Payroll Payable,6/30/2022,542.79,Payroll Clearing Fund,Payroll Payable,A01351192,120000,221100,542.79
J. F. Drake State CC & TC,10014815,Payroll Payable,6/30/2022,49.91,Payroll Clearing Fund,Payroll Payable,A01350437,120000,221100,49.91
J. F. Drake State CC & TC,10014816,Payroll Payable,6/30/2022,2676,Payroll Clearing Fund,Payroll Payable,A00329038,120000,221170,2676
J. F. Drake State CC & TC,10014817,Payroll Payable,6/30/2022,550,Payroll Clearing Fund,Payroll Payable,A01373546,120000,221100,550
J. F. Drake State CC & TC,10014818,Payroll Payable,6/30/2022,257.5,Payroll Clearing Fund,Payroll Payable,A01351200,120000,221100,257.5
J. F. Drake State CC & TC,10014819,Payroll Payable,6/30/2022,205,Payroll Clearing Fund,Payroll Payable,A01350006,120000,221100,205
J. F. Drake State CC & TC,10014820,Payroll Payable,6/30/2022,104.4,Payroll Clearing Fund,Payroll Payable,A01349451,120000,221100,104.4
J. F. Drake State CC & TC,10014821,Council for Higher Edu Accreditation ,7/1/2022,725,Unrestricted Shared Services,Memberships - PS,A01350360,110100,731300,725
J. F. Drake State CC & TC,10014822,Dynamic Security Inc ,7/1/2022,2909.92,Unrestricted Shared Services,Other Contractual Services - PS,A01352847,110100,731400,2909.92
J. F. Drake State CC & TC,10014823,Schindler Elevator Corporation ,7/1/2022,1593.41,Unrestricted Shared Services,Other Contractual Services - PS,A01368740,110100,731400,1593.41
J. F. Drake State CC & TC,10014824,Society for Human Resource Management ,7/1/2022,229,Unrestricted Shared Services,Memberships - PS,A00010331,110100,731300,229
J. F. Drake State CC & TC,10014825,Southern Association of Colleges with Associate Degrees ,7/1/2022,150,Unrestricted Shared Services,Memberships - PS,A01349687,110100,731300,150
J. F. Drake State CC & TC,10014826,ACCS Deans of Student Affairs Assoc ,7/7/2022,150,Unrestricted Shared Services,Participant Costs-Other,A00010342,110100,751013,150
J. F. Drake State CC & TC,10014827,ACCS Public Relations Association ,7/7/2022,390,Unrestricted Shared Services,Grants  Awards and Prizes - OOS,A00010209,110100,750800,390
J. F. Drake State CC & TC,10014828,ACT Inc ,7/7/2022,87,Unrestricted Shared Services,Testing Expense,A00010341,110100,751015,87
J. F. Drake State CC & TC,10014829,Alabama Institute for Deaf and Blind ,7/7/2022,110,Unrestricted Shared Services,Graduation Expense,A00010136,110100,751016,110
J. F. Drake State CC & TC,10014830,Association of American Colleges and Universities AAC&U ,7/7/2022,250,Unrestricted Shared Services,Memberships - PS,A01351832,110100,731300,250
J. F. Drake State CC & TC,10014831,Community Colleges of Appalachia Region ,7/7/2022,750,Unrestricted Shared Services,Memberships - PS,A01373552,110100,731300,750
J. F. Drake State CC & TC,10014832,Dynamic Security Inc ,7/7/2022,2714.06,Unrestricted Shared Services,Other Contractual Services - PS,A01352847,110100,731400,2714.06
J. F. Drake State CC & TC,10014833,Huntsville Golf Club LLC ,7/7/2022,660,Unrestricted Shared Services,Memberships - PS,A02395401,110100,731300,660
J. F. Drake State CC & TC,10014834,International Women's Forum Alabama ,7/7/2022,500,Unrestricted Shared Services,Memberships - PS,A02317755,110100,731300,500
J. F. Drake State CC & TC,10014835,Leadership Greater Huntsville Inc. ,7/7/2022,375,Unrestricted Shared Services,Memberships - PS,A01353098,110100,731300,375
J. F. Drake State CC & TC,10014836,Loomis ,7/7/2022,296.87,Unrestricted Shared Services,Other Contractual Services - PS,A01361449,110100,731400,296.87
J. F. Drake State CC & TC,10014837,Pataky J,7/7/2022,1027.5,Unrestricted Shared Services,Graduation Expense,A01356750,110100,751016,1027.5
J. F. Drake State CC & TC,10014838,Predator Software Inc. ,7/7/2022,90,Unrestricted Shared Services,Computer Software(non capital) - MS,A02289217,110100,720100,90
J. F. Drake State CC & TC,10014839,Red Sage Communications Inc ,7/7/2022,23750,Unrestricted Shared Services,Other Contractual Services - PS,A02241195,110100,731400,23750
J. F. Drake State CC & TC,10014840,Thomas Electric Inc ,7/7/2022,13813,Renewal & Replacement Shared Svcs,Maintenance & Repairs  - OOS,A01356752,920100,751100,13813
J. F. Drake State CC & TC,10014841,Walker 360 Inc ,7/7/2022,279,Unrestricted Shared Services,Printing and Binding - OOS,A00010193,110100,751300,279
J. F. Drake State CC & TC,10014842,Alabama Media ,7/12/2022,587.74,Unrestricted Shared Services,Advertising & Promotions - OOS,A01352303,110100,750100,587.74
J. F. Drake State CC & TC,10014843,Chamber of Commerce Huntsville/Madison County ,7/12/2022,450,Unrestricted Shared Services,Advertising & Promotions - OOS,A01371349,110100,750100,450
J. F. Drake State CC & TC,10014844,Huntsville Utilities ,7/12/2022,282.36,Unrestricted Shared Services,Gas & Heating Fuel - UC,A01361021,110100,740300,29632.28
J. F. Drake State CC & TC,10014844,Huntsville Utilities ,7/12/2022,974.65,Unrestricted Shared Services,Water & Sewer - UC,A01361021,110100,740600,29632.28
J. F. Drake State CC & TC,10014844,Huntsville Utilities ,7/12/2022,28375.27,Unrestricted Shared Services,Electricity - UC,A01361021,110100,740200,29632.28
J. F. Drake State CC & TC,10014845,WideOpen West Inc ,7/12/2022,3148.36,Unrestricted Shared Services,Internet - UC,A01365312,110100,740400,3148.36
J. F. Drake State CC & TC,10014846,Castle Branch Inc. ,7/18/2022,32,Unrestricted Shared Services,Other - AP,A01361458,110100,211200,32
J. F. Drake State CC & TC,10014847,Dynamic Security Inc ,7/18/2022,2938.02,Unrestricted Shared Services,Other Contractual Services - PS,A01352847,110100,731400,2938.02
J. F. Drake State CC & TC,10014848,Ecampus.com ,7/18/2022,550.8,Unrestricted Shared Services,Books (Non-Library),A02206556,110100,751020,550.8
J. F. Drake State CC & TC,10014849,Jell's 4 Ever BBQ ,7/18/2022,1000,Other Auxiliary- Restricted,Culinary Consumables,A02373559,370120,720200,1000
J. F. Drake State CC & TC,10014850,Love Stephanie,7/18/2022,954.6,Unrestricted Shared Services,Other Professional Fees - PS,A02394413,110100,731600,954.6
J. F. Drake State CC & TC,10014851,National College Testing Association Inc ,7/18/2022,300,Unrestricted Shared Services,Memberships - PS,A01349867,110100,731300,300
J. F. Drake State CC & TC,10014852,Pataky J,7/18/2022,869.65,Unrestricted Shared Services,Graduation Expense,A01356750,110100,751016,869.65
J. F. Drake State CC & TC,10014853,Pioneer Management Consulting LLC ,7/18/2022,2500,Unrestricted Shared Services,Other Professional Fees - PS,A02354196,110100,731600,2500
J. F. Drake State CC & TC,10014854,Wilson Cleaners ,7/18/2022,160,Unrestricted Shared Services,Other Contractual Services - PS,A01368739,110100,731400,160
J. F. Drake State CC & TC,10014855,Xerox Corporation ,7/18/2022,1276.22,Unrestricted Shared Services,Other Contractual Services - PS,A00010379,110100,731400,1276.22
J. F. Drake State CC & TC,10014856,Alabama Lawnmaster Inc ,7/25/2022,871.53,Unrestricted Shared Services,Maintenance & Repairs  - OOS,A01361443,110100,751100,7061.53
J. F. Drake State CC & TC,10014856,Alabama Lawnmaster Inc ,7/25/2022,6190,Unrestricted Shared Services,Other Contractual Services - PS,A01361443,110100,731400,7061.53
J. F. Drake State CC & TC,10014857,Auto Chlor ,7/25/2022,115,Unrestricted Shared Services,Materials and Supplies - MS,A01365316,110100,720500,115
J. F. Drake State CC & TC,10014858,Credentials Solutions LLC ,7/25/2022,22.5,Unrestricted Shared Services,Transcript Expense,A01349460,110100,751017,22.5
J. F. Drake State CC & TC,10014859,Driskill ChrisAnn,7/25/2022,91.5,Unrestricted Shared Services,Professional Development - PS,A02304224,110100,731700,91.5
J. F. Drake State CC & TC,10014860,Ecampus.com ,7/25/2022,2016.68,Unrestricted Shared Services,Bookstore - AP,A02206556,110100,210100,2016.68
J. F. Drake State CC & TC,10014861,Federal Express Corporation ,7/25/2022,8.32,Unrestricted Shared Services,Freight - OOS,A00010219,110100,750600,8.32
J. F. Drake State CC & TC,10014862,Generosity Foundation Inc. ,7/25/2022,1000,Unrestricted Shared Services,Advertising & Promotions - OOS,A02402080,110100,750100,1000
J. F. Drake State CC & TC,10014863,J-Dash Enterprises ,7/25/2022,93,Other Auxiliary- Restricted,Advertising & Promotions - OOS,A02402939,370120,750100,93
J. F. Drake State CC & TC,10014864,Pizzelle's Confections LLC ,7/25/2022,650,Unrestricted Shared Services,Culinary Consumables,A02401094,110100,720200,650
J. F. Drake State CC & TC,10014865,Rocket City Robotics Inc. ,7/25/2022,1150,Unrestricted Shared Services,Other Professional Fees - PS,A02399729,110100,731600,1150
J. F. Drake State CC & TC,10014866,RP Media ,7/25/2022,7960.35,Unrestricted Shared Services,Advertising & Promotions - OOS,A01390666,110100,750100,7960.35
J. F. Drake State CC & TC,10014867,Sims Patricia,7/25/2022,170,Unrestricted Shared Services,Other Travel Expenses - IS,A01346009,110100,710800,170
J. F. Drake State CC & TC,10014868,Southern Assoc of Colleges & Schools ,7/25/2022,500,Unrestricted Shared Services,Accreditation Expense - PS,A00010251,110100,730200,500
J. F. Drake State CC & TC,10014869,Waste Management ,7/25/2022,1046.88,Unrestricted Shared Services,Waste Disposal - UC,A01349513,110100,740700,1046.88
J. F. Drake State CC & TC,10014870,Office Depot ,7/26/2022,92.13,Unrestricted Shared Services,Materials and Supplies - MS,A01349944,110100,720500,92.13
J. F. Drake State CC & TC,10014871,Regroup ,7/26/2022,7508,Unrestricted Shared Services,Other Contractual Services - PS,A01353068,110100,731400,7508
J. F. Drake State CC & TC,10014872,Dynamic Security Inc ,7/26/2022,2909.92,Unrestricted Shared Services,Other Contractual Services - PS,A01352847,110100,731400,2909.92
J. F. Drake State CC & TC,10014873,Xerox Corporation ,7/27/2022,22.43,Unrestricted Shared Services,Maintenance & Repairs  - OOS,A00010379,110100,751100,22.43
J. F. Drake State CC & TC,10014874,Student Payment,7/27/2022,910,Unrestricted Shared Services,Clearing Refunds - SP,A00224815,110100,230200,910
J. F. Drake State CC & TC,10014875,Payroll Payable,7/29/2022,20.8,Payroll Clearing Fund,Payroll Payable,A01361446,120000,221100,20.8
J. F. Drake State CC & TC,10014876,Payroll Payable,7/29/2022,805,Payroll Clearing Fund,Payroll Payable,A01361041,120000,221100,805
J. F. Drake State CC & TC,10014877,Payroll Payable,7/29/2022,484.41,Payroll Clearing Fund,Payroll Payable,A01351192,120000,221100,484.41
J. F. Drake State CC & TC,10014878,Payroll Payable,7/29/2022,49.91,Payroll Clearing Fund,Payroll Payable,A01350437,120000,221100,49.91
J. F. Drake State CC & TC,10014879,Payroll Payable,7/29/2022,2676,Payroll Clearing Fund,Payroll Payable,A00329038,120000,221170,2676
J. F. Drake State CC & TC,10014880,Payroll Payable,7/29/2022,450,Payroll Clearing Fund,Payroll Payable,A01373546,120000,221100,450
J. F. Drake State CC & TC,10014881,Payroll Payable,7/29/2022,702.48,Payroll Clearing Fund,Payroll Payable,A00010262,120000,221100,702.48
J. F. Drake State CC & TC,10014882,Payroll Payable,7/29/2022,257.5,Payroll Clearing Fund,Payroll Payable,A01351200,120000,221100,257.5
J. F. Drake State CC & TC,10014883,Payroll Payable,7/29/2022,205,Payroll Clearing Fund,Payroll Payable,A01350006,120000,221100,205
J. F. Drake State CC & TC,10014884,Payroll Payable,7/29/2022,191.4,Payroll Clearing Fund,Payroll Payable,A01349451,120000,221100,191.4
J. F. Drake State CC & TC,10014885,Student Payment,7/29/2022,320.68,Unrestricted Shared Services,Clearing Refunds - SP,A01367627,110100,230200,320.68
J. F. Drake State CC & TC,10014886,ACT Inc ,8/1/2022,184,Unrestricted Shared Services,Testing Expense,A00010341,110100,751015,184
J. F. Drake State CC & TC,10014887,Castle Branch Inc. ,8/1/2022,1160.5,Unrestricted Shared Services,Other - AP,A01361458,110100,211200,1160.5
J. F. Drake State CC & TC,10014888,Cook's Pest Control ,8/1/2022,331,Unrestricted Shared Services,Other Contractual Services - PS,A01349917,110100,731400,331
J. F. Drake State CC & TC,10014889,Cool Stuff by Austin ,8/1/2022,200,Unrestricted Shared Services,Other Professional Fees - PS,A01373729,110100,731600,200
J. F. Drake State CC & TC,10014890,Dynamic Security Inc ,8/1/2022,2490.22,Unrestricted Shared Services,Other Contractual Services - PS,A01352847,110100,731400,2490.22
J. F. Drake State CC & TC,10014891,HESI - ELSEVIER ,8/1/2022,151,Unrestricted Shared Services,Other - AP,A01353108,110100,211200,151
J. F. Drake State CC & TC,10014892,Huntsville Business Journal ,8/1/2022,800,Unrestricted Shared Services,Advertising & Promotions - OOS,A02374995,110100,750100,800
J. F. Drake State CC & TC,10014893,LogoBranders Inc ,8/1/2022,848.52,Unrestricted Shared Services,Advertising & Promotions - OOS,A01350088,110100,750100,848.52
J. F. Drake State CC & TC,10014894,Lowe's Company ,8/1/2022,73.71,Unrestricted Shared Services,Maintenance & Repairs  - OOS,A01349933,110100,751100,73.71
J. F. Drake State CC & TC,10014895,Madison County Board of Education ,8/1/2022,600,Unrestricted Shared Services,Advertising & Promotions - OOS,A02403385,110100,750100,600
J. F. Drake State CC & TC,10014896,Office Depot ,8/1/2022,225.99,Unrestricted Shared Services,Materials and Supplies - MS,A01349944,110100,720500,225.99
J. F. Drake State CC & TC,10014897,Safety Kleen Systems Inc ,8/1/2022,634.05,Unrestricted Shared Services,Waste Disposal - UC,A01350341,110100,740700,634.05
J. F. Drake State CC & TC,10014898,Sims Patricia,8/1/2022,170,Unrestricted Shared Services,Overnight (non tax per diem)- IS,A01346009,110100,710600,530.5
J. F. Drake State CC & TC,10014898,Sims Patricia,8/1/2022,360.5,Unrestricted Shared Services,Other Travel Expenses - IS,A01346009,110100,710800,530.5
J. F. Drake State CC & TC,10014899,Trav-Ad Signs ,8/1/2022,204.02,Other Auxiliary- Restricted,Advertising & Promotions - OOS,A01349657,370120,750100,204.02
J. F. Drake State CC & TC,10014900,Kings III of America LLC ,8/3/2022,270,Unrestricted Shared Services,Maintenance & Repairs  - OOS,A02280881,110100,751100,270
J. F. Drake State CC & TC,10014901,Loomis ,8/3/2022,294.57,Unrestricted Shared Services,Other Contractual Services - PS,A01361449,110100,731400,294.57
J. F. Drake State CC & TC,10014902,State of Alabama ,8/3/2022,28200,Unrestricted Shared Services,Accounting & Auditing Services - PS,A00010262,110100,730100,28200
J. F. Drake State CC & TC,10014903,Xerox Corporation ,8/3/2022,11579.34,Unrestricted Shared Services,Other Contractual Services - PS,A00010379,110100,731400,11579.34
J. F. Drake State CC & TC,10014904,ACCS Public Relations Association ,8/11/2022,275,Unrestricted Shared Services,Registration Fees- IS,A00010209,110100,710700,275
J. F. Drake State CC & TC,10014905,Alabama Flag & Banner Inc ,8/11/2022,522,Unrestricted Shared Services,Materials and Supplies - MS,A01349856,110100,720500,522
J. F. Drake State CC & TC,10014906,Alabama Lawnmaster Inc ,8/11/2022,3095,Unrestricted Shared Services,Other Contractual Services - PS,A01361443,110100,731400,3095
J. F. Drake State CC & TC,10014907,Alabama Media ,8/11/2022,1053.82,Unrestricted Shared Services,Advertising & Promotions - OOS,A01352303,110100,750100,1053.82
J. F. Drake State CC & TC,10014908,Community Foundation of Greater Huntsville ,8/11/2022,2500,Endowment Funds,Investment Transaction Expense - PS,A02358646,610110,731000,2500
J. F. Drake State CC & TC,10014909,Federal Express Corporation ,8/11/2022,8.32,Unrestricted Shared Services,Freight - OOS,A00010219,110100,750600,8.32
J. F. Drake State CC & TC,10014910,Foliage Design Systems ,8/11/2022,1626.52,Unrestricted Shared Services,Materials and Supplies - MS,A01389769,110100,720500,1626.52
J. F. Drake State CC & TC,10014911,GlobalSign Inc. ,8/11/2022,316,Unrestricted Shared Services,Taxes & Licenses - OOS,A01353117,110100,751800,316
J. F. Drake State CC & TC,10014912,Huntsville Utilities ,8/11/2022,308.6,Unrestricted Shared Services,Gas & Heating Fuel - UC,A01361021,110100,740300,33321.27
J. F. Drake State CC & TC,10014912,Huntsville Utilities ,8/11/2022,998.14,Unrestricted Shared Services,Water & Sewer - UC,A01361021,110100,740600,33321.27
J. F. Drake State CC & TC,10014912,Huntsville Utilities ,8/11/2022,32014.53,Unrestricted Shared Services,Electricity - UC,A01361021,110100,740200,33321.27
J. F. Drake State CC & TC,10014913,In10sity Interactive LLC ,8/11/2022,299,Unrestricted Shared Services,Other Contractual Services - PS,A01349757,110100,731400,299
J. F. Drake State CC & TC,10014914,Move Digital LLC ,8/11/2022,6000,Unrestricted Shared Services,Other Contractual Services - PS,A01390957,110100,731400,6000
J. F. Drake State CC & TC,10014915,Office Depot ,8/11/2022,162.85,Unrestricted Shared Services,Materials and Supplies - MS,A01349944,110100,720500,162.85
J. F. Drake State CC & TC,10014916,Robert Keith Matthews ,8/11/2022,1902,Other Auxiliary- Restricted,Other Contractual Services - PS,A02403049,370120,731400,1902
J. F. Drake State CC & TC,10014917,RP Media ,8/11/2022,8199.35,Unrestricted Shared Services,Advertising & Promotions - OOS,A01390666,110100,750100,8199.35
J. F. Drake State CC & TC,10014918,Sims Patricia,8/11/2022,61.25,Unrestricted Shared Services,Registration Fees- IS,A01346009,110100,710700,61.25
J. F. Drake State CC & TC,10014919,WEDC Foundation Inc ,8/11/2022,2500,Unrestricted Shared Services,Advertising & Promotions - OOS,A01353097,110100,750100,2500
J. F. Drake State CC & TC,10014920,WideOpen West Inc ,8/11/2022,3126.77,Unrestricted Shared Services,Internet - UC,A01365312,110100,740400,3126.77
J. F. Drake State CC & TC,10014921,Wilson Cleaners ,8/11/2022,288,Unrestricted Shared Services,Other Contractual Services - PS,A01368739,110100,731400,288
J. F. Drake State CC & TC,10014922,Xerox Corporation ,8/11/2022,38.99,Unrestricted Shared Services,Maintenance & Repairs  - OOS,A00010379,110100,751100,38.99
J. F. Drake State CC & TC,10014923,Cancelled Check,8/17/2022,0,,,,,,
J. F. Drake State CC & TC,10014924,Cancelled Check,8/17/2022,0,,,,,,
J. F. Drake State CC & TC,10014925,Cool Stuff by Austin ,8/17/2022,200,Unrestricted Shared Services,Other Professional Fees - PS,A01373729,110100,731600,200
J. F. Drake State CC & TC,10014926,Hand Arendall Harrison Sale LLC ,8/17/2022,337.5,Unrestricted Shared Services,Legal Services - PS,A00010175,110100,731200,337.5
J. F. Drake State CC & TC,10014927,Huntsville Business Journal ,8/17/2022,2400,Unrestricted Shared Services,Advertising & Promotions - OOS,A02374995,110100,750100,2400
J. F. Drake State CC & TC,10014928,Kimball International Brands Inc. ,8/17/2022,11029.5,Unexpended Plant Shared Services,Equipment - non capitalized - MS,A02354464,910100,720300,32338.9
J. F. Drake State CC & TC,10014928,Kimball International Brands Inc. ,8/17/2022,21309.4,Unrestricted Shared Services,Equipment - non capitalized - MS,A02354464,110100,720300,32338.9
J. F. Drake State CC & TC,10014929,Red Sage Communications Inc ,8/17/2022,15000,Unrestricted Shared Services,Other Contractual Services - PS,A02241195,110100,731400,15000
J. F. Drake State CC & TC,10014930,Assessment Technologies Institute LLC ,8/24/2022,14520,Unrestricted Shared Services,Other - AP,A01349452,110100,211200,14520
J. F. Drake State CC & TC,10014931,Castle Branch Inc. ,8/24/2022,1299.5,Unrestricted Shared Services,Other - AP,A01361458,110100,211200,1299.5
J. F. Drake State CC & TC,10014932,Dynamic Security Inc ,8/24/2022,4896.5,Unrestricted Shared Services,Other Contractual Services - PS,A01352847,110100,731400,4896.5
J. F. Drake State CC & TC,10014933,Federal Express Corporation ,8/24/2022,8.32,Unrestricted Shared Services,Freight - OOS,A00010219,110100,750600,8.32
J. F. Drake State CC & TC,10014934,Huntsville Business Journal ,8/24/2022,800,Unrestricted Shared Services,Advertising & Promotions - OOS,A02374995,110100,750100,800
J. F. Drake State CC & TC,10014935,Koorsen Fire & Security ,8/24/2022,1350,Unrestricted Shared Services,Other Contractual Services - PS,A01361469,110100,731400,1350
J. F. Drake State CC & TC,10014936,LogoBranders Inc ,8/24/2022,534.87,Unrestricted Shared Services,Materials and Supplies - MS,A01350088,110100,720500,534.87
J. F. Drake State CC & TC,10014937,Office Depot ,8/24/2022,112.16,Unrestricted Shared Services,Materials and Supplies - MS,A01349944,110100,720500,112.16
J. F. Drake State CC & TC,10014938,Rocket City Construction Inc. ,8/24/2022,5250,Renewal & Replacement Shared Svcs,Other Contractual Services - PS,A02283201,920100,731400,5250
J. F. Drake State CC & TC,10014939,Sims Patricia,8/24/2022,908.1,Unrestricted Shared Services,Registration Fees- IS,A01346009,110100,710700,908.1
J. F. Drake State CC & TC,10014940,Waste Management ,8/24/2022,1046.88,Unrestricted Shared Services,Waste Disposal - UC,A01349513,110100,740700,1046.88
J. F. Drake State CC & TC,10014941,Student Payment,8/30/2022,630.36,Unrestricted Shared Services,Clearing Refunds - SP,A01367627,110100,230200,630.36
J. F. Drake State CC & TC,10014942,Dynamic Security Inc ,8/30/2022,2630.12,Unrestricted Shared Services,Other Contractual Services - PS,A01352847,110100,731400,2630.12
J. F. Drake State CC & TC,10014943,Jackson Painting ,8/30/2022,1400,Unrestricted Shared Services,Other Contractual Services - PS,A02276313,110100,731400,1400
J. F. Drake State CC & TC,10014944,North Alabama Engraving Stamp Company ,8/30/2022,171.5,Unrestricted Shared Services,Materials and Supplies - MS,A01353127,110100,720500,171.5
J. F. Drake State CC & TC,10014945,Payroll Payable,8/31/2022,20.8,Payroll Clearing Fund,Payroll Payable,A01361446,120000,221100,20.8
J. F. Drake State CC & TC,10014946,Payroll Payable,8/31/2022,830,Payroll Clearing Fund,Payroll Payable,A01361041,120000,221100,830
J. F. Drake State CC & TC,10014947,Payroll Payable,8/31/2022,484.41,Payroll Clearing Fund,Payroll Payable,A01351192,120000,221100,484.41
J. F. Drake State CC & TC,10014948,Payroll Payable,8/31/2022,49.91,Payroll Clearing Fund,Payroll Payable,A01350437,120000,221100,49.91
J. F. Drake State CC & TC,10014949,Payroll Payable,8/31/2022,2676,Payroll Clearing Fund,Payroll Payable,A00329038,120000,221170,2676
J. F. Drake State CC & TC,10014950,Payroll Payable,8/31/2022,450,Payroll Clearing Fund,Payroll Payable,A01373546,120000,221100,450
J. F. Drake State CC & TC,10014951,Payroll Payable,8/31/2022,702.48,Payroll Clearing Fund,Payroll Payable,A00010262,120000,221100,702.48
J. F. Drake State CC & TC,10014952,Payroll Payable,8/31/2022,257.5,Payroll Clearing Fund,Payroll Payable,A01351200,120000,221100,257.5
J. F. Drake State CC & TC,10014953,Payroll Payable,8/31/2022,195,Payroll Clearing Fund,Payroll Payable,A01350006,120000,221100,195
J. F. Drake State CC & TC,10014954,Payroll Payable,8/31/2022,52.2,Payroll Clearing Fund,Payroll Payable,A01349451,120000,221100,52.2
J. F. Drake State CC & TC,10014955,Alabama Flag & Banner Inc ,8/31/2022,6940,Unrestricted Shared Services,Materials and Supplies - MS,A01349856,110100,720500,6940
J. F. Drake State CC & TC,10014956,CDW LLC ,8/31/2022,144.17,Unrestricted Shared Services,Computer Software(non capital) - MS,A00010372,110100,720100,144.17
J. F. Drake State CC & TC,10014957,Cook's Pest Control ,8/31/2022,331,Unrestricted Shared Services,Other Contractual Services - PS,A01349917,110100,731400,331
J. F. Drake State CC & TC,10014958,Kimball International Brands Inc. ,8/31/2022,10371.14,Unrestricted Shared Services,Equipment - non capitalized - MS,A02354464,110100,720300,10371.14
J. F. Drake State CC & TC,10014959,Office Depot ,8/31/2022,524.09,Unrestricted Shared Services,Materials and Supplies - MS,A01349944,110100,720500,524.09
J. F. Drake State CC & TC,10014960,Rydin Decals ,8/31/2022,599,Unrestricted Shared Services,Materials and Supplies - MS,A01349786,110100,720500,599
J. F. Drake State CC & TC,10014961,Sam's Club ,8/31/2022,97.16,Unrestricted Shared Services,Culinary Consumables,A01349507,110100,720200,97.16
J. F. Drake State CC & TC,10014962,Walker Rachel,8/31/2022,3500,Unrestricted Shared Services,Instructional Salaries(Temp/PT)-SW,A00126181,110100,615100,3500
J. F. Drake State CC & TC,10014963,Xerox Corporation ,8/31/2022,1276.22,Unrestricted Shared Services,Other Contractual Services - PS,A00010379,110100,731400,1276.22
J. F. Drake State CC & TC,10014964,Student Payment,9/1/2022,207.96,Unrestricted Shared Services,Clearing Refunds - SP,A01367627,110100,230200,207.96
J. F. Drake State CC & TC,10014965,Lowe's Company ,9/1/2022,652.31,Unrestricted Shared Services,Maintenance & Repairs  - OOS,A01349933,110100,751100,652.31
J. F. Drake State CC & TC,10014966,West Roofing Systems Inc. ,9/1/2022,5801.73,Renewal & Replacement Shared Svcs,Maintenance & Repairs  - OOS,A02252152,920100,751100,5801.73
J. F. Drake State CC & TC,10014967,Xerox Corporation ,9/1/2022,41.8,Unrestricted Shared Services,Maintenance & Repairs  - OOS,A00010379,110100,751100,41.8
J. F. Drake State CC & TC,10014968,ACT Inc ,9/8/2022,218.5,Unrestricted Shared Services,Testing Expense,A00010341,110100,751015,218.5
J. F. Drake State CC & TC,10014969,Alabama Community College System ,9/8/2022,22656,Unrestricted Shared Services,Bond Reserve Fee Expense - OOS,A01352158,110100,750400,22656
J. F. Drake State CC & TC,10014970,Alabama Lawnmaster Inc ,9/8/2022,3404.5,Unrestricted Shared Services,Other Contractual Services - PS,A01361443,110100,731400,3404.5
J. F. Drake State CC & TC,10014971,Dynamic Security Inc ,9/8/2022,5679.95,Unrestricted Shared Services,Other Contractual Services - PS,A01352847,110100,731400,5679.95
J. F. Drake State CC & TC,10014972,Farrell Corporation ,9/8/2022,3573.8,Unrestricted Shared Services,Materials and Supplies - MS,A01349771,110100,720500,3573.8
J. F. Drake State CC & TC,10014973,In10sity Interactive LLC ,9/8/2022,299,Unrestricted Shared Services,Other Contractual Services - PS,A01349757,110100,731400,299
J. F. Drake State CC & TC,10014974,Loomis ,9/8/2022,291.21,Unrestricted Shared Services,Other Contractual Services - PS,A01361449,110100,731400,291.21
J. F. Drake State CC & TC,10014975,Pioneer Management Consulting LLC ,9/8/2022,1250,Unrestricted Shared Services,Other Professional Fees - PS,A02354196,110100,731600,1250
J. F. Drake State CC & TC,10014976,Shelia Pruitt-Tavernier ,9/8/2022,275,Unrestricted Shared Services,Other Contractual Services - PS,A02408184,110100,731400,275
J. F. Drake State CC & TC,10014977,Staples Business Advantage ,9/8/2022,82.62,Unrestricted Shared Services,Materials and Supplies - MS,A01374940,110100,720500,82.62
J. F. Drake State CC & TC,10014978,Student Payment,9/13/2022,489,Unrestricted Shared Services,Clearing Refunds - SP,A00137034,110100,230200,489
J. F. Drake State CC & TC,10014979,Student Payment,9/13/2022,489,Unrestricted Shared Services,Clearing Refunds - SP,A01354242,110100,230200,489
J. F. Drake State CC & TC,10014980,Student Payment,9/13/2022,4999,Unrestricted Shared Services,Clearing Refunds - SP,A02356381,110100,230200,4999
J. F. Drake State CC & TC,10014981,Student Payment,9/13/2022,533,Unrestricted Shared Services,Clearing Refunds - SP,A02399702,110100,230200,533
J. F. Drake State CC & TC,10014982,Student Payment,9/13/2022,489,Unrestricted Shared Services,Clearing Refunds - SP,A02320832,110100,230200,489
J. F. Drake State CC & TC,10014983,Student Payment,9/13/2022,163,Unrestricted Shared Services,Clearing Refunds - SP,A02410670,110100,230200,163
J. F. Drake State CC & TC,10014984,Student Payment,9/13/2022,978,Unrestricted Shared Services,Clearing Refunds - SP,A01371059,110100,230200,978
J. F. Drake State CC & TC,10014985,Student Payment,9/13/2022,163,Unrestricted Shared Services,Clearing Refunds - SP,A00342886,110100,230200,163
J. F. Drake State CC & TC,10014986,Student Payment,9/13/2022,600,Unrestricted Shared Services,Clearing Refunds - SP,A02304194,110100,230200,600
J. F. Drake State CC & TC,10014987,Student Payment,9/13/2022,2030.4,Unrestricted Shared Services,Clearing Refunds - SP,A01130740,110100,230200,2030.4
J. F. Drake State CC & TC,10014988,Student Payment,9/13/2022,155.88,Unrestricted Shared Services,Clearing Refunds - SP,A00315769,110100,230200,155.88
J. F. Drake State CC & TC,10014989,Student Payment,9/13/2022,1187.36,Unrestricted Shared Services,Clearing Refunds - SP,A02330301,110100,230200,1187.36
J. F. Drake State CC & TC,10014990,Student Payment,9/13/2022,1388.27,Unrestricted Shared Services,Clearing Refunds - SP,A02235873,110100,230200,1388.27
J. F. Drake State CC & TC,10014991,Student Payment,9/13/2022,600,Unrestricted Shared Services,Clearing Refunds - SP,A02310901,110100,230200,600
J. F. Drake State CC & TC,10014992,Student Payment,9/13/2022,326,Unrestricted Shared Services,Clearing Refunds - SP,A00279151,110100,230200,326
J. F. Drake State CC & TC,10014993,Student Payment,9/13/2022,600,Unrestricted Shared Services,Clearing Refunds - SP,A02379600,110100,230200,600
J. F. Drake State CC & TC,10014994,Student Payment,9/13/2022,4752,Unrestricted Shared Services,Clearing Refunds - SP,A00349938,110100,230200,4752
J. F. Drake State CC & TC,10014995,Student Payment,9/13/2022,489,Unrestricted Shared Services,Clearing Refunds - SP,A00320797,110100,230200,489
J. F. Drake State CC & TC,10014996,Student Payment,9/13/2022,997,Unrestricted Shared Services,Clearing Refunds - SP,A02330270,110100,230200,997
J. F. Drake State CC & TC,10014997,Student Payment,9/13/2022,20,Unrestricted Shared Services,Clearing Refunds - SP,A00355042,110100,230200,20
J. F. Drake State CC & TC,10014998,Student Payment,9/13/2022,29,Unrestricted Shared Services,Clearing Refunds - SP,A02292054,110100,230200,29
J. F. Drake State CC & TC,10014999,9 to 5 Seating ,9/14/2022,11335.68,Unrestricted Shared Services,Equipment - non capitalized - MS,A01350724,110100,720300,11335.68
J. F. Drake State CC & TC,10015000,Alabama Flag & Banner Inc ,9/14/2022,976,Unrestricted Shared Services,Materials and Supplies - MS,A01349856,110100,720500,976
J. F. Drake State CC & TC,10015001,Cool Stuff by Austin ,9/14/2022,1000,Unrestricted Shared Services,Other Professional Fees - PS,A01373729,110100,731600,1000
J. F. Drake State CC & TC,10015002,Huntsville Utilities ,9/14/2022,262.45,Unrestricted Shared Services,Gas & Heating Fuel - UC,A01361021,110100,740300,32957.71
J. F. Drake State CC & TC,10015002,Huntsville Utilities ,9/14/2022,1359.41,Unrestricted Shared Services,Water & Sewer - UC,A01361021,110100,740600,32957.71
J. F. Drake State CC & TC,10015002,Huntsville Utilities ,9/14/2022,31335.85,Unrestricted Shared Services,Electricity - UC,A01361021,110100,740200,32957.71
J. F. Drake State CC & TC,10015003,LogoBranders Inc ,9/14/2022,10760.18,Unrestricted Shared Services,Advertising & Promotions - OOS,A01350088,110100,750100,10760.18
J. F. Drake State CC & TC,10015004,Move Digital LLC ,9/14/2022,2000,Unrestricted Shared Services,Other Contractual Services - PS,A01390957,110100,731400,2000
J. F. Drake State CC & TC,10015005,RP Media ,9/14/2022,6410.35,Unrestricted Shared Services,Advertising & Promotions - OOS,A01390666,110100,750100,6410.35
J. F. Drake State CC & TC,10015006,The Webster Tree Company Inc. ,9/14/2022,14030,Unrestricted Shared Services,Other Contractual Services - PS,A01373436,110100,731400,14030
J. F. Drake State CC & TC,10015007,WideOpen West Inc ,9/14/2022,3663.68,Unrestricted Shared Services,Internet - UC,A01365312,110100,740400,3663.68
J. F. Drake State CC & TC,10015008,Xerox Corporation ,9/14/2022,692,Unrestricted Shared Services,Technology - non capitalized - MS,A00010379,110100,720700,692
J. F. Drake State CC & TC,10015009,Student Payment,9/14/2022,25,Unrestricted Shared Services,Clearing Refunds - SP,A00216789,110100,230200,25
J. F. Drake State CC & TC,10015010,Alabama Community College System President's Association ,9/19/2022,300,Unrestricted Shared Services,Registration Fees- IS,A01377799,110100,710700,300
J. F. Drake State CC & TC,10015011,Alabama Media ,9/19/2022,358.87,Unrestricted Shared Services,Advertising & Promotions - OOS,A01352303,110100,750100,358.87
J. F. Drake State CC & TC,10015012,Dynamic Security Inc ,9/19/2022,2784.13,Unrestricted Shared Services,Other Contractual Services - PS,A01352847,110100,731400,2784.13
J. F. Drake State CC & TC,10015013,Farrell Corporation ,9/19/2022,556.92,Unrestricted Shared Services,Materials and Supplies - MS,A01349771,110100,720500,556.92
J. F. Drake State CC & TC,10015014,Krueger International Inc ,9/19/2022,6934.85,Unrestricted Shared Services,Equipment - non capitalized - MS,A01350396,110100,720300,6934.85
J. F. Drake State CC & TC,10015015,Sims Patricia,9/19/2022,170,Unrestricted Shared Services,Other Travel Expenses - IS,A01346009,110100,710800,170
J. F. Drake State CC & TC,10015016,Xerox Corporation ,9/19/2022,1276.22,Unrestricted Shared Services,Other Contractual Services - PS,A00010379,110100,731400,1276.22
J. F. Drake State CC & TC,10015017,Baker Elijah,9/22/2022,104.25,Unrestricted Shared Services,Conus (meals) - IS,A01865819,110100,710200,104.25
J. F. Drake State CC & TC,10015018,Dynamic Security Inc ,9/22/2022,2909.92,Unrestricted Shared Services,Other Contractual Services - PS,A01352847,110100,731400,2909.92
J. F. Drake State CC & TC,10015019,Federal Express Corporation ,9/22/2022,8.13,Unrestricted Shared Services,Freight - OOS,A00010219,110100,750600,8.13
J. F. Drake State CC & TC,10015020,Hand Arendall Harrison Sale LLC ,9/22/2022,225,Unrestricted Shared Services,Legal Services - PS,A00010175,110100,731200,225
J. F. Drake State CC & TC,10015021,Red Sage Communications Inc ,9/22/2022,23750,Unrestricted Shared Services,Other Contractual Services - PS,A02241195,110100,731400,23750
J. F. Drake State CC & TC,10015022,Sims Patricia,9/22/2022,130.35,Unrestricted Shared Services,Commercial Transportation - OS,A01346009,110100,715100,271.85
J. F. Drake State CC & TC,10015022,Sims Patricia,9/22/2022,141.5,Unrestricted Shared Services,Conus (meals) - OS,A01346009,110100,715200,271.85
J. F. Drake State CC & TC,10015023,Bubba's Catering ,9/26/2022,200,Unrestricted Shared Services,Materials and Supplies - MS,A01349913,110100,720500,1680
J. F. Drake State CC & TC,10015023,Bubba's Catering ,9/26/2022,1480,Unrestricted Shared Services,Culinary Consumables,A01349913,110100,720200,1680
J. F. Drake State CC & TC,10015024,Castle Branch Inc. ,9/28/2022,1639.25,Unrestricted Shared Services,Other - AP,A01361458,110100,211200,1639.25
J. F. Drake State CC & TC,10015025,Cook's Pest Control ,9/28/2022,331,Unrestricted Shared Services,Other Contractual Services - PS,A01349917,110100,731400,331
J. F. Drake State CC & TC,10015026,Ecampus.com ,9/28/2022,92572.69,Unrestricted Shared Services,Bookstore - AP,A02206556,110100,210100,92572.69
J. F. Drake State CC & TC,10015027,HOAR Program Management LLC ,9/28/2022,156920.51,Unexpended Plant Shared Services,Engineering & Architectural Svc -PS,A01371460,910100,730700,156920.51
J. F. Drake State CC & TC,10015028,Huntsville Business Journal ,9/28/2022,800,Unrestricted Shared Services,Advertising & Promotions - OOS,A02374995,110100,750100,800
J. F. Drake State CC & TC,10015029,Kingsbury Marina,9/28/2022,130.75,Unrestricted Shared Services,Conus (meals) - OS,A02335508,110100,715200,1087.45
J. F. Drake State CC & TC,10015029,Kingsbury Marina,9/28/2022,287.22,Unrestricted Shared Services,Other Travel Expenses - OS,A02335508,110100,715600,1087.45
J. F. Drake State CC & TC,10015029,Kingsbury Marina,9/28/2022,669.48,Unrestricted Shared Services,Lodging - OS,A02335508,110100,715300,1087.45
J. F. Drake State CC & TC,10015030,LogoBranders Inc ,9/28/2022,3182.33,Unrestricted Shared Services,Advertising & Promotions - OOS,A01350088,110100,750100,3182.33
J. F. Drake State CC & TC,10015031,Lowe's Company ,9/28/2022,738.39,Unrestricted Shared Services,Maintenance & Repairs  - OOS,A01349933,110100,751100,738.39
J. F. Drake State CC & TC,10015032,North Alabama Works ,9/28/2022,1000,Unrestricted Shared Services,Advertising & Promotions - OOS,A02303483,110100,750100,1000
J. F. Drake State CC & TC,10015033,Payroll Payable,9/30/2022,20.8,Payroll Clearing Fund,Payroll Payable,A01361446,120000,221100,20.8
J. F. Drake State CC & TC,10015034,Payroll Payable,9/30/2022,923.33,Payroll Clearing Fund,Payroll Payable,A01361041,120000,221100,923.33
J. F. Drake State CC & TC,10015035,Payroll Payable,9/30/2022,721.74,Payroll Clearing Fund,Payroll Payable,A01351192,120000,221100,721.74
J. F. Drake State CC & TC,10015036,Payroll Payable,9/30/2022,49.91,Payroll Clearing Fund,Payroll Payable,A01350437,120000,221100,49.91
J. F. Drake State CC & TC,10015037,Payroll Payable,9/30/2022,1222,Payroll Clearing Fund,Payroll Payable,A00329038,120000,221170,1222
J. F. Drake State CC & TC,10015038,Payroll Payable,9/30/2022,450,Payroll Clearing Fund,Payroll Payable,A01373546,120000,221100,450
J. F. Drake State CC & TC,10015039,Payroll Payable,9/30/2022,466.76,Payroll Clearing Fund,Payroll Payable,A00010262,120000,221100,466.76
J. F. Drake State CC & TC,10015040,Payroll Payable,9/30/2022,257.5,Payroll Clearing Fund,Payroll Payable,A01351200,120000,221100,257.5
J. F. Drake State CC & TC,10015041,Payroll Payable,9/30/2022,185,Payroll Clearing Fund,Payroll Payable,A01350006,120000,221100,185
J. F. Drake State CC & TC,10015042,Payroll Payable,9/30/2022,174,Payroll Clearing Fund,Payroll Payable,A01349451,120000,221100,174
J. F. Drake State CC & TC,30015068,Alabama Lawnmaster Inc ,10/8/2021,273.46,Chancellor - Special Allocation,Maintenance & Repairs  - OOS,A01361443,227005,751100,273.46
J. F. Drake State CC & TC,30015069,Batteries of North Alabama Inc. ,10/8/2021,497.89,CRRSAA - HBCU and Strengthening II,Materials and Supplies - MS,A01349891,212210,720500,497.89
J. F. Drake State CC & TC,30015070,Henry Casey,10/8/2021,170,Title III (Activity 1),Other Travel Expenses - IS,A01343885,211611,710800,170
J. F. Drake State CC & TC,30015071,Lowe's ,10/8/2021,1572,Chancellor - Special Allocation,Materials and Supplies - MS,A01351841,227005,720500,14363.94
J. F. Drake State CC & TC,30015071,Lowe's ,10/8/2021,1993.12,Title III (Activity 1),Equipment - non capitalized - MS,A01351841,211601,720300,14363.94
J. F. Drake State CC & TC,30015071,Lowe's ,10/8/2021,10798.82,NASA Grant,Materials and Supplies - MS,A01351841,217210,720500,14363.94
J. F. Drake State CC & TC,30015072,Cancelled Check,10/8/2021,0,,,,,,
J. F. Drake State CC & TC,30015073,Mr Rooter Plumbing ,10/8/2021,937.5,Chancellor - Special Allocation,Maintenance & Repairs  - OOS,A02205645,227005,751100,937.5
J. F. Drake State CC & TC,30015074,MSC Industrial Supply ,10/8/2021,295.2,Title III (Activity 1),Materials and Supplies - MS,A01349936,211611,720500,295.2
J. F. Drake State CC & TC,30015075,Nola Van Peursem Architects PC ,10/8/2021,10743.46,Title III (Activity 3),Engineering & Architectural Svc -PS,A01353112,211693,730700,10743.46
J. F. Drake State CC & TC,30015076,RJ Young Company ,10/8/2021,5006.99,CRRSAA - HBCU and Strengthening II,Other Non-Capital Costs,A01350452,212210,751900,5006.99
J. F. Drake State CC & TC,30015077,Superior Roofing LLC ,10/8/2021,3450,Chancellor - Special Allocation,Maintenance & Repairs  - OOS,A02327164,227005,751100,3450
J. F. Drake State CC & TC,30015078,The Webster Tree Company Inc. ,10/8/2021,4000,Chancellor - Special Allocation,Other Contractual Services - PS,A01373436,227005,731400,4000
J. F. Drake State CC & TC,30015079,Woodall Tawson,10/8/2021,544,SPIN-UP 2XX7-2XX8,Participant Costs-Stipends,A02328662,217180,751010,544
J. F. Drake State CC & TC,30015080,ACT Inc ,10/14/2021,42,AE-State Regular 2XX0-2XX1,Testing Expense,A00010341,224110,751015,42
J. F. Drake State CC & TC,30015081,CAE Healthcare Inc. ,10/14/2021,138118.9,CRRSAA - HBCU and Strengthening II,Other Contractual Services - PS,A01350429,212210,731400,138118.9
J. F. Drake State CC & TC,30015082,Koorsen Fire & Security ,10/14/2021,231.35,Title III (Activity 3),Maintenance & Repairs  - OOS,A01361469,211613,751100,231.35
J. F. Drake State CC & TC,30015083,NurseTim Inc. ,10/14/2021,248.5,Future Act (Activity 1),Books (Non-Library),A01349690,250213,751020,248.5
J. F. Drake State CC & TC,30015084,Trav-Ad Signs ,10/14/2021,923.14,AE-State Regular 2XX0-2XX1,Materials and Supplies - MS,A01349657,224110,720500,1846.28
J. F. Drake State CC & TC,30015084,Trav-Ad Signs ,10/14/2021,923.14,Chancellor - Special Allocation,Materials and Supplies - MS,A01349657,227005,720500,1846.28
J. F. Drake State CC & TC,30015085,W W Grainger Inc ,10/14/2021,1275.44,Title III (Activity 1),Materials and Supplies - MS,A01349927,211611,720500,1275.44
J. F. Drake State CC & TC,30015086,Xerox Corporation ,10/14/2021,221.99,Title III (Activity 1),Operating Lease Payments,A00010379,211611,751014,637.97
J. F. Drake State CC & TC,30015086,Xerox Corporation ,10/14/2021,415.98,Title III (Activity 6),Operating Lease Payments,A00010379,211616,751014,637.97
J. F. Drake State CC & TC,30015087,Student Payment,10/15/2021,483,Refund Fund,Clearing Refunds - SP,A01331467,217000,230200,483
J. F. Drake State CC & TC,30015088,Student Payment,10/15/2021,38.59,Refund Fund,Clearing Refunds - SP,A00346611,217000,230200,38.59
J. F. Drake State CC & TC,30015089,Student Payment,10/15/2021,7,Refund Fund,Clearing Refunds - SP,A01361860,217000,230200,7
J. F. Drake State CC & TC,30015090,EBSCO Industries Inc ,10/15/2021,37.91,Title III (Activity 2),Subscriptions - OOS,A01349508,211612,751700,37.91
J. F. Drake State CC & TC,30015091,Finley Jr Dameon,10/15/2021,544,SPIN-UP 2XX7-2XX8,Participant Costs-Stipends,A02339034,217180,751010,544
J. F. Drake State CC & TC,30015092,Holston Gases Inc ,10/15/2021,6825.05,Title III (Activity 1),Materials and Supplies - MS,A01349484,211601,720500,6825.05
J. F. Drake State CC & TC,30015093,McKesson Medical-Surgical Government Solutions Llc ,10/15/2021,3748.95,Title III SAFRA (Activity 1),Materials and Supplies - MS,A01349437,211701,720500,3748.95
J. F. Drake State CC & TC,30015094,Office Depot ,10/15/2021,480.38,Title III (Activity 6),Materials and Supplies - MS,A01349944,211626,720500,480.38
J. F. Drake State CC & TC,30015095,ACCS Human Resources Management Association ,10/21/2021,250,Title III (Activity 6),Memberships - PS,A00010382,211626,731300,250
J. F. Drake State CC & TC,30015096,Howard Technology Solutions ,10/21/2021,125900,CRRSAA - HBCU and Strengthening II,Furniture and Equip $5K - $25K - CE,A01349929,212210,791100,125900
J. F. Drake State CC & TC,30015097,Innovative Interfaces Inc. ,10/21/2021,358.57,Title III (Activity 2),Subscriptions - OOS,A01351639,211612,751700,358.57
J. F. Drake State CC & TC,30015098,Kingsbury Consulting Management ,10/21/2021,4212,Chancellor - Special Allocation,Other Professional Fees - PS,A01874993,227005,731600,4212
J. F. Drake State CC & TC,30015099,Pearce Regina,10/21/2021,400,Title III (Activity 5),Overnight (non tax per diem)- IS,A01389738,211625,710600,400
J. F. Drake State CC & TC,30015100,PODS Enterprises Inc ,10/21/2021,159,Future Act (Activity 1),Short-Term Equipment Rentals - OOS,A01368741,250223,751600,159
J. F. Drake State CC & TC,30015101,Stericycle Inc ,10/21/2021,89.92,Future Act (Activity 1),Waste Disposal - UC,A01350066,250223,740700,89.92
J. F. Drake State CC & TC,30015102,Strickland Paper Company Inc ,10/21/2021,1118,Title III (Activity A Prog Admin),Materials and Supplies - MS,A00010184,211628,720500,1118
J. F. Drake State CC & TC,30015103,Wittichen Supply Company LLC ,10/21/2021,3372.93,CRRSAA - HBCU and Strengthening II,Other Non-Capital Costs,A01349939,212210,751900,3372.93
J. F. Drake State CC & TC,30015104,North Alabama Homebuilding Academy ,10/25/2021,477.3,STEAM - FlexFactor,Other Professional Fees - PS,A02278709,223500,731600,477.3
J. F. Drake State CC & TC,30015105,Student Payment,10/26/2021,1500,Unrestricted Shared Services,Clearing Refunds - SP,A02235009,110100,230200,1500
J. F. Drake State CC & TC,30015106,Student Payment,10/26/2021,750,Unrestricted Shared Services,Clearing Refunds - SP,A00352799,110100,230200,750
J. F. Drake State CC & TC,30015107,Student Payment,10/26/2021,750,Unrestricted Shared Services,Clearing Refunds - SP,A00365202,110100,230200,750
J. F. Drake State CC & TC,30015108,Student Payment,10/26/2021,750,Unrestricted Shared Services,Clearing Refunds - SP,A02240410,110100,230200,750
J. F. Drake State CC & TC,30015109,Student Payment,10/26/2021,1500,Unrestricted Shared Services,Clearing Refunds - SP,A00345735,110100,230200,1500
J. F. Drake State CC & TC,30015110,Student Payment,10/26/2021,1500,Unrestricted Shared Services,Clearing Refunds - SP,A00295297,110100,230200,1500
J. F. Drake State CC & TC,30015111,Student Payment,10/26/2021,1500,Unrestricted Shared Services,Clearing Refunds - SP,A02319632,110100,230200,1500
J. F. Drake State CC & TC,30015112,Student Payment,10/26/2021,750,Unrestricted Shared Services,Clearing Refunds - SP,A01343803,110100,230200,750
J. F. Drake State CC & TC,30015113,Student Payment,10/26/2021,750,Unrestricted Shared Services,Clearing Refunds - SP,A00373351,110100,230200,750
J. F. Drake State CC & TC,30015114,Student Payment,10/26/2021,1500,Unrestricted Shared Services,Clearing Refunds - SP,A01388010,110100,230200,1500
J. F. Drake State CC & TC,30015115,Student Payment,10/26/2021,1500,Unrestricted Shared Services,Clearing Refunds - SP,A02277346,110100,230200,1500
J. F. Drake State CC & TC,30015116,Student Payment,10/26/2021,750,Unrestricted Shared Services,Clearing Refunds - SP,A00368886,110100,230200,750
J. F. Drake State CC & TC,30015117,Student Payment,10/26/2021,750,Unrestricted Shared Services,Clearing Refunds - SP,A02322643,110100,230200,750
J. F. Drake State CC & TC,30015118,Student Payment,10/26/2021,750,Unrestricted Shared Services,Clearing Refunds - SP,A00372711,110100,230200,750
J. F. Drake State CC & TC,30015119,Student Payment,10/26/2021,1500,Unrestricted Shared Services,Clearing Refunds - SP,A00356683,110100,230200,1500
J. F. Drake State CC & TC,30015120,Cancelled Check,10/26/2021,0,,,,,,
J. F. Drake State CC & TC,30015121,Student Payment,10/26/2021,750,Unrestricted Shared Services,Clearing Refunds - SP,A02331173,110100,230200,750
J. F. Drake State CC & TC,30015122,Student Payment,10/26/2021,750,Unrestricted Shared Services,Clearing Refunds - SP,A02238099,110100,230200,750
J. F. Drake State CC & TC,30015123,Student Payment,10/26/2021,750,Unrestricted Shared Services,Clearing Refunds - SP,A02331723,110100,230200,750
J. F. Drake State CC & TC,30015124,Student Payment,10/26/2021,750,Unrestricted Shared Services,Clearing Refunds - SP,A00259855,110100,230200,750
J. F. Drake State CC & TC,30015125,Student Payment,10/26/2021,750,Unrestricted Shared Services,Clearing Refunds - SP,A02272522,110100,230200,750
J. F. Drake State CC & TC,30015126,Student Payment,10/26/2021,750,Unrestricted Shared Services,Clearing Refunds - SP,A01396056,110100,230200,750
J. F. Drake State CC & TC,30015127,Student Payment,10/26/2021,750,Unrestricted Shared Services,Clearing Refunds - SP,A01354242,110100,230200,750
J. F. Drake State CC & TC,30015128,Student Payment,10/26/2021,750,Unrestricted Shared Services,Clearing Refunds - SP,A00331666,110100,230200,750
J. F. Drake State CC & TC,30015129,Student Payment,10/26/2021,750,Unrestricted Shared Services,Clearing Refunds - SP,A02263529,110100,230200,750
J. F. Drake State CC & TC,30015130,Student Payment,10/26/2021,1500,Unrestricted Shared Services,Clearing Refunds - SP,A00336633,110100,230200,1500
J. F. Drake State CC & TC,30015131,Student Payment,10/26/2021,1500,Unrestricted Shared Services,Clearing Refunds - SP,A00317131,110100,230200,1500
J. F. Drake State CC & TC,30015132,Student Payment,10/26/2021,750,Unrestricted Shared Services,Clearing Refunds - SP,A02331211,110100,230200,750
J. F. Drake State CC & TC,30015133,Student Payment,10/26/2021,750,Unrestricted Shared Services,Clearing Refunds - SP,A01267704,110100,230200,750
J. F. Drake State CC & TC,30015134,Student Payment,10/26/2021,1500,Unrestricted Shared Services,Clearing Refunds - SP,A02321304,110100,230200,1500
J. F. Drake State CC & TC,30015135,Student Payment,10/26/2021,750,Unrestricted Shared Services,Clearing Refunds - SP,A00374068,110100,230200,750
J. F. Drake State CC & TC,30015136,Student Payment,10/26/2021,750,Unrestricted Shared Services,Clearing Refunds - SP,A02326228,110100,230200,750
J. F. Drake State CC & TC,30015137,Student Payment,10/26/2021,750,Unrestricted Shared Services,Clearing Refunds - SP,A02311077,110100,230200,750
J. F. Drake State CC & TC,30015138,Student Payment,10/26/2021,750,Unrestricted Shared Services,Clearing Refunds - SP,A00684066,110100,230200,750
J. F. Drake State CC & TC,30015139,Cancelled Check,10/26/2021,0,,,,,,
J. F. Drake State CC & TC,30015140,Student Payment,10/26/2021,750,Unrestricted Shared Services,Clearing Refunds - SP,A02259941,110100,230200,750
J. F. Drake State CC & TC,30015141,Student Payment,10/26/2021,750,Unrestricted Shared Services,Clearing Refunds - SP,A00283172,110100,230200,750
J. F. Drake State CC & TC,30015142,Student Payment,10/26/2021,1500,Unrestricted Shared Services,Clearing Refunds - SP,A00333579,110100,230200,1500
J. F. Drake State CC & TC,30015143,Student Payment,10/26/2021,750,Unrestricted Shared Services,Clearing Refunds - SP,A02261186,110100,230200,750
J. F. Drake State CC & TC,30015144,Student Payment,10/26/2021,1500,Unrestricted Shared Services,Clearing Refunds - SP,A02262920,110100,230200,1500
J. F. Drake State CC & TC,30015145,Student Payment,10/26/2021,750,Unrestricted Shared Services,Clearing Refunds - SP,A00280181,110100,230200,750
J. F. Drake State CC & TC,30015146,Student Payment,10/26/2021,1500,Unrestricted Shared Services,Clearing Refunds - SP,A01126564,110100,230200,1500
J. F. Drake State CC & TC,30015147,Student Payment,10/26/2021,750,Unrestricted Shared Services,Clearing Refunds - SP,A02333084,110100,230200,750
J. F. Drake State CC & TC,30015148,Student Payment,10/26/2021,750,Unrestricted Shared Services,Clearing Refunds - SP,A02316725,110100,230200,750
J. F. Drake State CC & TC,30015149,Student Payment,10/26/2021,750,Unrestricted Shared Services,Clearing Refunds - SP,A00348985,110100,230200,750
J. F. Drake State CC & TC,30015150,Student Payment,10/26/2021,1500,Unrestricted Shared Services,Clearing Refunds - SP,A02287239,110100,230200,1500
J. F. Drake State CC & TC,30015151,Student Payment,10/26/2021,750,Unrestricted Shared Services,Clearing Refunds - SP,A01389592,110100,230200,750
J. F. Drake State CC & TC,30015152,Cancelled Check,10/26/2021,0,,,,,,
J. F. Drake State CC & TC,30015153,Student Payment,10/26/2021,750,Unrestricted Shared Services,Clearing Refunds - SP,A01320019,110100,230200,750
J. F. Drake State CC & TC,30015154,Student Payment,10/26/2021,1500,Unrestricted Shared Services,Clearing Refunds - SP,A02211932,110100,230200,1500
J. F. Drake State CC & TC,30015155,Student Payment,10/26/2021,750,Unrestricted Shared Services,Clearing Refunds - SP,A01336835,110100,230200,750
J. F. Drake State CC & TC,30015156,Student Payment,10/26/2021,750,Unrestricted Shared Services,Clearing Refunds - SP,A00344153,110100,230200,750
J. F. Drake State CC & TC,30015157,Student Payment,10/26/2021,750,Unrestricted Shared Services,Clearing Refunds - SP,A02283469,110100,230200,750
J. F. Drake State CC & TC,30015158,Student Payment,10/26/2021,750,Unrestricted Shared Services,Clearing Refunds - SP,A00308371,110100,230200,750
J. F. Drake State CC & TC,30015159,Student Payment,10/26/2021,750,Unrestricted Shared Services,Clearing Refunds - SP,A01346280,110100,230200,750
J. F. Drake State CC & TC,30015160,Student Payment,10/26/2021,750,Unrestricted Shared Services,Clearing Refunds - SP,A00173259,110100,230200,750
J. F. Drake State CC & TC,30015161,Student Payment,10/26/2021,750,Unrestricted Shared Services,Clearing Refunds - SP,A00305180,110100,230200,750
J. F. Drake State CC & TC,30015162,Student Payment,10/26/2021,1500,Unrestricted Shared Services,Clearing Refunds - SP,A02320832,110100,230200,1500
J. F. Drake State CC & TC,30015163,Student Payment,10/26/2021,750,Unrestricted Shared Services,Clearing Refunds - SP,A02326798,110100,230200,750
J. F. Drake State CC & TC,30015164,Student Payment,10/26/2021,750,Unrestricted Shared Services,Clearing Refunds - SP,A02331212,110100,230200,750
J. F. Drake State CC & TC,30015165,Student Payment,10/26/2021,750,Unrestricted Shared Services,Clearing Refunds - SP,A02329600,110100,230200,750
J. F. Drake State CC & TC,30015166,Student Payment,10/26/2021,750,Unrestricted Shared Services,Clearing Refunds - SP,A02285874,110100,230200,750
J. F. Drake State CC & TC,30015167,Student Payment,10/26/2021,750,Unrestricted Shared Services,Clearing Refunds - SP,A02303412,110100,230200,750
J. F. Drake State CC & TC,30015168,Student Payment,10/26/2021,750,Unrestricted Shared Services,Clearing Refunds - SP,A00318503,110100,230200,750
J. F. Drake State CC & TC,30015169,Student Payment,10/26/2021,750,Unrestricted Shared Services,Clearing Refunds - SP,A01332691,110100,230200,750
J. F. Drake State CC & TC,30015170,Student Payment,10/26/2021,750,Unrestricted Shared Services,Clearing Refunds - SP,A02331700,110100,230200,750
J. F. Drake State CC & TC,30015171,Student Payment,10/26/2021,750,Unrestricted Shared Services,Clearing Refunds - SP,A02331976,110100,230200,750
J. F. Drake State CC & TC,30015172,Student Payment,10/26/2021,750,Unrestricted Shared Services,Clearing Refunds - SP,A02331310,110100,230200,750
J. F. Drake State CC & TC,30015173,Student Payment,10/26/2021,750,Unrestricted Shared Services,Clearing Refunds - SP,A00249833,110100,230200,750
J. F. Drake State CC & TC,30015174,Student Payment,10/26/2021,750,Unrestricted Shared Services,Clearing Refunds - SP,A01344993,110100,230200,750
J. F. Drake State CC & TC,30015175,Student Payment,10/26/2021,750,Unrestricted Shared Services,Clearing Refunds - SP,A00293044,110100,230200,750
J. F. Drake State CC & TC,30015176,Student Payment,10/26/2021,1500,Unrestricted Shared Services,Clearing Refunds - SP,A01327410,110100,230200,1500
J. F. Drake State CC & TC,30015177,Student Payment,10/26/2021,1500,Unrestricted Shared Services,Clearing Refunds - SP,A01331467,110100,230200,1500
J. F. Drake State CC & TC,30015178,Student Payment,10/26/2021,750,Unrestricted Shared Services,Clearing Refunds - SP,A02331213,110100,230200,750
J. F. Drake State CC & TC,30015179,Student Payment,10/26/2021,1500,Unrestricted Shared Services,Clearing Refunds - SP,A00309040,110100,230200,1500
J. F. Drake State CC & TC,30015180,Student Payment,10/26/2021,750,Unrestricted Shared Services,Clearing Refunds - SP,A02331288,110100,230200,750
J. F. Drake State CC & TC,30015181,Student Payment,10/26/2021,750,Unrestricted Shared Services,Clearing Refunds - SP,A00263598,110100,230200,750
J. F. Drake State CC & TC,30015182,Student Payment,10/26/2021,750,Unrestricted Shared Services,Clearing Refunds - SP,A02263984,110100,230200,750
J. F. Drake State CC & TC,30015183,Student Payment,10/26/2021,750,Unrestricted Shared Services,Clearing Refunds - SP,A00367872,110100,230200,750
J. F. Drake State CC & TC,30015184,Student Payment,10/26/2021,750,Unrestricted Shared Services,Clearing Refunds - SP,A00362567,110100,230200,750
J. F. Drake State CC & TC,30015185,Student Payment,10/26/2021,750,Unrestricted Shared Services,Clearing Refunds - SP,A02284953,110100,230200,750
J. F. Drake State CC & TC,30015186,Student Payment,10/26/2021,750,Unrestricted Shared Services,Clearing Refunds - SP,A02325620,110100,230200,750
J. F. Drake State CC & TC,30015187,Student Payment,10/26/2021,750,Unrestricted Shared Services,Clearing Refunds - SP,A02331214,110100,230200,750
J. F. Drake State CC & TC,30015188,Student Payment,10/26/2021,1500,Unrestricted Shared Services,Clearing Refunds - SP,A00313482,110100,230200,1500
J. F. Drake State CC & TC,30015189,Cancelled Check,10/26/2021,0,,,,,,
J. F. Drake State CC & TC,30015190,Student Payment,10/26/2021,750,Unrestricted Shared Services,Clearing Refunds - SP,A02324389,110100,230200,750
J. F. Drake State CC & TC,30015191,Student Payment,10/26/2021,750,Unrestricted Shared Services,Clearing Refunds - SP,A01331886,110100,230200,750
J. F. Drake State CC & TC,30015192,Student Payment,10/26/2021,1500,Unrestricted Shared Services,Clearing Refunds - SP,A02296752,110100,230200,1500
J. F. Drake State CC & TC,30015193,Student Payment,10/26/2021,1500,Unrestricted Shared Services,Clearing Refunds - SP,A00354693,110100,230200,1500
J. F. Drake State CC & TC,30015194,Student Payment,10/26/2021,750,Unrestricted Shared Services,Clearing Refunds - SP,A02331183,110100,230200,750
J. F. Drake State CC & TC,30015195,Student Payment,10/26/2021,1500,Unrestricted Shared Services,Clearing Refunds - SP,A00337741,110100,230200,1500
J. F. Drake State CC & TC,30015196,Student Payment,10/26/2021,750,Unrestricted Shared Services,Clearing Refunds - SP,A02314637,110100,230200,750
J. F. Drake State CC & TC,30015197,Cancelled Check,10/26/2021,0,,,,,,
J. F. Drake State CC & TC,30015198,Student Payment,10/26/2021,750,Unrestricted Shared Services,Clearing Refunds - SP,A02251411,110100,230200,750
J. F. Drake State CC & TC,30015199,Student Payment,10/26/2021,750,Unrestricted Shared Services,Clearing Refunds - SP,A00311519,110100,230200,750
J. F. Drake State CC & TC,30015200,Student Payment,10/26/2021,750,Unrestricted Shared Services,Clearing Refunds - SP,A02331162,110100,230200,750
J. F. Drake State CC & TC,30015201,Student Payment,10/26/2021,750,Unrestricted Shared Services,Clearing Refunds - SP,A02282182,110100,230200,750
J. F. Drake State CC & TC,30015202,Cancelled Check,10/26/2021,0,,,,,,
J. F. Drake State CC & TC,30015203,Student Payment,10/26/2021,1500,Unrestricted Shared Services,Clearing Refunds - SP,A01342267,110100,230200,1500
J. F. Drake State CC & TC,30015204,Student Payment,10/26/2021,750,Unrestricted Shared Services,Clearing Refunds - SP,A02328577,110100,230200,750
J. F. Drake State CC & TC,30015205,Student Payment,10/26/2021,750,Unrestricted Shared Services,Clearing Refunds - SP,A02260825,110100,230200,750
J. F. Drake State CC & TC,30015206,Student Payment,10/26/2021,750,Unrestricted Shared Services,Clearing Refunds - SP,A00337080,110100,230200,750
J. F. Drake State CC & TC,30015207,Student Payment,10/26/2021,750,Unrestricted Shared Services,Clearing Refunds - SP,A02259825,110100,230200,750
J. F. Drake State CC & TC,30015208,Student Payment,10/26/2021,750,Unrestricted Shared Services,Clearing Refunds - SP,A00345789,110100,230200,750
J. F. Drake State CC & TC,30015209,Student Payment,10/26/2021,1500,Unrestricted Shared Services,Clearing Refunds - SP,A01334397,110100,230200,1500
J. F. Drake State CC & TC,30015210,Student Payment,10/26/2021,750,Unrestricted Shared Services,Clearing Refunds - SP,A00214077,110100,230200,750
J. F. Drake State CC & TC,30015211,Student Payment,10/26/2021,1500,Unrestricted Shared Services,Clearing Refunds - SP,A00295353,110100,230200,1500
J. F. Drake State CC & TC,30015212,Student Payment,10/26/2021,750,Unrestricted Shared Services,Clearing Refunds - SP,A01349158,110100,230200,750
J. F. Drake State CC & TC,30015213,Student Payment,10/26/2021,750,Unrestricted Shared Services,Clearing Refunds - SP,A00208292,110100,230200,750
J. F. Drake State CC & TC,30015214,Student Payment,10/26/2021,1500,Unrestricted Shared Services,Clearing Refunds - SP,A00348066,110100,230200,1500
J. F. Drake State CC & TC,30015215,Student Payment,10/26/2021,750,Unrestricted Shared Services,Clearing Refunds - SP,A02283747,110100,230200,750
J. F. Drake State CC & TC,30015216,Student Payment,10/26/2021,750,Unrestricted Shared Services,Clearing Refunds - SP,A02325341,110100,230200,750
J. F. Drake State CC & TC,30015217,Student Payment,10/26/2021,750,Unrestricted Shared Services,Clearing Refunds - SP,A02331215,110100,230200,750
J. F. Drake State CC & TC,30015218,Student Payment,10/26/2021,750,Unrestricted Shared Services,Clearing Refunds - SP,A02325254,110100,230200,750
J. F. Drake State CC & TC,30015219,Student Payment,10/26/2021,750,Unrestricted Shared Services,Clearing Refunds - SP,A01339363,110100,230200,750
J. F. Drake State CC & TC,30015220,Student Payment,10/26/2021,750,Unrestricted Shared Services,Clearing Refunds - SP,A02285013,110100,230200,750
J. F. Drake State CC & TC,30015221,Student Payment,10/26/2021,750,Unrestricted Shared Services,Clearing Refunds - SP,A00348616,110100,230200,750
J. F. Drake State CC & TC,30015222,Student Payment,10/26/2021,750,Unrestricted Shared Services,Clearing Refunds - SP,A01382694,110100,230200,750
J. F. Drake State CC & TC,30015223,Student Payment,10/26/2021,750,Unrestricted Shared Services,Clearing Refunds - SP,A00343196,110100,230200,750
J. F. Drake State CC & TC,30015224,Student Payment,10/26/2021,750,Unrestricted Shared Services,Clearing Refunds - SP,A02331216,110100,230200,750
J. F. Drake State CC & TC,30015225,Student Payment,10/26/2021,750,Unrestricted Shared Services,Clearing Refunds - SP,A01333419,110100,230200,750
J. F. Drake State CC & TC,30015226,Student Payment,10/26/2021,750,Unrestricted Shared Services,Clearing Refunds - SP,A02262822,110100,230200,750
J. F. Drake State CC & TC,30015227,Student Payment,10/26/2021,750,Unrestricted Shared Services,Clearing Refunds - SP,A02123575,110100,230200,750
J. F. Drake State CC & TC,30015228,Student Payment,10/26/2021,1500,Unrestricted Shared Services,Clearing Refunds - SP,A00341029,110100,230200,1500
J. F. Drake State CC & TC,30015229,Student Payment,10/26/2021,1500,Unrestricted Shared Services,Clearing Refunds - SP,A00270043,110100,230200,1500
J. F. Drake State CC & TC,30015230,Student Payment,10/26/2021,750,Unrestricted Shared Services,Clearing Refunds - SP,A00319872,110100,230200,750
J. F. Drake State CC & TC,30015231,Student Payment,10/26/2021,1500,Unrestricted Shared Services,Clearing Refunds - SP,A02308892,110100,230200,1500
J. F. Drake State CC & TC,30015232,Student Payment,10/26/2021,1500,Unrestricted Shared Services,Clearing Refunds - SP,A01324866,110100,230200,1500
J. F. Drake State CC & TC,30015233,Student Payment,10/26/2021,750,Unrestricted Shared Services,Clearing Refunds - SP,A00264192,110100,230200,750
J. F. Drake State CC & TC,30015234,Student Payment,10/26/2021,750,Unrestricted Shared Services,Clearing Refunds - SP,A01372865,110100,230200,750
J. F. Drake State CC & TC,30015235,Student Payment,10/26/2021,750,Unrestricted Shared Services,Clearing Refunds - SP,A01396057,110100,230200,750
J. F. Drake State CC & TC,30015236,Student Payment,10/26/2021,750,Unrestricted Shared Services,Clearing Refunds - SP,A02212295,110100,230200,750
J. F. Drake State CC & TC,30015237,Student Payment,10/26/2021,750,Unrestricted Shared Services,Clearing Refunds - SP,A02278059,110100,230200,750
J. F. Drake State CC & TC,30015238,Student Payment,10/26/2021,750,Unrestricted Shared Services,Clearing Refunds - SP,A00066709,110100,230200,750
J. F. Drake State CC & TC,30015239,Student Payment,10/26/2021,1500,Unrestricted Shared Services,Clearing Refunds - SP,A01332753,110100,230200,1500
J. F. Drake State CC & TC,30015240,Student Payment,10/26/2021,1500,Unrestricted Shared Services,Clearing Refunds - SP,A01390810,110100,230200,1500
J. F. Drake State CC & TC,30015241,Student Payment,10/26/2021,750,Unrestricted Shared Services,Clearing Refunds - SP,A01393854,110100,230200,750
J. F. Drake State CC & TC,30015242,Student Payment,10/26/2021,750,Unrestricted Shared Services,Clearing Refunds - SP,A02331217,110100,230200,750
J. F. Drake State CC & TC,30015243,Student Payment,10/26/2021,750,Unrestricted Shared Services,Clearing Refunds - SP,A02261163,110100,230200,750
J. F. Drake State CC & TC,30015244,Student Payment,10/26/2021,750,Unrestricted Shared Services,Clearing Refunds - SP,A02257743,110100,230200,750
J. F. Drake State CC & TC,30015245,Student Payment,10/26/2021,750,Unrestricted Shared Services,Clearing Refunds - SP,A02315581,110100,230200,750
J. F. Drake State CC & TC,30015246,Cancelled Check,10/26/2021,0,,,,,,
J. F. Drake State CC & TC,30015247,Student Payment,10/26/2021,750,Unrestricted Shared Services,Clearing Refunds - SP,A00222161,110100,230200,750
J. F. Drake State CC & TC,30015248,Student Payment,10/26/2021,750,Unrestricted Shared Services,Clearing Refunds - SP,A01371059,110100,230200,750
J. F. Drake State CC & TC,30015249,Student Payment,10/26/2021,750,Unrestricted Shared Services,Clearing Refunds - SP,A01342776,110100,230200,750
J. F. Drake State CC & TC,30015250,Student Payment,10/26/2021,1500,Unrestricted Shared Services,Clearing Refunds - SP,A00351835,110100,230200,1500
J. F. Drake State CC & TC,30015251,Student Payment,10/26/2021,750,Unrestricted Shared Services,Clearing Refunds - SP,A00342755,110100,230200,750
J. F. Drake State CC & TC,30015252,Student Payment,10/26/2021,750,Unrestricted Shared Services,Clearing Refunds - SP,A00297614,110100,230200,750
J. F. Drake State CC & TC,30015253,Student Payment,10/26/2021,750,Unrestricted Shared Services,Clearing Refunds - SP,A00339644,110100,230200,750
J. F. Drake State CC & TC,30015254,Student Payment,10/26/2021,1500,Unrestricted Shared Services,Clearing Refunds - SP,A00272246,110100,230200,1500
J. F. Drake State CC & TC,30015255,Student Payment,10/26/2021,750,Unrestricted Shared Services,Clearing Refunds - SP,A02327937,110100,230200,750
J. F. Drake State CC & TC,30015256,Student Payment,10/26/2021,750,Unrestricted Shared Services,Clearing Refunds - SP,A02323845,110100,230200,750
J. F. Drake State CC & TC,30015257,Cancelled Check,10/26/2021,0,,,,,,
J. F. Drake State CC & TC,30015258,Student Payment,10/26/2021,750,Unrestricted Shared Services,Clearing Refunds - SP,A02285904,110100,230200,750
J. F. Drake State CC & TC,30015259,Student Payment,10/26/2021,1500,Unrestricted Shared Services,Clearing Refunds - SP,A02317141,110100,230200,1500
J. F. Drake State CC & TC,30015260,Student Payment,10/26/2021,750,Unrestricted Shared Services,Clearing Refunds - SP,A02327097,110100,230200,750
J. F. Drake State CC & TC,30015261,Student Payment,10/26/2021,750,Unrestricted Shared Services,Clearing Refunds - SP,A02331260,110100,230200,750
J. F. Drake State CC & TC,30015262,Student Payment,10/26/2021,750,Unrestricted Shared Services,Clearing Refunds - SP,A02331255,110100,230200,750
J. F. Drake State CC & TC,30015263,Student Payment,10/26/2021,750,Unrestricted Shared Services,Clearing Refunds - SP,A02331218,110100,230200,750
J. F. Drake State CC & TC,30015264,Student Payment,10/26/2021,750,Unrestricted Shared Services,Clearing Refunds - SP,A02261189,110100,230200,750
J. F. Drake State CC & TC,30015265,Student Payment,10/26/2021,750,Unrestricted Shared Services,Clearing Refunds - SP,A02328295,110100,230200,750
J. F. Drake State CC & TC,30015266,Student Payment,10/26/2021,750,Unrestricted Shared Services,Clearing Refunds - SP,A02331242,110100,230200,750
J. F. Drake State CC & TC,30015267,Student Payment,10/26/2021,750,Unrestricted Shared Services,Clearing Refunds - SP,A02325340,110100,230200,750
J. F. Drake State CC & TC,30015268,Student Payment,10/26/2021,750,Unrestricted Shared Services,Clearing Refunds - SP,A00371536,110100,230200,750
J. F. Drake State CC & TC,30015269,Student Payment,10/26/2021,1500,Unrestricted Shared Services,Clearing Refunds - SP,A00227340,110100,230200,1500
J. F. Drake State CC & TC,30015270,Student Payment,10/26/2021,1500,Unrestricted Shared Services,Clearing Refunds - SP,A02327442,110100,230200,1500
J. F. Drake State CC & TC,30015271,Student Payment,10/26/2021,750,Unrestricted Shared Services,Clearing Refunds - SP,A00800326,110100,230200,750
J. F. Drake State CC & TC,30015272,Student Payment,10/26/2021,750,Unrestricted Shared Services,Clearing Refunds - SP,A00257097,110100,230200,750
J. F. Drake State CC & TC,30015273,Student Payment,10/26/2021,750,Unrestricted Shared Services,Clearing Refunds - SP,A02284946,110100,230200,750
J. F. Drake State CC & TC,30015274,Student Payment,10/26/2021,1500,Unrestricted Shared Services,Clearing Refunds - SP,A02273492,110100,230200,1500
J. F. Drake State CC & TC,30015275,Student Payment,10/26/2021,750,Unrestricted Shared Services,Clearing Refunds - SP,A00341105,110100,230200,750
J. F. Drake State CC & TC,30015276,Student Payment,10/26/2021,750,Unrestricted Shared Services,Clearing Refunds - SP,A02275506,110100,230200,750
J. F. Drake State CC & TC,30015277,Student Payment,10/26/2021,750,Unrestricted Shared Services,Clearing Refunds - SP,A01383152,110100,230200,750
J. F. Drake State CC & TC,30015278,Student Payment,10/26/2021,750,Unrestricted Shared Services,Clearing Refunds - SP,A02320240,110100,230200,750
J. F. Drake State CC & TC,30015279,Student Payment,10/26/2021,750,Unrestricted Shared Services,Clearing Refunds - SP,A01344630,110100,230200,750
J. F. Drake State CC & TC,30015280,Student Payment,10/26/2021,750,Unrestricted Shared Services,Clearing Refunds - SP,A02240249,110100,230200,750
J. F. Drake State CC & TC,30015281,Student Payment,10/26/2021,750,Unrestricted Shared Services,Clearing Refunds - SP,A02261526,110100,230200,750
J. F. Drake State CC & TC,30015282,Student Payment,10/26/2021,750,Unrestricted Shared Services,Clearing Refunds - SP,A02331220,110100,230200,750
J. F. Drake State CC & TC,30015283,Student Payment,10/26/2021,750,Unrestricted Shared Services,Clearing Refunds - SP,A02325599,110100,230200,750
J. F. Drake State CC & TC,30015284,Cancelled Check,10/26/2021,0,,,,,,
J. F. Drake State CC & TC,30015285,Student Payment,10/26/2021,750,Unrestricted Shared Services,Clearing Refunds - SP,A01377013,110100,230200,750
J. F. Drake State CC & TC,30015286,Student Payment,10/26/2021,750,Unrestricted Shared Services,Clearing Refunds - SP,A02287348,110100,230200,750
J. F. Drake State CC & TC,30015287,Student Payment,10/26/2021,1500,Unrestricted Shared Services,Clearing Refunds - SP,A00345889,110100,230200,1500
J. F. Drake State CC & TC,30015288,Student Payment,10/26/2021,750,Unrestricted Shared Services,Clearing Refunds - SP,A02317418,110100,230200,750
J. F. Drake State CC & TC,30015289,Student Payment,10/26/2021,1500,Unrestricted Shared Services,Clearing Refunds - SP,A02317954,110100,230200,1500
J. F. Drake State CC & TC,30015290,Student Payment,10/26/2021,750,Unrestricted Shared Services,Clearing Refunds - SP,A01360961,110100,230200,750
J. F. Drake State CC & TC,30015291,Student Payment,10/26/2021,750,Unrestricted Shared Services,Clearing Refunds - SP,A02324139,110100,230200,750
J. F. Drake State CC & TC,30015292,Student Payment,10/26/2021,1500,Unrestricted Shared Services,Clearing Refunds - SP,A00234602,110100,230200,1500
J. F. Drake State CC & TC,30015293,Student Payment,10/26/2021,750,Unrestricted Shared Services,Clearing Refunds - SP,A00322016,110100,230200,750
J. F. Drake State CC & TC,30015294,Student Payment,10/26/2021,1500,Unrestricted Shared Services,Clearing Refunds - SP,A02280095,110100,230200,1500
J. F. Drake State CC & TC,30015295,Student Payment,10/26/2021,750,Unrestricted Shared Services,Clearing Refunds - SP,A01342034,110100,230200,750
J. F. Drake State CC & TC,30015296,Student Payment,10/26/2021,750,Unrestricted Shared Services,Clearing Refunds - SP,A02297561,110100,230200,750
J. F. Drake State CC & TC,30015297,Student Payment,10/26/2021,750,Unrestricted Shared Services,Clearing Refunds - SP,A00781881,110100,230200,750
J. F. Drake State CC & TC,30015298,Student Payment,10/26/2021,1500,Unrestricted Shared Services,Clearing Refunds - SP,A01368648,110100,230200,1500
J. F. Drake State CC & TC,30015299,Student Payment,10/26/2021,1500,Unrestricted Shared Services,Clearing Refunds - SP,A00814205,110100,230200,1500
J. F. Drake State CC & TC,30015300,Student Payment,10/26/2021,1500,Unrestricted Shared Services,Clearing Refunds - SP,A00349632,110100,230200,1500
J. F. Drake State CC & TC,30015301,Student Payment,10/26/2021,1500,Unrestricted Shared Services,Clearing Refunds - SP,A00196966,110100,230200,1500
J. F. Drake State CC & TC,30015302,Student Payment,10/26/2021,1500,Unrestricted Shared Services,Clearing Refunds - SP,A01360921,110100,230200,1500
J. F. Drake State CC & TC,30015303,Student Payment,10/26/2021,1500,Unrestricted Shared Services,Clearing Refunds - SP,A00300874,110100,230200,1500
J. F. Drake State CC & TC,30015304,Student Payment,10/26/2021,1500,Unrestricted Shared Services,Clearing Refunds - SP,A01380953,110100,230200,1500
J. F. Drake State CC & TC,30015305,Student Payment,10/26/2021,1500,Unrestricted Shared Services,Clearing Refunds - SP,A00258735,110100,230200,1500
J. F. Drake State CC & TC,30015306,Student Payment,10/26/2021,750,Unrestricted Shared Services,Clearing Refunds - SP,A00088108,110100,230200,750
J. F. Drake State CC & TC,30015307,Student Payment,10/26/2021,750,Unrestricted Shared Services,Clearing Refunds - SP,A00126196,110100,230200,750
J. F. Drake State CC & TC,30015308,Student Payment,10/26/2021,750,Unrestricted Shared Services,Clearing Refunds - SP,A02263882,110100,230200,750
J. F. Drake State CC & TC,30015309,Student Payment,10/26/2021,750,Unrestricted Shared Services,Clearing Refunds - SP,A02245369,110100,230200,750
J. F. Drake State CC & TC,30015310,Student Payment,10/26/2021,750,Unrestricted Shared Services,Clearing Refunds - SP,A01368649,110100,230200,750
J. F. Drake State CC & TC,30015311,Student Payment,10/26/2021,750,Unrestricted Shared Services,Clearing Refunds - SP,A01336737,110100,230200,750
J. F. Drake State CC & TC,30015312,Student Payment,10/26/2021,750,Unrestricted Shared Services,Clearing Refunds - SP,A00199636,110100,230200,750
J. F. Drake State CC & TC,30015313,Student Payment,10/26/2021,750,Unrestricted Shared Services,Clearing Refunds - SP,A02320860,110100,230200,750
J. F. Drake State CC & TC,30015314,Student Payment,10/26/2021,750,Unrestricted Shared Services,Clearing Refunds - SP,A02250081,110100,230200,750
J. F. Drake State CC & TC,30015315,Cancelled Check,10/26/2021,0,,,,,,
J. F. Drake State CC & TC,30015316,Student Payment,10/26/2021,1500,Unrestricted Shared Services,Clearing Refunds - SP,A00273418,110100,230200,1500
J. F. Drake State CC & TC,30015317,Student Payment,10/26/2021,1500,Unrestricted Shared Services,Clearing Refunds - SP,A01339608,110100,230200,1500
J. F. Drake State CC & TC,30015318,Student Payment,10/26/2021,1500,Unrestricted Shared Services,Clearing Refunds - SP,A00307593,110100,230200,1500
J. F. Drake State CC & TC,30015319,Student Payment,10/26/2021,750,Unrestricted Shared Services,Clearing Refunds - SP,A02308957,110100,230200,750
J. F. Drake State CC & TC,30015320,Student Payment,10/26/2021,750,Unrestricted Shared Services,Clearing Refunds - SP,A00334748,110100,230200,750
J. F. Drake State CC & TC,30015321,Student Payment,10/26/2021,750,Unrestricted Shared Services,Clearing Refunds - SP,A02303410,110100,230200,750
J. F. Drake State CC & TC,30015322,Student Payment,10/26/2021,750,Unrestricted Shared Services,Clearing Refunds - SP,A02311510,110100,230200,750
J. F. Drake State CC & TC,30015323,Cancelled Check,10/26/2021,0,,,,,,
J. F. Drake State CC & TC,30015324,Student Payment,10/26/2021,750,Unrestricted Shared Services,Clearing Refunds - SP,A00358095,110100,230200,750
J. F. Drake State CC & TC,30015325,Student Payment,10/26/2021,1500,Unrestricted Shared Services,Clearing Refunds - SP,A00301464,110100,230200,1500
J. F. Drake State CC & TC,30015326,Student Payment,10/26/2021,750,Unrestricted Shared Services,Clearing Refunds - SP,A02211846,110100,230200,750
J. F. Drake State CC & TC,30015327,Student Payment,10/26/2021,750,Unrestricted Shared Services,Clearing Refunds - SP,A02331966,110100,230200,750
J. F. Drake State CC & TC,30015328,Student Payment,10/26/2021,750,Unrestricted Shared Services,Clearing Refunds - SP,A02283867,110100,230200,750
J. F. Drake State CC & TC,30015329,Student Payment,10/26/2021,750,Unrestricted Shared Services,Clearing Refunds - SP,A02323170,110100,230200,750
J. F. Drake State CC & TC,30015330,Student Payment,10/26/2021,750,Unrestricted Shared Services,Clearing Refunds - SP,A02331221,110100,230200,750
J. F. Drake State CC & TC,30015331,Student Payment,10/26/2021,1500,Unrestricted Shared Services,Clearing Refunds - SP,A00304328,110100,230200,1500
J. F. Drake State CC & TC,30015332,Student Payment,10/26/2021,750,Unrestricted Shared Services,Clearing Refunds - SP,A02331306,110100,230200,750
J. F. Drake State CC & TC,30015333,Student Payment,10/26/2021,750,Unrestricted Shared Services,Clearing Refunds - SP,A02287347,110100,230200,750
J. F. Drake State CC & TC,30015334,Student Payment,10/26/2021,750,Unrestricted Shared Services,Clearing Refunds - SP,A02331958,110100,230200,750
J. F. Drake State CC & TC,30015335,Student Payment,10/26/2021,750,Unrestricted Shared Services,Clearing Refunds - SP,A02307394,110100,230200,750
J. F. Drake State CC & TC,30015336,Student Payment,10/26/2021,1500,Unrestricted Shared Services,Clearing Refunds - SP,A00294902,110100,230200,1500
J. F. Drake State CC & TC,30015337,Student Payment,10/26/2021,1500,Unrestricted Shared Services,Clearing Refunds - SP,A01371953,110100,230200,1500
J. F. Drake State CC & TC,30015338,Cancelled Check,10/26/2021,0,,,,,,
J. F. Drake State CC & TC,30015339,Student Payment,10/26/2021,750,Unrestricted Shared Services,Clearing Refunds - SP,A02331971,110100,230200,750
J. F. Drake State CC & TC,30015340,Student Payment,10/26/2021,750,Unrestricted Shared Services,Clearing Refunds - SP,A02331295,110100,230200,750
J. F. Drake State CC & TC,30015341,Student Payment,10/26/2021,750,Unrestricted Shared Services,Clearing Refunds - SP,A00242325,110100,230200,750
J. F. Drake State CC & TC,30015342,Student Payment,10/26/2021,750,Unrestricted Shared Services,Clearing Refunds - SP,A02331299,110100,230200,750
J. F. Drake State CC & TC,30015343,Student Payment,10/26/2021,1500,Unrestricted Shared Services,Clearing Refunds - SP,A00307514,110100,230200,1500
J. F. Drake State CC & TC,30015344,Cancelled Check,10/26/2021,0,,,,,,
J. F. Drake State CC & TC,30015345,Student Payment,10/26/2021,750,Unrestricted Shared Services,Clearing Refunds - SP,A00804796,110100,230200,750
J. F. Drake State CC & TC,30015346,Student Payment,10/26/2021,750,Unrestricted Shared Services,Clearing Refunds - SP,A01379340,110100,230200,750
J. F. Drake State CC & TC,30015347,Student Payment,10/26/2021,750,Unrestricted Shared Services,Clearing Refunds - SP,A02307287,110100,230200,750
J. F. Drake State CC & TC,30015348,Student Payment,10/26/2021,750,Unrestricted Shared Services,Clearing Refunds - SP,A01365249,110100,230200,750
J. F. Drake State CC & TC,30015349,Student Payment,10/26/2021,750,Unrestricted Shared Services,Clearing Refunds - SP,A01345870,110100,230200,750
J. F. Drake State CC & TC,30015350,Student Payment,10/26/2021,1500,Unrestricted Shared Services,Clearing Refunds - SP,A00081803,110100,230200,1500
J. F. Drake State CC & TC,30015351,Student Payment,10/26/2021,750,Unrestricted Shared Services,Clearing Refunds - SP,A02304194,110100,230200,750
J. F. Drake State CC & TC,30015352,Student Payment,10/26/2021,750,Unrestricted Shared Services,Clearing Refunds - SP,A02331222,110100,230200,750
J. F. Drake State CC & TC,30015353,Student Payment,10/26/2021,750,Unrestricted Shared Services,Clearing Refunds - SP,A01389462,110100,230200,750
J. F. Drake State CC & TC,30015354,Student Payment,10/26/2021,750,Unrestricted Shared Services,Clearing Refunds - SP,A02331313,110100,230200,750
J. F. Drake State CC & TC,30015355,Student Payment,10/26/2021,1500,Unrestricted Shared Services,Clearing Refunds - SP,A01391183,110100,230200,1500
J. F. Drake State CC & TC,30015356,Student Payment,10/26/2021,1500,Unrestricted Shared Services,Clearing Refunds - SP,A01332992,110100,230200,1500
J. F. Drake State CC & TC,30015357,Student Payment,10/26/2021,750,Unrestricted Shared Services,Clearing Refunds - SP,A00239436,110100,230200,750
J. F. Drake State CC & TC,30015358,Student Payment,10/26/2021,750,Unrestricted Shared Services,Clearing Refunds - SP,A00236525,110100,230200,750
J. F. Drake State CC & TC,30015359,Student Payment,10/26/2021,750,Unrestricted Shared Services,Clearing Refunds - SP,A00192216,110100,230200,750
J. F. Drake State CC & TC,30015360,Student Payment,10/26/2021,750,Unrestricted Shared Services,Clearing Refunds - SP,A01332280,110100,230200,750
J. F. Drake State CC & TC,30015361,Student Payment,10/26/2021,750,Unrestricted Shared Services,Clearing Refunds - SP,A00183924,110100,230200,750
J. F. Drake State CC & TC,30015362,Student Payment,10/26/2021,750,Unrestricted Shared Services,Clearing Refunds - SP,A02331172,110100,230200,750
J. F. Drake State CC & TC,30015363,Student Payment,10/26/2021,750,Unrestricted Shared Services,Clearing Refunds - SP,A01390117,110100,230200,750
J. F. Drake State CC & TC,30015364,Student Payment,10/26/2021,750,Unrestricted Shared Services,Clearing Refunds - SP,A00346742,110100,230200,750
J. F. Drake State CC & TC,30015365,Student Payment,10/26/2021,750,Unrestricted Shared Services,Clearing Refunds - SP,A02331223,110100,230200,750
J. F. Drake State CC & TC,30015366,Student Payment,10/26/2021,1500,Unrestricted Shared Services,Clearing Refunds - SP,A02278063,110100,230200,1500
J. F. Drake State CC & TC,30015367,Student Payment,10/26/2021,750,Unrestricted Shared Services,Clearing Refunds - SP,A00214331,110100,230200,750
J. F. Drake State CC & TC,30015368,Student Payment,10/26/2021,750,Unrestricted Shared Services,Clearing Refunds - SP,A02261205,110100,230200,750
J. F. Drake State CC & TC,30015369,Student Payment,10/26/2021,1500,Unrestricted Shared Services,Clearing Refunds - SP,A00367561,110100,230200,1500
J. F. Drake State CC & TC,30015370,Student Payment,10/26/2021,750,Unrestricted Shared Services,Clearing Refunds - SP,A00367804,110100,230200,750
J. F. Drake State CC & TC,30015371,Student Payment,10/26/2021,750,Unrestricted Shared Services,Clearing Refunds - SP,A01343020,110100,230200,750
J. F. Drake State CC & TC,30015372,Student Payment,10/26/2021,750,Unrestricted Shared Services,Clearing Refunds - SP,A02286524,110100,230200,750
J. F. Drake State CC & TC,30015373,Student Payment,10/26/2021,750,Unrestricted Shared Services,Clearing Refunds - SP,A02327872,110100,230200,750
J. F. Drake State CC & TC,30015374,Student Payment,10/26/2021,750,Unrestricted Shared Services,Clearing Refunds - SP,A00178254,110100,230200,750
J. F. Drake State CC & TC,30015375,Student Payment,10/26/2021,750,Unrestricted Shared Services,Clearing Refunds - SP,A00258284,110100,230200,750
J. F. Drake State CC & TC,30015376,Student Payment,10/26/2021,750,Unrestricted Shared Services,Clearing Refunds - SP,A00355857,110100,230200,750
J. F. Drake State CC & TC,30015377,Student Payment,10/26/2021,750,Unrestricted Shared Services,Clearing Refunds - SP,A02310870,110100,230200,750
J. F. Drake State CC & TC,30015378,Student Payment,10/26/2021,1500,Unrestricted Shared Services,Clearing Refunds - SP,A02275720,110100,230200,1500
J. F. Drake State CC & TC,30015379,Student Payment,10/26/2021,750,Unrestricted Shared Services,Clearing Refunds - SP,A02292454,110100,230200,750
J. F. Drake State CC & TC,30015380,Student Payment,10/26/2021,750,Unrestricted Shared Services,Clearing Refunds - SP,A00290456,110100,230200,750
J. F. Drake State CC & TC,30015381,Student Payment,10/26/2021,1500,Unrestricted Shared Services,Clearing Refunds - SP,A01343347,110100,230200,1500
J. F. Drake State CC & TC,30015382,Student Payment,10/26/2021,1500,Unrestricted Shared Services,Clearing Refunds - SP,A00274786,110100,230200,1500
J. F. Drake State CC & TC,30015383,Student Payment,10/26/2021,1500,Unrestricted Shared Services,Clearing Refunds - SP,A02299105,110100,230200,1500
J. F. Drake State CC & TC,30015384,Student Payment,10/26/2021,750,Unrestricted Shared Services,Clearing Refunds - SP,A02330916,110100,230200,750
J. F. Drake State CC & TC,30015385,Student Payment,10/26/2021,750,Unrestricted Shared Services,Clearing Refunds - SP,A00346666,110100,230200,750
J. F. Drake State CC & TC,30015386,Student Payment,10/26/2021,750,Unrestricted Shared Services,Clearing Refunds - SP,A00237764,110100,230200,750
J. F. Drake State CC & TC,30015387,Student Payment,10/26/2021,750,Unrestricted Shared Services,Clearing Refunds - SP,A00335874,110100,230200,750
J. F. Drake State CC & TC,30015388,Student Payment,10/26/2021,750,Unrestricted Shared Services,Clearing Refunds - SP,A02331301,110100,230200,750
J. F. Drake State CC & TC,30015389,Student Payment,10/26/2021,750,Unrestricted Shared Services,Clearing Refunds - SP,A00244539,110100,230200,750
J. F. Drake State CC & TC,30015390,Cancelled Check,10/26/2021,0,,,,,,
J. F. Drake State CC & TC,30015391,Student Payment,10/26/2021,1500,Unrestricted Shared Services,Clearing Refunds - SP,A02318902,110100,230200,1500
J. F. Drake State CC & TC,30015392,Student Payment,10/26/2021,750,Unrestricted Shared Services,Clearing Refunds - SP,A00325385,110100,230200,750
J. F. Drake State CC & TC,30015393,Cancelled Check,10/26/2021,0,,,,,,
J. F. Drake State CC & TC,30015394,Student Payment,10/26/2021,1500,Unrestricted Shared Services,Clearing Refunds - SP,A01361832,110100,230200,1500
J. F. Drake State CC & TC,30015395,Student Payment,10/26/2021,1500,Unrestricted Shared Services,Clearing Refunds - SP,A02306639,110100,230200,1500
J. F. Drake State CC & TC,30015396,Student Payment,10/26/2021,750,Unrestricted Shared Services,Clearing Refunds - SP,A01371325,110100,230200,750
J. F. Drake State CC & TC,30015397,Student Payment,10/26/2021,750,Unrestricted Shared Services,Clearing Refunds - SP,A01373796,110100,230200,750
J. F. Drake State CC & TC,30015398,Student Payment,10/26/2021,750,Unrestricted Shared Services,Clearing Refunds - SP,A02331224,110100,230200,750
J. F. Drake State CC & TC,30015399,Student Payment,10/26/2021,750,Unrestricted Shared Services,Clearing Refunds - SP,A02312189,110100,230200,750
J. F. Drake State CC & TC,30015400,Cancelled Check,10/26/2021,0,,,,,,
J. F. Drake State CC & TC,30015401,Student Payment,10/26/2021,750,Unrestricted Shared Services,Clearing Refunds - SP,A02331186,110100,230200,750
J. F. Drake State CC & TC,30015402,Student Payment,10/26/2021,1500,Unrestricted Shared Services,Clearing Refunds - SP,A00360967,110100,230200,1500
J. F. Drake State CC & TC,30015403,Cancelled Check,10/26/2021,0,,,,,,
J. F. Drake State CC & TC,30015404,Cancelled Check,10/26/2021,0,,,,,,
J. F. Drake State CC & TC,30015405,Student Payment,10/26/2021,750,Unrestricted Shared Services,Clearing Refunds - SP,A02294048,110100,230200,750
J. F. Drake State CC & TC,30015406,Student Payment,10/26/2021,750,Unrestricted Shared Services,Clearing Refunds - SP,A00293065,110100,230200,750
J. F. Drake State CC & TC,30015407,Student Payment,10/26/2021,750,Unrestricted Shared Services,Clearing Refunds - SP,A01379989,110100,230200,750
J. F. Drake State CC & TC,30015408,Student Payment,10/26/2021,750,Unrestricted Shared Services,Clearing Refunds - SP,A02279902,110100,230200,750
J. F. Drake State CC & TC,30015409,Student Payment,10/26/2021,1500,Unrestricted Shared Services,Clearing Refunds - SP,A00284725,110100,230200,1500
J. F. Drake State CC & TC,30015410,Student Payment,10/26/2021,750,Unrestricted Shared Services,Clearing Refunds - SP,A01382409,110100,230200,750
J. F. Drake State CC & TC,30015411,Student Payment,10/26/2021,750,Unrestricted Shared Services,Clearing Refunds - SP,A00352117,110100,230200,750
J. F. Drake State CC & TC,30015412,Student Payment,10/26/2021,750,Unrestricted Shared Services,Clearing Refunds - SP,A02331225,110100,230200,750
J. F. Drake State CC & TC,30015413,Student Payment,10/26/2021,750,Unrestricted Shared Services,Clearing Refunds - SP,A02331184,110100,230200,750
J. F. Drake State CC & TC,30015414,Cancelled Check,10/26/2021,0,,,,,,
J. F. Drake State CC & TC,30015415,Student Payment,10/26/2021,750,Unrestricted Shared Services,Clearing Refunds - SP,A02261174,110100,230200,750
J. F. Drake State CC & TC,30015416,Student Payment,10/26/2021,1500,Unrestricted Shared Services,Clearing Refunds - SP,A01344559,110100,230200,1500
J. F. Drake State CC & TC,30015417,Student Payment,10/26/2021,750,Unrestricted Shared Services,Clearing Refunds - SP,A02001534,110100,230200,750
J. F. Drake State CC & TC,30015418,Cancelled Check,10/26/2021,0,,,,,,
J. F. Drake State CC & TC,30015419,Student Payment,10/26/2021,750,Unrestricted Shared Services,Clearing Refunds - SP,A02320152,110100,230200,750
J. F. Drake State CC & TC,30015420,Cancelled Check,10/26/2021,0,,,,,,
J. F. Drake State CC & TC,30015421,Student Payment,10/26/2021,750,Unrestricted Shared Services,Clearing Refunds - SP,A02247349,110100,230200,750
J. F. Drake State CC & TC,30015422,Student Payment,10/26/2021,1500,Unrestricted Shared Services,Clearing Refunds - SP,A01383205,110100,230200,1500
J. F. Drake State CC & TC,30015423,Student Payment,10/26/2021,750,Unrestricted Shared Services,Clearing Refunds - SP,A00344346,110100,230200,750
J. F. Drake State CC & TC,30015424,Student Payment,10/26/2021,750,Unrestricted Shared Services,Clearing Refunds - SP,A02323838,110100,230200,750
J. F. Drake State CC & TC,30015425,Student Payment,10/26/2021,1500,Unrestricted Shared Services,Clearing Refunds - SP,A01386127,110100,230200,1500
J. F. Drake State CC & TC,30015426,Student Payment,10/26/2021,750,Unrestricted Shared Services,Clearing Refunds - SP,A02331293,110100,230200,750
J. F. Drake State CC & TC,30015427,Student Payment,10/26/2021,750,Unrestricted Shared Services,Clearing Refunds - SP,A02323178,110100,230200,750
J. F. Drake State CC & TC,30015428,Student Payment,10/26/2021,750,Unrestricted Shared Services,Clearing Refunds - SP,A00941788,110100,230200,750
J. F. Drake State CC & TC,30015429,Student Payment,10/26/2021,1500,Unrestricted Shared Services,Clearing Refunds - SP,A00282493,110100,230200,1500
J. F. Drake State CC & TC,30015430,Student Payment,10/26/2021,1500,Unrestricted Shared Services,Clearing Refunds - SP,A00352243,110100,230200,1500
J. F. Drake State CC & TC,30015431,Student Payment,10/26/2021,1500,Unrestricted Shared Services,Clearing Refunds - SP,A00348357,110100,230200,1500
J. F. Drake State CC & TC,30015432,Student Payment,10/26/2021,750,Unrestricted Shared Services,Clearing Refunds - SP,A00283069,110100,230200,750
J. F. Drake State CC & TC,30015433,Student Payment,10/26/2021,750,Unrestricted Shared Services,Clearing Refunds - SP,A02324193,110100,230200,750
J. F. Drake State CC & TC,30015434,Student Payment,10/26/2021,750,Unrestricted Shared Services,Clearing Refunds - SP,A02285877,110100,230200,750
J. F. Drake State CC & TC,30015435,Student Payment,10/26/2021,1500,Unrestricted Shared Services,Clearing Refunds - SP,A02271851,110100,230200,1500
J. F. Drake State CC & TC,30015436,Student Payment,10/26/2021,750,Unrestricted Shared Services,Clearing Refunds - SP,A00350956,110100,230200,750
J. F. Drake State CC & TC,30015437,Student Payment,10/26/2021,1500,Unrestricted Shared Services,Clearing Refunds - SP,A00346611,110100,230200,1500
J. F. Drake State CC & TC,30015438,Student Payment,10/26/2021,750,Unrestricted Shared Services,Clearing Refunds - SP,A00373150,110100,230200,750
J. F. Drake State CC & TC,30015439,Student Payment,10/26/2021,1500,Unrestricted Shared Services,Clearing Refunds - SP,A01382688,110100,230200,1500
J. F. Drake State CC & TC,30015440,Student Payment,10/26/2021,750,Unrestricted Shared Services,Clearing Refunds - SP,A02331244,110100,230200,750
J. F. Drake State CC & TC,30015441,Student Payment,10/26/2021,1500,Unrestricted Shared Services,Clearing Refunds - SP,A02250062,110100,230200,1500
J. F. Drake State CC & TC,30015442,Student Payment,10/26/2021,1500,Unrestricted Shared Services,Clearing Refunds - SP,A00166206,110100,230200,1500
J. F. Drake State CC & TC,30015443,Student Payment,10/26/2021,750,Unrestricted Shared Services,Clearing Refunds - SP,A02253075,110100,230200,750
J. F. Drake State CC & TC,30015444,Student Payment,10/26/2021,750,Unrestricted Shared Services,Clearing Refunds - SP,A00375563,110100,230200,750
J. F. Drake State CC & TC,30015445,Student Payment,10/26/2021,750,Unrestricted Shared Services,Clearing Refunds - SP,A02331297,110100,230200,750
J. F. Drake State CC & TC,30015446,Student Payment,10/26/2021,750,Unrestricted Shared Services,Clearing Refunds - SP,A01371709,110100,230200,750
J. F. Drake State CC & TC,30015447,Student Payment,10/26/2021,750,Unrestricted Shared Services,Clearing Refunds - SP,A00371433,110100,230200,750
J. F. Drake State CC & TC,30015448,Student Payment,10/26/2021,750,Unrestricted Shared Services,Clearing Refunds - SP,A02331226,110100,230200,750
J. F. Drake State CC & TC,30015449,Cancelled Check,10/26/2021,0,,,,,,
J. F. Drake State CC & TC,30015450,Student Payment,10/26/2021,1500,Unrestricted Shared Services,Clearing Refunds - SP,A01333252,110100,230200,1500
J. F. Drake State CC & TC,30015451,Student Payment,10/26/2021,750,Unrestricted Shared Services,Clearing Refunds - SP,A02303978,110100,230200,750
J. F. Drake State CC & TC,30015452,Student Payment,10/26/2021,750,Unrestricted Shared Services,Clearing Refunds - SP,A01367959,110100,230200,750
J. F. Drake State CC & TC,30015453,Student Payment,10/26/2021,750,Unrestricted Shared Services,Clearing Refunds - SP,A01386622,110100,230200,750
J. F. Drake State CC & TC,30015454,Student Payment,10/26/2021,1500,Unrestricted Shared Services,Clearing Refunds - SP,A02314871,110100,230200,1500
J. F. Drake State CC & TC,30015455,Student Payment,10/26/2021,1500,Unrestricted Shared Services,Clearing Refunds - SP,A00350895,110100,230200,1500
J. F. Drake State CC & TC,30015456,Student Payment,10/26/2021,750,Unrestricted Shared Services,Clearing Refunds - SP,A00886941,110100,230200,750
J. F. Drake State CC & TC,30015457,Student Payment,10/26/2021,750,Unrestricted Shared Services,Clearing Refunds - SP,A00347353,110100,230200,750
J. F. Drake State CC & TC,30015458,Student Payment,10/26/2021,750,Unrestricted Shared Services,Clearing Refunds - SP,A02308446,110100,230200,750
J. F. Drake State CC & TC,30015459,Student Payment,10/26/2021,750,Unrestricted Shared Services,Clearing Refunds - SP,A01335554,110100,230200,750
J. F. Drake State CC & TC,30015460,Student Payment,10/26/2021,750,Unrestricted Shared Services,Clearing Refunds - SP,A02010923,110100,230200,750
J. F. Drake State CC & TC,30015461,Student Payment,10/26/2021,750,Unrestricted Shared Services,Clearing Refunds - SP,A01372701,110100,230200,750
J. F. Drake State CC & TC,30015462,Student Payment,10/26/2021,1500,Unrestricted Shared Services,Clearing Refunds - SP,A01367856,110100,230200,1500
J. F. Drake State CC & TC,30015463,Student Payment,10/26/2021,750,Unrestricted Shared Services,Clearing Refunds - SP,A00209629,110100,230200,750
J. F. Drake State CC & TC,30015464,Student Payment,10/26/2021,750,Unrestricted Shared Services,Clearing Refunds - SP,A00855418,110100,230200,750
J. F. Drake State CC & TC,30015465,Student Payment,10/26/2021,1500,Unrestricted Shared Services,Clearing Refunds - SP,A02247316,110100,230200,1500
J. F. Drake State CC & TC,30015466,Student Payment,10/26/2021,1500,Unrestricted Shared Services,Clearing Refunds - SP,A01389905,110100,230200,1500
J. F. Drake State CC & TC,30015467,Student Payment,10/26/2021,1500,Unrestricted Shared Services,Clearing Refunds - SP,A02255563,110100,230200,1500
J. F. Drake State CC & TC,30015468,Student Payment,10/26/2021,750,Unrestricted Shared Services,Clearing Refunds - SP,A02285880,110100,230200,750
J. F. Drake State CC & TC,30015469,Student Payment,10/26/2021,750,Unrestricted Shared Services,Clearing Refunds - SP,A02323185,110100,230200,750
J. F. Drake State CC & TC,30015470,Student Payment,10/26/2021,750,Unrestricted Shared Services,Clearing Refunds - SP,A00368165,110100,230200,750
J. F. Drake State CC & TC,30015471,Student Payment,10/26/2021,750,Unrestricted Shared Services,Clearing Refunds - SP,A00137286,110100,230200,750
J. F. Drake State CC & TC,30015472,Student Payment,10/26/2021,750,Unrestricted Shared Services,Clearing Refunds - SP,A02235873,110100,230200,750
J. F. Drake State CC & TC,30015473,Student Payment,10/26/2021,1500,Unrestricted Shared Services,Clearing Refunds - SP,A02310901,110100,230200,1500
J. F. Drake State CC & TC,30015474,Student Payment,10/26/2021,750,Unrestricted Shared Services,Clearing Refunds - SP,A02261144,110100,230200,750
J. F. Drake State CC & TC,30015475,Student Payment,10/26/2021,1500,Unrestricted Shared Services,Clearing Refunds - SP,A00351150,110100,230200,1500
J. F. Drake State CC & TC,30015476,Student Payment,10/26/2021,1500,Unrestricted Shared Services,Clearing Refunds - SP,A02283812,110100,230200,1500
J. F. Drake State CC & TC,30015477,Student Payment,10/26/2021,1500,Unrestricted Shared Services,Clearing Refunds - SP,A02283815,110100,230200,1500
J. F. Drake State CC & TC,30015478,Student Payment,10/26/2021,750,Unrestricted Shared Services,Clearing Refunds - SP,A02331185,110100,230200,750
J. F. Drake State CC & TC,30015479,Student Payment,10/26/2021,750,Unrestricted Shared Services,Clearing Refunds - SP,A01090343,110100,230200,750
J. F. Drake State CC & TC,30015480,Student Payment,10/26/2021,1500,Unrestricted Shared Services,Clearing Refunds - SP,A00822891,110100,230200,1500
J. F. Drake State CC & TC,30015481,Student Payment,10/26/2021,750,Unrestricted Shared Services,Clearing Refunds - SP,A02331227,110100,230200,750
J. F. Drake State CC & TC,30015482,Student Payment,10/26/2021,750,Unrestricted Shared Services,Clearing Refunds - SP,A02331228,110100,230200,750
J. F. Drake State CC & TC,30015483,Student Payment,10/26/2021,750,Unrestricted Shared Services,Clearing Refunds - SP,A02285908,110100,230200,750
J. F. Drake State CC & TC,30015484,Student Payment,10/26/2021,750,Unrestricted Shared Services,Clearing Refunds - SP,A00353033,110100,230200,750
J. F. Drake State CC & TC,30015485,Student Payment,10/26/2021,750,Unrestricted Shared Services,Clearing Refunds - SP,A02255420,110100,230200,750
